{"text_format":"1","workbook":"xlsx","n_sheets":1,"sheets":["Tabelle1"],"not_rendered":{"charts":0,"images":0,"macros":0,"external_links":1,"defined_names":0,"comments":0,"pivot_tables":0},"unopened":[],"bounds":{"document_bytes":16777216,"sheet_cells":100000,"rows_first":2000,"rows_last":500,"rows_between":2000,"halvings":0,"cell_chars":16384,"cell_head_chars":4096},"cells_cut":0,"cells_raw":0,"read":"whole","date_system":"1900"}

{"sheet":"Tabelle1","index":0,"n_rows":254,"n_cols":5,"rows_kept":254,"cut":false,"hidden":false,"merged":[]}
["Wert","Kursname","Level","Topic","Current status as of 02.10.2025"]
[466,{"$f":"VLOOKUP([1]!preferred_alternative[[#This Row],[Wert]],[1]LVs!A$1:U$592,2,FALSE)","v":"Corporate Finance"},{"$f":"VLOOKUP([1]!preferred_alternative[[#This Row],[Wert]],[1]LVs!A$1:U$592,17,FALSE)","v":"Bachelor"},{"$f":"VLOOKUP([1]!preferred_alternative[[#This Row],[Wert]],[1]LVs!A$1:U$592,9,FALSE)","v":"Finance"},{"$f":"_xlfn.IFS([1]!preferred_alternative[[#This Row],[Anmerkung]]=\"currently spots available\",\"please check the list of available courses\",[1]!preferred_alternative[[#This Row],[Anmerkung]]=\"if you need a spot, please reach out to us\",\"if you need a spot, please reach out to us\",[1]!preferred_alternative[[#This Row],[Anmerkung]]=\"completely full\",\"completely full\",[1]!preferred_alternative[[#This Row],[Anmerkung]]=\"Markus fragen\",\"in process of asking for more spots\",[1]!preferred_alternative[[#This Row],[Anmerkung]]=\"\",\"further updates by \"&TEXT([1]!preferred_alternative[[#This Row],[Further updates by]],\"tt.MM.jj\"))","v":"completely full"}]
[600,{"$f":"VLOOKUP([1]!preferred_alternative[[#This Row],[Wert]],[1]LVs!A$1:U$592,2,FALSE)","v":"Brand Management"},{"$f":"VLOOKUP([1]!preferred_alternative[[#This Row],[Wert]],[1]LVs!A$1:U$592,17,FALSE)","v":"Bachelor"},{"$f":"VLOOKUP([1]!preferred_alternative[[#This Row],[Wert]],[1]LVs!A$1:U$592,9,FALSE)","v":"Marketing"},{"$f":"_xlfn.IFS([1]!preferred_alternative[[#This Row],[Anmerkung]]=\"currently spots available\",\"please check the list of available courses\",[1]!preferred_alternative[[#This Row],[Anmerkung]]=\"if you need a spot, please reach out to us\",\"if you need a spot, please reach out to us\",[1]!preferred_alternative[[#This Row],[Anmerkung]]=\"completely full\",\"completely full\",[1]!preferred_alternative[[#This Row],[Anmerkung]]=\"Markus fragen\",\"in process of asking for more spots\",[1]!preferred_alternative[[#This Row],[Anmerkung]]=\"\",\"further updates by \"&TEXT([1]!preferred_alternative[[#This Row],[Further updates by]],\"tt.MM.jj\"))","v":"completely full"}]
[1622,{"$f":"VLOOKUP([1]!preferred_alternative[[#This Row],[Wert]],[1]LVs!A$1:U$592,2,FALSE)","v":"Global Branding"},{"$f":"VLOOKUP([1]!preferred_alternative[[#This Row],[Wert]],[1]LVs!A$1:U$592,17,FALSE)","v":"Bachelor"},{"$f":"VLOOKUP([1]!preferred_alternative[[#This Row],[Wert]],[1]LVs!A$1:U$592,9,FALSE)","v":"Marketing"},{"$f":"_xlfn.IFS([1]!preferred_alternative[[#This Row],[Anmerkung]]=\"currently spots available\",\"please check the list of available courses\",[1]!preferred_alternative[[#This Row],[Anmerkung]]=\"if you need a spot, please reach out to us\",\"if you need a spot, please reach out to us\",[1]!preferred_alternative[[#This Row],[Anmerkung]]=\"completely full\",\"completely full\",[1]!preferred_alternative[[#This Row],[Anmerkung]]=\"Markus fragen\",\"in process of asking for more spots\",[1]!preferred_alternative[[#This Row],[Anmerkung]]=\"\",\"further updates by \"&TEXT([1]!preferred_alternative[[#This Row],[Further updates by]],\"tt.MM.jj\"))","v":"completely full"}]
[1748,{"$f":"VLOOKUP([1]!preferred_alternative[[#This Row],[Wert]],[1]LVs!A$1:U$592,2,FALSE)","v":"Applied Innovation"},{"$f":"VLOOKUP([1]!preferred_alternative[[#This Row],[Wert]],[1]LVs!A$1:U$592,17,FALSE)","v":"Master"},{"$f":"VLOOKUP([1]!preferred_alternative[[#This Row],[Wert]],[1]LVs!A$1:U$592,9,FALSE)","v":"Entrepreneurship and Innovation"},{"$f":"_xlfn.IFS([1]!preferred_alternative[[#This Row],[Anmerkung]]=\"currently spots available\",\"please check the list of available courses\",[1]!preferred_alternative[[#This Row],[Anmerkung]]=\"if you need a spot, please reach out to us\",\"if you need a spot, please reach out to us\",[1]!preferred_alternative[[#This Row],[Anmerkung]]=\"completely full\",\"completely full\",[1]!preferred_alternative[[#This Row],[Anmerkung]]=\"Markus fragen\",\"in process of asking for more spots\",[1]!preferred_alternative[[#This Row],[Anmerkung]]=\"\",\"further updates by \"&TEXT([1]!preferred_alternative[[#This Row],[Further updates by]],\"tt.MM.jj\"))","v":"completely full"}]
[1454,{"$f":"VLOOKUP([1]!preferred_alternative[[#This Row],[Wert]],[1]LVs!A$1:U$592,2,FALSE)","v":"Ethics in Marketing"},{"$f":"VLOOKUP([1]!preferred_alternative[[#This Row],[Wert]],[1]LVs!A$1:U$592,17,FALSE)","v":"Master"},{"$f":"VLOOKUP([1]!preferred_alternative[[#This Row],[Wert]],[1]LVs!A$1:U$592,9,FALSE)","v":"Marketing"},{"$f":"_xlfn.IFS([1]!preferred_alternative[[#This Row],[Anmerkung]]=\"currently spots available\",\"please check the list of available courses\",[1]!preferred_alternative[[#This Row],[Anmerkung]]=\"if you need a spot, please reach out to us\",\"if you need a spot, please reach out to us\",[1]!preferred_alternative[[#This Row],[Anmerkung]]=\"completely full\",\"completely full\",[1]!preferred_alternative[[#This Row],[Anmerkung]]=\"Markus fragen\",\"in process of asking for more spots\",[1]!preferred_alternative[[#This Row],[Anmerkung]]=\"\",\"further updates by \"&TEXT([1]!preferred_alternative[[#This Row],[Further updates by]],\"tt.MM.jj\"))","v":"completely full"}]
[1609,{"$f":"VLOOKUP([1]!preferred_alternative[[#This Row],[Wert]],[1]LVs!A$1:U$592,2,FALSE)","v":"Societal Challenges and Consumer Dynamics"},{"$f":"VLOOKUP([1]!preferred_alternative[[#This Row],[Wert]],[1]LVs!A$1:U$592,17,FALSE)","v":"Master"},{"$f":"VLOOKUP([1]!preferred_alternative[[#This Row],[Wert]],[1]LVs!A$1:U$592,9,FALSE)","v":"Marketing"},{"$f":"_xlfn.IFS([1]!preferred_alternative[[#This Row],[Anmerkung]]=\"currently spots available\",\"please check the list of available courses\",[1]!preferred_alternative[[#This Row],[Anmerkung]]=\"if you need a spot, please reach out to us\",\"if you need a spot, please reach out to us\",[1]!preferred_alternative[[#This Row],[Anmerkung]]=\"completely full\",\"completely full\",[1]!preferred_alternative[[#This Row],[Anmerkung]]=\"Markus fragen\",\"in process of asking for more spots\",[1]!preferred_alternative[[#This Row],[Anmerkung]]=\"\",\"further updates by \"&TEXT([1]!preferred_alternative[[#This Row],[Further updates by]],\"tt.MM.jj\"))","v":"completely full"}]
[1720,{"$f":"VLOOKUP([1]!preferred_alternative[[#This Row],[Wert]],[1]LVs!A$1:U$592,2,FALSE)","v":"Social Media Marketing"},{"$f":"VLOOKUP([1]!preferred_alternative[[#This Row],[Wert]],[1]LVs!A$1:U$592,17,FALSE)","v":"Master"},{"$f":"VLOOKUP([1]!preferred_alternative[[#This Row],[Wert]],[1]LVs!A$1:U$592,9,FALSE)","v":"Marketing"},{"$f":"_xlfn.IFS([1]!preferred_alternative[[#This Row],[Anmerkung]]=\"currently spots available\",\"please check the list of available courses\",[1]!preferred_alternative[[#This Row],[Anmerkung]]=\"if you need a spot, please reach out to us\",\"if you need a spot, please reach out to us\",[1]!preferred_alternative[[#This Row],[Anmerkung]]=\"completely full\",\"completely full\",[1]!preferred_alternative[[#This Row],[Anmerkung]]=\"Markus fragen\",\"in process of asking for more spots\",[1]!preferred_alternative[[#This Row],[Anmerkung]]=\"\",\"further updates by \"&TEXT([1]!preferred_alternative[[#This Row],[Further updates by]],\"tt.MM.jj\"))","v":"completely full"}]
[2674,{"$f":"VLOOKUP([1]!preferred_alternative[[#This Row],[Wert]],[1]LVs!A$1:U$592,2,FALSE)","v":"Search Engine Marketing and AI-Driven Search"},{"$f":"VLOOKUP([1]!preferred_alternative[[#This Row],[Wert]],[1]LVs!A$1:U$592,17,FALSE)","v":"Master"},{"$f":"VLOOKUP([1]!preferred_alternative[[#This Row],[Wert]],[1]LVs!A$1:U$592,9,FALSE)","v":"Information Systems"},{"$f":"_xlfn.IFS([1]!preferred_alternative[[#This Row],[Anmerkung]]=\"currently spots available\",\"please check the list of available courses\",[1]!preferred_alternative[[#This Row],[Anmerkung]]=\"if you need a spot, please reach out to us\",\"if you need a spot, please reach out to us\",[1]!preferred_alternative[[#This Row],[Anmerkung]]=\"completely full\",\"completely full\",[1]!preferred_alternative[[#This Row],[Anmerkung]]=\"Markus fragen\",\"in process of asking for more spots\",[1]!preferred_alternative[[#This Row],[Anmerkung]]=\"\",\"further updates by \"&TEXT([1]!preferred_alternative[[#This Row],[Further updates by]],\"tt.MM.jj\"))","v":"completely full"}]
[2641,{"$f":"VLOOKUP([1]!preferred_alternative[[#This Row],[Wert]],[1]LVs!A$1:U$592,2,FALSE)","v":"Managing Strong Brands"},{"$f":"VLOOKUP([1]!preferred_alternative[[#This Row],[Wert]],[1]LVs!A$1:U$592,17,FALSE)","v":"Master"},{"$f":"VLOOKUP([1]!preferred_alternative[[#This Row],[Wert]],[1]LVs!A$1:U$592,9,FALSE)","v":"Marketing"},{"$f":"_xlfn.IFS([1]!preferred_alternative[[#This Row],[Anmerkung]]=\"currently spots available\",\"please check the list of available courses\",[1]!preferred_alternative[[#This Row],[Anmerkung]]=\"if you need a spot, please reach out to us\",\"if you need a spot, please reach out to us\",[1]!preferred_alternative[[#This Row],[Anmerkung]]=\"completely full\",\"completely full\",[1]!preferred_alternative[[#This Row],[Anmerkung]]=\"Markus fragen\",\"in process of asking for more spots\",[1]!preferred_alternative[[#This Row],[Anmerkung]]=\"\",\"further updates by \"&TEXT([1]!preferred_alternative[[#This Row],[Further updates by]],\"tt.MM.jj\"))","v":"completely full"}]
[1607,{"$f":"VLOOKUP([1]!preferred_alternative[[#This Row],[Wert]],[1]LVs!A$1:U$592,2,FALSE)","v":"Charity Marketing and Donor Management"},{"$f":"VLOOKUP([1]!preferred_alternative[[#This Row],[Wert]],[1]LVs!A$1:U$592,17,FALSE)","v":"Master"},{"$f":"VLOOKUP([1]!preferred_alternative[[#This Row],[Wert]],[1]LVs!A$1:U$592,9,FALSE)","v":"Public Management"},{"$f":"_xlfn.IFS([1]!preferred_alternative[[#This Row],[Anmerkung]]=\"currently spots available\",\"please check the list of available courses\",[1]!preferred_alternative[[#This Row],[Anmerkung]]=\"if you need a spot, please reach out to us\",\"if you need a spot, please reach out to us\",[1]!preferred_alternative[[#This Row],[Anmerkung]]=\"completely full\",\"completely full\",[1]!preferred_alternative[[#This Row],[Anmerkung]]=\"Markus fragen\",\"in process of asking for more spots\",[1]!preferred_alternative[[#This Row],[Anmerkung]]=\"\",\"further updates by \"&TEXT([1]!preferred_alternative[[#This Row],[Further updates by]],\"tt.MM.jj\"))","v":"completely full"}]
[1453,{"$f":"VLOOKUP([1]!preferred_alternative[[#This Row],[Wert]],[1]LVs!A$1:U$592,2,FALSE)","v":"Customer Experience Management"},{"$f":"VLOOKUP([1]!preferred_alternative[[#This Row],[Wert]],[1]LVs!A$1:U$592,17,FALSE)","v":"Master"},{"$f":"VLOOKUP([1]!preferred_alternative[[#This Row],[Wert]],[1]LVs!A$1:U$592,9,FALSE)","v":"Human Resource Management"},{"$f":"_xlfn.IFS([1]!preferred_alternative[[#This Row],[Anmerkung]]=\"currently spots available\",\"please check the list of available courses\",[1]!preferred_alternative[[#This Row],[Anmerkung]]=\"if you need a spot, please reach out to us\",\"if you need a spot, please reach out to us\",[1]!preferred_alternative[[#This Row],[Anmerkung]]=\"completely full\",\"completely full\",[1]!preferred_alternative[[#This Row],[Anmerkung]]=\"Markus fragen\",\"in process of asking for more spots\",[1]!preferred_alternative[[#This Row],[Anmerkung]]=\"\",\"further updates by \"&TEXT([1]!preferred_alternative[[#This Row],[Further updates by]],\"tt.MM.jj\"))","v":"if you need a spot, please reach out to us"}]
[839,{"$f":"VLOOKUP([1]!preferred_alternative[[#This Row],[Wert]],[1]LVs!A$1:U$592,2,FALSE)","v":"B2B Marketing"},{"$f":"VLOOKUP([1]!preferred_alternative[[#This Row],[Wert]],[1]LVs!A$1:U$592,17,FALSE)","v":"Master"},{"$f":"VLOOKUP([1]!preferred_alternative[[#This Row],[Wert]],[1]LVs!A$1:U$592,9,FALSE)","v":"Marketing"},{"$f":"_xlfn.IFS([1]!preferred_alternative[[#This Row],[Anmerkung]]=\"currently spots available\",\"please check the list of available courses\",[1]!preferred_alternative[[#This Row],[Anmerkung]]=\"if you need a spot, please reach out to us\",\"if you need a spot, please reach out to us\",[1]!preferred_alternative[[#This Row],[Anmerkung]]=\"completely full\",\"completely full\",[1]!preferred_alternative[[#This Row],[Anmerkung]]=\"Markus fragen\",\"in process of asking for more spots\",[1]!preferred_alternative[[#This Row],[Anmerkung]]=\"\",\"further updates by \"&TEXT([1]!preferred_alternative[[#This Row],[Further updates by]],\"tt.MM.jj\"))","v":"completely full"}]
[413,{"$f":"VLOOKUP([1]!preferred_alternative[[#This Row],[Wert]],[1]LVs!A$1:U$592,2,FALSE)","v":"Effects of Inequality on Social, Economic, and Environmental Sustainability"},{"$f":"VLOOKUP([1]!preferred_alternative[[#This Row],[Wert]],[1]LVs!A$1:U$592,17,FALSE)","v":"Bachelor"},{"$f":"VLOOKUP([1]!preferred_alternative[[#This Row],[Wert]],[1]LVs!A$1:U$592,9,FALSE)","v":"Socioeconomics"},{"$f":"_xlfn.IFS([1]!preferred_alternative[[#This Row],[Anmerkung]]=\"currently spots available\",\"please check the list of available courses\",[1]!preferred_alternative[[#This Row],[Anmerkung]]=\"if you need a spot, please reach out to us\",\"if you need a spot, please reach out to us\",[1]!preferred_alternative[[#This Row],[Anmerkung]]=\"completely full\",\"completely full\",[1]!preferred_alternative[[#This Row],[Anmerkung]]=\"Markus fragen\",\"in process of asking for more spots\",[1]!preferred_alternative[[#This Row],[Anmerkung]]=\"\",\"further updates by \"&TEXT([1]!preferred_alternative[[#This Row],[Further updates by]],\"tt.MM.jj\"))","v":"completely full"}]
[1353,{"$f":"VLOOKUP([1]!preferred_alternative[[#This Row],[Wert]],[1]LVs!A$1:U$592,2,FALSE)","v":"Elective - Crowdfunding and Generative AI in Theory and Practice"},{"$f":"VLOOKUP([1]!preferred_alternative[[#This Row],[Wert]],[1]LVs!A$1:U$592,17,FALSE)","v":"Master"},{"$f":"VLOOKUP([1]!preferred_alternative[[#This Row],[Wert]],[1]LVs!A$1:U$592,9,FALSE)","v":"Information Systems"},{"$f":"_xlfn.IFS([1]!preferred_alternative[[#This Row],[Anmerkung]]=\"currently spots available\",\"please check the list of available courses\",[1]!preferred_alternative[[#This Row],[Anmerkung]]=\"if you need a spot, please reach out to us\",\"if you need a spot, please reach out to us\",[1]!preferred_alternative[[#This Row],[Anmerkung]]=\"completely full\",\"completely full\",[1]!preferred_alternative[[#This Row],[Anmerkung]]=\"Markus fragen\",\"in process of asking for more spots\",[1]!preferred_alternative[[#This Row],[Anmerkung]]=\"\",\"further updates by \"&TEXT([1]!preferred_alternative[[#This Row],[Further updates by]],\"tt.MM.jj\"))","v":"completely full"}]
[1025,{"$f":"VLOOKUP([1]!preferred_alternative[[#This Row],[Wert]],[1]LVs!A$1:U$592,2,FALSE)","v":"Elective - Valuation"},{"$f":"VLOOKUP([1]!preferred_alternative[[#This Row],[Wert]],[1]LVs!A$1:U$592,17,FALSE)","v":"Master"},{"$f":"VLOOKUP([1]!preferred_alternative[[#This Row],[Wert]],[1]LVs!A$1:U$592,9,FALSE)","v":"Finance"},{"$f":"_xlfn.IFS([1]!preferred_alternative[[#This Row],[Anmerkung]]=\"currently spots available\",\"please check the list of available courses\",[1]!preferred_alternative[[#This Row],[Anmerkung]]=\"if you need a spot, please reach out to us\",\"if you need a spot, please reach out to us\",[1]!preferred_alternative[[#This Row],[Anmerkung]]=\"completely full\",\"completely full\",[1]!preferred_alternative[[#This Row],[Anmerkung]]=\"Markus fragen\",\"in process of asking for more spots\",[1]!preferred_alternative[[#This Row],[Anmerkung]]=\"\",\"further updates by \"&TEXT([1]!preferred_alternative[[#This Row],[Further updates by]],\"tt.MM.jj\"))","v":"please check the list of available courses"}]
[1585,{"$f":"VLOOKUP([1]!preferred_alternative[[#This Row],[Wert]],[1]LVs!A$1:U$592,2,FALSE)","v":"Cross-Cultural Competence"},{"$f":"VLOOKUP([1]!preferred_alternative[[#This Row],[Wert]],[1]LVs!A$1:U$592,17,FALSE)","v":"Master"},{"$f":"VLOOKUP([1]!preferred_alternative[[#This Row],[Wert]],[1]LVs!A$1:U$592,9,FALSE)","v":"Business Skills"},{"$f":"_xlfn.IFS([1]!preferred_alternative[[#This Row],[Anmerkung]]=\"currently spots available\",\"please check the list of available courses\",[1]!preferred_alternative[[#This Row],[Anmerkung]]=\"if you need a spot, please reach out to us\",\"if you need a spot, please reach out to us\",[1]!preferred_alternative[[#This Row],[Anmerkung]]=\"completely full\",\"completely full\",[1]!preferred_alternative[[#This Row],[Anmerkung]]=\"Markus fragen\",\"in process of asking for more spots\",[1]!preferred_alternative[[#This Row],[Anmerkung]]=\"\",\"further updates by \"&TEXT([1]!preferred_alternative[[#This Row],[Further updates by]],\"tt.MM.jj\"))","v":"completely full"}]
[1344,{"$f":"VLOOKUP([1]!preferred_alternative[[#This Row],[Wert]],[1]LVs!A$1:U$592,2,FALSE)","v":"Business Project"},{"$f":"VLOOKUP([1]!preferred_alternative[[#This Row],[Wert]],[1]LVs!A$1:U$592,17,FALSE)","v":"Master"},{"$f":"VLOOKUP([1]!preferred_alternative[[#This Row],[Wert]],[1]LVs!A$1:U$592,9,FALSE)","v":"Entrepreneurship and Innovation"},{"$f":"_xlfn.IFS([1]!preferred_alternative[[#This Row],[Anmerkung]]=\"currently spots available\",\"please check the list of available courses\",[1]!preferred_alternative[[#This Row],[Anmerkung]]=\"if you need a spot, please reach out to us\",\"if you need a spot, please reach out to us\",[1]!preferred_alternative[[#This Row],[Anmerkung]]=\"completely full\",\"completely full\",[1]!preferred_alternative[[#This Row],[Anmerkung]]=\"Markus fragen\",\"in process of asking for more spots\",[1]!preferred_alternative[[#This Row],[Anmerkung]]=\"\",\"further updates by \"&TEXT([1]!preferred_alternative[[#This Row],[Further updates by]],\"tt.MM.jj\"))","v":"completely full"}]
[14,{"$f":"VLOOKUP([1]!preferred_alternative[[#This Row],[Wert]],[1]LVs!A$1:U$592,2,FALSE)","v":"Tax Treaty Law"},{"$f":"VLOOKUP([1]!preferred_alternative[[#This Row],[Wert]],[1]LVs!A$1:U$592,17,FALSE)","v":"Master"},{"$f":"VLOOKUP([1]!preferred_alternative[[#This Row],[Wert]],[1]LVs!A$1:U$592,9,FALSE)","v":"Business Law (incl. THEMIS)"},{"$f":"_xlfn.IFS([1]!preferred_alternative[[#This Row],[Anmerkung]]=\"currently spots available\",\"please check the list of available courses\",[1]!preferred_alternative[[#This Row],[Anmerkung]]=\"if you need a spot, please reach out to us\",\"if you need a spot, please reach out to us\",[1]!preferred_alternative[[#This Row],[Anmerkung]]=\"completely full\",\"completely full\",[1]!preferred_alternative[[#This Row],[Anmerkung]]=\"Markus fragen\",\"in process of asking for more spots\",[1]!preferred_alternative[[#This Row],[Anmerkung]]=\"\",\"further updates by \"&TEXT([1]!preferred_alternative[[#This Row],[Further updates by]],\"tt.MM.jj\"))","v":"completely full"}]
[1515,{"$f":"VLOOKUP([1]!preferred_alternative[[#This Row],[Wert]],[1]LVs!A$1:U$592,2,FALSE)","v":"Sustainable Economics and Business II: Inequality, Well-Being, and Sustainability"},{"$f":"VLOOKUP([1]!preferred_alternative[[#This Row],[Wert]],[1]LVs!A$1:U$592,17,FALSE)","v":"Bachelor"},{"$f":"VLOOKUP([1]!preferred_alternative[[#This Row],[Wert]],[1]LVs!A$1:U$592,9,FALSE)","v":"Socioeconomics"},{"$f":"_xlfn.IFS([1]!preferred_alternative[[#This Row],[Anmerkung]]=\"currently spots available\",\"please check the list of available courses\",[1]!preferred_alternative[[#This Row],[Anmerkung]]=\"if you need a spot, please reach out to us\",\"if you need a spot, please reach out to us\",[1]!preferred_alternative[[#This Row],[Anmerkung]]=\"completely full\",\"completely full\",[1]!preferred_alternative[[#This Row],[Anmerkung]]=\"Markus fragen\",\"in process of asking for more spots\",[1]!preferred_alternative[[#This Row],[Anmerkung]]=\"\",\"further updates by \"&TEXT([1]!preferred_alternative[[#This Row],[Further updates by]],\"tt.MM.jj\"))","v":"completely full"}]
[1612,{"$f":"VLOOKUP([1]!preferred_alternative[[#This Row],[Wert]],[1]LVs!A$1:U$592,2,FALSE)","v":"Seminar on VAT: From Basic Concepts to the Most Advanced Issues"},{"$f":"VLOOKUP([1]!preferred_alternative[[#This Row],[Wert]],[1]LVs!A$1:U$592,17,FALSE)","v":"Master"},{"$f":"VLOOKUP([1]!preferred_alternative[[#This Row],[Wert]],[1]LVs!A$1:U$592,9,FALSE)","v":"Business Law (incl. THEMIS)"},{"$f":"_xlfn.IFS([1]!preferred_alternative[[#This Row],[Anmerkung]]=\"currently spots available\",\"please check the list of available courses\",[1]!preferred_alternative[[#This Row],[Anmerkung]]=\"if you need a spot, please reach out to us\",\"if you need a spot, please reach out to us\",[1]!preferred_alternative[[#This Row],[Anmerkung]]=\"completely full\",\"completely full\",[1]!preferred_alternative[[#This Row],[Anmerkung]]=\"Markus fragen\",\"in process of asking for more spots\",[1]!preferred_alternative[[#This Row],[Anmerkung]]=\"\",\"further updates by \"&TEXT([1]!preferred_alternative[[#This Row],[Further updates by]],\"tt.MM.jj\"))","v":"completely full"}]
[2441,{"$f":"VLOOKUP([1]!preferred_alternative[[#This Row],[Wert]],[1]LVs!A$1:U$592,2,FALSE)","v":"Behavioral Public Administration"},{"$f":"VLOOKUP([1]!preferred_alternative[[#This Row],[Wert]],[1]LVs!A$1:U$592,17,FALSE)","v":"Bachelor"},{"$f":"VLOOKUP([1]!preferred_alternative[[#This Row],[Wert]],[1]LVs!A$1:U$592,9,FALSE)","v":"Public Management"},{"$f":"_xlfn.IFS([1]!preferred_alternative[[#This Row],[Anmerkung]]=\"currently spots available\",\"please check the list of available courses\",[1]!preferred_alternative[[#This Row],[Anmerkung]]=\"if you need a spot, please reach out to us\",\"if you need a spot, please reach out to us\",[1]!preferred_alternative[[#This Row],[Anmerkung]]=\"completely full\",\"completely full\",[1]!preferred_alternative[[#This Row],[Anmerkung]]=\"Markus fragen\",\"in process of asking for more spots\",[1]!preferred_alternative[[#This Row],[Anmerkung]]=\"\",\"further updates by \"&TEXT([1]!preferred_alternative[[#This Row],[Further updates by]],\"tt.MM.jj\"))","v":"if you need a spot, please reach out to us"}]
[1421,{"$f":"VLOOKUP([1]!preferred_alternative[[#This Row],[Wert]],[1]LVs!A$1:U$592,2,FALSE)","v":"Tax Treaty Law"},{"$f":"VLOOKUP([1]!preferred_alternative[[#This Row],[Wert]],[1]LVs!A$1:U$592,17,FALSE)","v":"Master"},{"$f":"VLOOKUP([1]!preferred_alternative[[#This Row],[Wert]],[1]LVs!A$1:U$592,9,FALSE)","v":"Business Law (incl. THEMIS)"},{"$f":"_xlfn.IFS([1]!preferred_alternative[[#This Row],[Anmerkung]]=\"currently spots available\",\"please check the list of available courses\",[1]!preferred_alternative[[#This Row],[Anmerkung]]=\"if you need a spot, please reach out to us\",\"if you need a spot, please reach out to us\",[1]!preferred_alternative[[#This Row],[Anmerkung]]=\"completely full\",\"completely full\",[1]!preferred_alternative[[#This Row],[Anmerkung]]=\"Markus fragen\",\"in process of asking for more spots\",[1]!preferred_alternative[[#This Row],[Anmerkung]]=\"\",\"further updates by \"&TEXT([1]!preferred_alternative[[#This Row],[Further updates by]],\"tt.MM.jj\"))","v":"please check the list of available courses"}]
[2598,{"$f":"VLOOKUP([1]!preferred_alternative[[#This Row],[Wert]],[1]LVs!A$1:U$592,2,FALSE)","v":"Business Tax Law"},{"$f":"VLOOKUP([1]!preferred_alternative[[#This Row],[Wert]],[1]LVs!A$1:U$592,17,FALSE)","v":"Master"},{"$f":"VLOOKUP([1]!preferred_alternative[[#This Row],[Wert]],[1]LVs!A$1:U$592,9,FALSE)","v":"Business Law (incl. THEMIS)"},{"$f":"_xlfn.IFS([1]!preferred_alternative[[#This Row],[Anmerkung]]=\"currently spots available\",\"please check the list of available courses\",[1]!preferred_alternative[[#This Row],[Anmerkung]]=\"if you need a spot, please reach out to us\",\"if you need a spot, please reach out to us\",[1]!preferred_alternative[[#This Row],[Anmerkung]]=\"completely full\",\"completely full\",[1]!preferred_alternative[[#This Row],[Anmerkung]]=\"Markus fragen\",\"in process of asking for more spots\",[1]!preferred_alternative[[#This Row],[Anmerkung]]=\"\",\"further updates by \"&TEXT([1]!preferred_alternative[[#This Row],[Further updates by]],\"tt.MM.jj\"))","v":"please check the list of available courses"}]
[73,{"$f":"VLOOKUP([1]!preferred_alternative[[#This Row],[Wert]],[1]LVs!A$1:U$592,2,FALSE)","v":"Business Tax Law"},{"$f":"VLOOKUP([1]!preferred_alternative[[#This Row],[Wert]],[1]LVs!A$1:U$592,17,FALSE)","v":"Master"},{"$f":"VLOOKUP([1]!preferred_alternative[[#This Row],[Wert]],[1]LVs!A$1:U$592,9,FALSE)","v":"Business Law (incl. THEMIS)"},{"$f":"_xlfn.IFS([1]!preferred_alternative[[#This Row],[Anmerkung]]=\"currently spots available\",\"please check the list of available courses\",[1]!preferred_alternative[[#This Row],[Anmerkung]]=\"if you need a spot, please reach out to us\",\"if you need a spot, please reach out to us\",[1]!preferred_alternative[[#This Row],[Anmerkung]]=\"completely full\",\"completely full\",[1]!preferred_alternative[[#This Row],[Anmerkung]]=\"Markus fragen\",\"in process of asking for more spots\",[1]!preferred_alternative[[#This Row],[Anmerkung]]=\"\",\"further updates by \"&TEXT([1]!preferred_alternative[[#This Row],[Further updates by]],\"tt.MM.jj\"))","v":"please check the list of available courses"}]
[1026,{"$f":"VLOOKUP([1]!preferred_alternative[[#This Row],[Wert]],[1]LVs!A$1:U$592,2,FALSE)","v":"Macroeconomics"},{"$f":"VLOOKUP([1]!preferred_alternative[[#This Row],[Wert]],[1]LVs!A$1:U$592,17,FALSE)","v":"Bachelor"},{"$f":"VLOOKUP([1]!preferred_alternative[[#This Row],[Wert]],[1]LVs!A$1:U$592,9,FALSE)","v":"Economics"},{"$f":"_xlfn.IFS([1]!preferred_alternative[[#This Row],[Anmerkung]]=\"currently spots available\",\"please check the list of available courses\",[1]!preferred_alternative[[#This Row],[Anmerkung]]=\"if you need a spot, please reach out to us\",\"if you need a spot, please reach out to us\",[1]!preferred_alternative[[#This Row],[Anmerkung]]=\"completely full\",\"completely full\",[1]!preferred_alternative[[#This Row],[Anmerkung]]=\"Markus fragen\",\"in process of asking for more spots\",[1]!preferred_alternative[[#This Row],[Anmerkung]]=\"\",\"further updates by \"&TEXT([1]!preferred_alternative[[#This Row],[Further updates by]],\"tt.MM.jj\"))","v":"please check the list of available courses"}]
[2472,{"$f":"VLOOKUP([1]!preferred_alternative[[#This Row],[Wert]],[1]LVs!A$1:U$592,2,FALSE)","v":"Elective - Sustainable Incentive Systems"},{"$f":"VLOOKUP([1]!preferred_alternative[[#This Row],[Wert]],[1]LVs!A$1:U$592,17,FALSE)","v":"Master"},{"$f":"VLOOKUP([1]!preferred_alternative[[#This Row],[Wert]],[1]LVs!A$1:U$592,9,FALSE)","v":"Strategic Management"},{"$f":"_xlfn.IFS([1]!preferred_alternative[[#This Row],[Anmerkung]]=\"currently spots available\",\"please check the list of available courses\",[1]!preferred_alternative[[#This Row],[Anmerkung]]=\"if you need a spot, please reach out to us\",\"if you need a spot, please reach out to us\",[1]!preferred_alternative[[#This Row],[Anmerkung]]=\"completely full\",\"completely full\",[1]!preferred_alternative[[#This Row],[Anmerkung]]=\"Markus fragen\",\"in process of asking for more spots\",[1]!preferred_alternative[[#This Row],[Anmerkung]]=\"\",\"further updates by \"&TEXT([1]!preferred_alternative[[#This Row],[Further updates by]],\"tt.MM.jj\"))","v":"please check the list of available courses"}]
[2628,{"$f":"VLOOKUP([1]!preferred_alternative[[#This Row],[Wert]],[1]LVs!A$1:U$592,2,FALSE)","v":"Elective - AI-Driven Decision Making"},{"$f":"VLOOKUP([1]!preferred_alternative[[#This Row],[Wert]],[1]LVs!A$1:U$592,17,FALSE)","v":"Master"},{"$f":"VLOOKUP([1]!preferred_alternative[[#This Row],[Wert]],[1]LVs!A$1:U$592,9,FALSE)","v":"Information Systems"},{"$f":"_xlfn.IFS([1]!preferred_alternative[[#This Row],[Anmerkung]]=\"currently spots available\",\"please check the list of available courses\",[1]!preferred_alternative[[#This Row],[Anmerkung]]=\"if you need a spot, please reach out to us\",\"if you need a spot, please reach out to us\",[1]!preferred_alternative[[#This Row],[Anmerkung]]=\"completely full\",\"completely full\",[1]!preferred_alternative[[#This Row],[Anmerkung]]=\"Markus fragen\",\"in process of asking for more spots\",[1]!preferred_alternative[[#This Row],[Anmerkung]]=\"\",\"further updates by \"&TEXT([1]!preferred_alternative[[#This Row],[Further updates by]],\"tt.MM.jj\"))","v":"completely full"}]
[1146,{"$f":"VLOOKUP([1]!preferred_alternative[[#This Row],[Wert]],[1]LVs!A$1:U$592,2,FALSE)","v":"Selected Diversity Dimensions and Intersectionality"},{"$f":"VLOOKUP([1]!preferred_alternative[[#This Row],[Wert]],[1]LVs!A$1:U$592,17,FALSE)","v":"Bachelor"},{"$f":"VLOOKUP([1]!preferred_alternative[[#This Row],[Wert]],[1]LVs!A$1:U$592,9,FALSE)","v":"Gender and Diversity Management"},{"$f":"_xlfn.IFS([1]!preferred_alternative[[#This Row],[Anmerkung]]=\"currently spots available\",\"please check the list of available courses\",[1]!preferred_alternative[[#This Row],[Anmerkung]]=\"if you need a spot, please reach out to us\",\"if you need a spot, please reach out to us\",[1]!preferred_alternative[[#This Row],[Anmerkung]]=\"completely full\",\"completely full\",[1]!preferred_alternative[[#This Row],[Anmerkung]]=\"Markus fragen\",\"in process of asking for more spots\",[1]!preferred_alternative[[#This Row],[Anmerkung]]=\"\",\"further updates by \"&TEXT([1]!preferred_alternative[[#This Row],[Further updates by]],\"tt.MM.jj\"))","v":"if you need a spot, please reach out to us"}]
[1479,{"$f":"VLOOKUP([1]!preferred_alternative[[#This Row],[Wert]],[1]LVs!A$1:U$592,2,FALSE)","v":"Strategic Management"},{"$f":"VLOOKUP([1]!preferred_alternative[[#This Row],[Wert]],[1]LVs!A$1:U$592,17,FALSE)","v":"Master"},{"$f":"VLOOKUP([1]!preferred_alternative[[#This Row],[Wert]],[1]LVs!A$1:U$592,9,FALSE)","v":"Management"},{"$f":"_xlfn.IFS([1]!preferred_alternative[[#This Row],[Anmerkung]]=\"currently spots available\",\"please check the list of available courses\",[1]!preferred_alternative[[#This Row],[Anmerkung]]=\"if you need a spot, please reach out to us\",\"if you need a spot, please reach out to us\",[1]!preferred_alternative[[#This Row],[Anmerkung]]=\"completely full\",\"completely full\",[1]!preferred_alternative[[#This Row],[Anmerkung]]=\"Markus fragen\",\"in process of asking for more spots\",[1]!preferred_alternative[[#This Row],[Anmerkung]]=\"\",\"further updates by \"&TEXT([1]!preferred_alternative[[#This Row],[Further updates by]],\"tt.MM.jj\"))","v":"completely full"}]
[509,{"$f":"VLOOKUP([1]!preferred_alternative[[#This Row],[Wert]],[1]LVs!A$1:U$592,2,FALSE)","v":"Course V - Final Seminar"},{"$f":"VLOOKUP([1]!preferred_alternative[[#This Row],[Wert]],[1]LVs!A$1:U$592,17,FALSE)","v":"Bachelor"},{"$f":"VLOOKUP([1]!preferred_alternative[[#This Row],[Wert]],[1]LVs!A$1:U$592,9,FALSE)","v":"Strategic Management"},{"$f":"_xlfn.IFS([1]!preferred_alternative[[#This Row],[Anmerkung]]=\"currently spots available\",\"please check the list of available courses\",[1]!preferred_alternative[[#This Row],[Anmerkung]]=\"if you need a spot, please reach out to us\",\"if you need a spot, please reach out to us\",[1]!preferred_alternative[[#This Row],[Anmerkung]]=\"completely full\",\"completely full\",[1]!preferred_alternative[[#This Row],[Anmerkung]]=\"Markus fragen\",\"in process of asking for more spots\",[1]!preferred_alternative[[#This Row],[Anmerkung]]=\"\",\"further updates by \"&TEXT([1]!preferred_alternative[[#This Row],[Further updates by]],\"tt.MM.jj\"))","v":"completely full"}]
[853,{"$f":"VLOOKUP([1]!preferred_alternative[[#This Row],[Wert]],[1]LVs!A$1:U$592,2,FALSE)","v":"Social Network Analysis: Creating Innovations through Networks"},{"$f":"VLOOKUP([1]!preferred_alternative[[#This Row],[Wert]],[1]LVs!A$1:U$592,17,FALSE)","v":"Master"},{"$f":"VLOOKUP([1]!preferred_alternative[[#This Row],[Wert]],[1]LVs!A$1:U$592,9,FALSE)","v":"Business Skills"},{"$f":"_xlfn.IFS([1]!preferred_alternative[[#This Row],[Anmerkung]]=\"currently spots available\",\"please check the list of available courses\",[1]!preferred_alternative[[#This Row],[Anmerkung]]=\"if you need a spot, please reach out to us\",\"if you need a spot, please reach out to us\",[1]!preferred_alternative[[#This Row],[Anmerkung]]=\"completely full\",\"completely full\",[1]!preferred_alternative[[#This Row],[Anmerkung]]=\"Markus fragen\",\"in process of asking for more spots\",[1]!preferred_alternative[[#This Row],[Anmerkung]]=\"\",\"further updates by \"&TEXT([1]!preferred_alternative[[#This Row],[Further updates by]],\"tt.MM.jj\"))","v":"please check the list of available courses"}]
[442,{"$f":"VLOOKUP([1]!preferred_alternative[[#This Row],[Wert]],[1]LVs!A$1:U$592,2,FALSE)","v":"Personal Skills - Visual Thinking and Innovation Facilitation"},{"$f":"VLOOKUP([1]!preferred_alternative[[#This Row],[Wert]],[1]LVs!A$1:U$592,17,FALSE)","v":"Master"},{"$f":"VLOOKUP([1]!preferred_alternative[[#This Row],[Wert]],[1]LVs!A$1:U$592,9,FALSE)","v":"Business Skills"},{"$f":"_xlfn.IFS([1]!preferred_alternative[[#This Row],[Anmerkung]]=\"currently spots available\",\"please check the list of available courses\",[1]!preferred_alternative[[#This Row],[Anmerkung]]=\"if you need a spot, please reach out to us\",\"if you need a spot, please reach out to us\",[1]!preferred_alternative[[#This Row],[Anmerkung]]=\"completely full\",\"completely full\",[1]!preferred_alternative[[#This Row],[Anmerkung]]=\"Markus fragen\",\"in process of asking for more spots\",[1]!preferred_alternative[[#This Row],[Anmerkung]]=\"\",\"further updates by \"&TEXT([1]!preferred_alternative[[#This Row],[Further updates by]],\"tt.MM.jj\"))","v":"completely full"}]
[510,{"$f":"VLOOKUP([1]!preferred_alternative[[#This Row],[Wert]],[1]LVs!A$1:U$592,2,FALSE)","v":"Course V - Final Seminar"},{"$f":"VLOOKUP([1]!preferred_alternative[[#This Row],[Wert]],[1]LVs!A$1:U$592,17,FALSE)","v":"Bachelor"},{"$f":"VLOOKUP([1]!preferred_alternative[[#This Row],[Wert]],[1]LVs!A$1:U$592,9,FALSE)","v":"Strategic Management"},{"$f":"_xlfn.IFS([1]!preferred_alternative[[#This Row],[Anmerkung]]=\"currently spots available\",\"please check the list of available courses\",[1]!preferred_alternative[[#This Row],[Anmerkung]]=\"if you need a spot, please reach out to us\",\"if you need a spot, please reach out to us\",[1]!preferred_alternative[[#This Row],[Anmerkung]]=\"completely full\",\"completely full\",[1]!preferred_alternative[[#This Row],[Anmerkung]]=\"Markus fragen\",\"in process of asking for more spots\",[1]!preferred_alternative[[#This Row],[Anmerkung]]=\"\",\"further updates by \"&TEXT([1]!preferred_alternative[[#This Row],[Further updates by]],\"tt.MM.jj\"))","v":"completely full"}]
[2027,{"$f":"VLOOKUP([1]!preferred_alternative[[#This Row],[Wert]],[1]LVs!A$1:U$592,2,FALSE)","v":"Fundamentals of Strategic Management and Leadership"},{"$f":"VLOOKUP([1]!preferred_alternative[[#This Row],[Wert]],[1]LVs!A$1:U$592,17,FALSE)","v":"Bachelor"},{"$f":"VLOOKUP([1]!preferred_alternative[[#This Row],[Wert]],[1]LVs!A$1:U$592,9,FALSE)","v":"Strategic Management"},{"$f":"_xlfn.IFS([1]!preferred_alternative[[#This Row],[Anmerkung]]=\"currently spots available\",\"please check the list of available courses\",[1]!preferred_alternative[[#This Row],[Anmerkung]]=\"if you need a spot, please reach out to us\",\"if you need a spot, please reach out to us\",[1]!preferred_alternative[[#This Row],[Anmerkung]]=\"completely full\",\"completely full\",[1]!preferred_alternative[[#This Row],[Anmerkung]]=\"Markus fragen\",\"in process of asking for more spots\",[1]!preferred_alternative[[#This Row],[Anmerkung]]=\"\",\"further updates by \"&TEXT([1]!preferred_alternative[[#This Row],[Further updates by]],\"tt.MM.jj\"))","v":"completely full"}]
[572,{"$f":"VLOOKUP([1]!preferred_alternative[[#This Row],[Wert]],[1]LVs!A$1:U$592,2,FALSE)","v":"Elective - Real Estate Economics and Location II"},{"$f":"VLOOKUP([1]!preferred_alternative[[#This Row],[Wert]],[1]LVs!A$1:U$592,17,FALSE)","v":"Bachelor"},{"$f":"VLOOKUP([1]!preferred_alternative[[#This Row],[Wert]],[1]LVs!A$1:U$592,9,FALSE)","v":"Entrepreneurship and Innovation"},{"$f":"_xlfn.IFS([1]!preferred_alternative[[#This Row],[Anmerkung]]=\"currently spots available\",\"please check the list of available courses\",[1]!preferred_alternative[[#This Row],[Anmerkung]]=\"if you need a spot, please reach out to us\",\"if you need a spot, please reach out to us\",[1]!preferred_alternative[[#This Row],[Anmerkung]]=\"completely full\",\"completely full\",[1]!preferred_alternative[[#This Row],[Anmerkung]]=\"Markus fragen\",\"in process of asking for more spots\",[1]!preferred_alternative[[#This Row],[Anmerkung]]=\"\",\"further updates by \"&TEXT([1]!preferred_alternative[[#This Row],[Further updates by]],\"tt.MM.jj\"))","v":"completely full"}]
[862,{"$f":"VLOOKUP([1]!preferred_alternative[[#This Row],[Wert]],[1]LVs!A$1:U$592,2,FALSE)","v":"Specialization in Business Administration Course IV - Strategic Management and Organizational Design"},{"$f":"VLOOKUP([1]!preferred_alternative[[#This Row],[Wert]],[1]LVs!A$1:U$592,17,FALSE)","v":"Bachelor"},{"$f":"VLOOKUP([1]!preferred_alternative[[#This Row],[Wert]],[1]LVs!A$1:U$592,9,FALSE)","v":"Strategic Management"},{"$f":"_xlfn.IFS([1]!preferred_alternative[[#This Row],[Anmerkung]]=\"currently spots available\",\"please check the list of available courses\",[1]!preferred_alternative[[#This Row],[Anmerkung]]=\"if you need a spot, please reach out to us\",\"if you need a spot, please reach out to us\",[1]!preferred_alternative[[#This Row],[Anmerkung]]=\"completely full\",\"completely full\",[1]!preferred_alternative[[#This Row],[Anmerkung]]=\"Markus fragen\",\"in process of asking for more spots\",[1]!preferred_alternative[[#This Row],[Anmerkung]]=\"\",\"further updates by \"&TEXT([1]!preferred_alternative[[#This Row],[Further updates by]],\"tt.MM.jj\"))","v":"completely full"}]
[848,{"$f":"VLOOKUP([1]!preferred_alternative[[#This Row],[Wert]],[1]LVs!A$1:U$592,2,FALSE)","v":"Political Economics, Theory and History"},{"$f":"VLOOKUP([1]!preferred_alternative[[#This Row],[Wert]],[1]LVs!A$1:U$592,17,FALSE)","v":"Bachelor"},{"$f":"VLOOKUP([1]!preferred_alternative[[#This Row],[Wert]],[1]LVs!A$1:U$592,9,FALSE)","v":"History, Culture and Philosophy"},{"$f":"_xlfn.IFS([1]!preferred_alternative[[#This Row],[Anmerkung]]=\"currently spots available\",\"please check the list of available courses\",[1]!preferred_alternative[[#This Row],[Anmerkung]]=\"if you need a spot, please reach out to us\",\"if you need a spot, please reach out to us\",[1]!preferred_alternative[[#This Row],[Anmerkung]]=\"completely full\",\"completely full\",[1]!preferred_alternative[[#This Row],[Anmerkung]]=\"Markus fragen\",\"in process of asking for more spots\",[1]!preferred_alternative[[#This Row],[Anmerkung]]=\"\",\"further updates by \"&TEXT([1]!preferred_alternative[[#This Row],[Further updates by]],\"tt.MM.jj\"))","v":"please check the list of available courses"}]
[502,{"$f":"VLOOKUP([1]!preferred_alternative[[#This Row],[Wert]],[1]LVs!A$1:U$592,2,FALSE)","v":"Elective - Strategic Corporate Responses to Climate Change"},{"$f":"VLOOKUP([1]!preferred_alternative[[#This Row],[Wert]],[1]LVs!A$1:U$592,17,FALSE)","v":"Master"},{"$f":"VLOOKUP([1]!preferred_alternative[[#This Row],[Wert]],[1]LVs!A$1:U$592,9,FALSE)","v":"Entrepreneurship and Innovation"},{"$f":"_xlfn.IFS([1]!preferred_alternative[[#This Row],[Anmerkung]]=\"currently spots available\",\"please check the list of available courses\",[1]!preferred_alternative[[#This Row],[Anmerkung]]=\"if you need a spot, please reach out to us\",\"if you need a spot, please reach out to us\",[1]!preferred_alternative[[#This Row],[Anmerkung]]=\"completely full\",\"completely full\",[1]!preferred_alternative[[#This Row],[Anmerkung]]=\"Markus fragen\",\"in process of asking for more spots\",[1]!preferred_alternative[[#This Row],[Anmerkung]]=\"\",\"further updates by \"&TEXT([1]!preferred_alternative[[#This Row],[Further updates by]],\"tt.MM.jj\"))","v":"completely full"}]
[254,{"$f":"VLOOKUP([1]!preferred_alternative[[#This Row],[Wert]],[1]LVs!A$1:U$592,2,FALSE)","v":"International Supply Chain Operations"},{"$f":"VLOOKUP([1]!preferred_alternative[[#This Row],[Wert]],[1]LVs!A$1:U$592,17,FALSE)","v":"Bachelor"},{"$f":"VLOOKUP([1]!preferred_alternative[[#This Row],[Wert]],[1]LVs!A$1:U$592,9,FALSE)","v":"Operations and Supply Chain Management"},{"$f":"_xlfn.IFS([1]!preferred_alternative[[#This Row],[Anmerkung]]=\"currently spots available\",\"please check the list of available courses\",[1]!preferred_alternative[[#This Row],[Anmerkung]]=\"if you need a spot, please reach out to us\",\"if you need a spot, please reach out to us\",[1]!preferred_alternative[[#This Row],[Anmerkung]]=\"completely full\",\"completely full\",[1]!preferred_alternative[[#This Row],[Anmerkung]]=\"Markus fragen\",\"in process of asking for more spots\",[1]!preferred_alternative[[#This Row],[Anmerkung]]=\"\",\"further updates by \"&TEXT([1]!preferred_alternative[[#This Row],[Further updates by]],\"tt.MM.jj\"))","v":"completely full"}]
[1250,{"$f":"VLOOKUP([1]!preferred_alternative[[#This Row],[Wert]],[1]LVs!A$1:U$592,2,FALSE)","v":"Empirical Quantitative Research"},{"$f":"VLOOKUP([1]!preferred_alternative[[#This Row],[Wert]],[1]LVs!A$1:U$592,17,FALSE)","v":"Bachelor"},{"$f":"VLOOKUP([1]!preferred_alternative[[#This Row],[Wert]],[1]LVs!A$1:U$592,9,FALSE)","v":"Research"},{"$f":"_xlfn.IFS([1]!preferred_alternative[[#This Row],[Anmerkung]]=\"currently spots available\",\"please check the list of available courses\",[1]!preferred_alternative[[#This Row],[Anmerkung]]=\"if you need a spot, please reach out to us\",\"if you need a spot, please reach out to us\",[1]!preferred_alternative[[#This Row],[Anmerkung]]=\"completely full\",\"completely full\",[1]!preferred_alternative[[#This Row],[Anmerkung]]=\"Markus fragen\",\"in process of asking for more spots\",[1]!preferred_alternative[[#This Row],[Anmerkung]]=\"\",\"further updates by \"&TEXT([1]!preferred_alternative[[#This Row],[Further updates by]],\"tt.MM.jj\"))","v":"please check the list of available courses"}]
[959,{"$f":"VLOOKUP([1]!preferred_alternative[[#This Row],[Wert]],[1]LVs!A$1:U$592,2,FALSE)","v":"Special Topics in Economic Policy"},{"$f":"VLOOKUP([1]!preferred_alternative[[#This Row],[Wert]],[1]LVs!A$1:U$592,17,FALSE)","v":"Bachelor"},{"$f":"VLOOKUP([1]!preferred_alternative[[#This Row],[Wert]],[1]LVs!A$1:U$592,9,FALSE)","v":"Economics"},{"$f":"_xlfn.IFS([1]!preferred_alternative[[#This Row],[Anmerkung]]=\"currently spots available\",\"please check the list of available courses\",[1]!preferred_alternative[[#This Row],[Anmerkung]]=\"if you need a spot, please reach out to us\",\"if you need a spot, please reach out to us\",[1]!preferred_alternative[[#This Row],[Anmerkung]]=\"completely full\",\"completely full\",[1]!preferred_alternative[[#This Row],[Anmerkung]]=\"Markus fragen\",\"in process of asking for more spots\",[1]!preferred_alternative[[#This Row],[Anmerkung]]=\"\",\"further updates by \"&TEXT([1]!preferred_alternative[[#This Row],[Further updates by]],\"tt.MM.jj\"))","v":"please check the list of available courses"}]
[1451,{"$f":"VLOOKUP([1]!preferred_alternative[[#This Row],[Wert]],[1]LVs!A$1:U$592,2,FALSE)","v":"S3ATF1/2 Advanced Topics in International Finance"},{"$f":"VLOOKUP([1]!preferred_alternative[[#This Row],[Wert]],[1]LVs!A$1:U$592,17,FALSE)","v":"Master"},{"$f":"VLOOKUP([1]!preferred_alternative[[#This Row],[Wert]],[1]LVs!A$1:U$592,9,FALSE)","v":"Finance"},{"$f":"_xlfn.IFS([1]!preferred_alternative[[#This Row],[Anmerkung]]=\"currently spots available\",\"please check the list of available courses\",[1]!preferred_alternative[[#This Row],[Anmerkung]]=\"if you need a spot, please reach out to us\",\"if you need a spot, please reach out to us\",[1]!preferred_alternative[[#This Row],[Anmerkung]]=\"completely full\",\"completely full\",[1]!preferred_alternative[[#This Row],[Anmerkung]]=\"Markus fragen\",\"in process of asking for more spots\",[1]!preferred_alternative[[#This Row],[Anmerkung]]=\"\",\"further updates by \"&TEXT([1]!preferred_alternative[[#This Row],[Further updates by]],\"tt.MM.jj\"))","v":"please check the list of available courses"}]
[593,{"$f":"VLOOKUP([1]!preferred_alternative[[#This Row],[Wert]],[1]LVs!A$1:U$592,2,FALSE)","v":"Regional Economics I"},{"$f":"VLOOKUP([1]!preferred_alternative[[#This Row],[Wert]],[1]LVs!A$1:U$592,17,FALSE)","v":"Bachelor"},{"$f":"VLOOKUP([1]!preferred_alternative[[#This Row],[Wert]],[1]LVs!A$1:U$592,9,FALSE)","v":"Economics"},{"$f":"_xlfn.IFS([1]!preferred_alternative[[#This Row],[Anmerkung]]=\"currently spots available\",\"please check the list of available courses\",[1]!preferred_alternative[[#This Row],[Anmerkung]]=\"if you need a spot, please reach out to us\",\"if you need a spot, please reach out to us\",[1]!preferred_alternative[[#This Row],[Anmerkung]]=\"completely full\",\"completely full\",[1]!preferred_alternative[[#This Row],[Anmerkung]]=\"Markus fragen\",\"in process of asking for more spots\",[1]!preferred_alternative[[#This Row],[Anmerkung]]=\"\",\"further updates by \"&TEXT([1]!preferred_alternative[[#This Row],[Further updates by]],\"tt.MM.jj\"))","v":"please check the list of available courses"}]
[1688,{"$f":"VLOOKUP([1]!preferred_alternative[[#This Row],[Wert]],[1]LVs!A$1:U$592,2,FALSE)","v":"Elective Course II - International Economics and Development"},{"$f":"VLOOKUP([1]!preferred_alternative[[#This Row],[Wert]],[1]LVs!A$1:U$592,17,FALSE)","v":"Bachelor"},{"$f":"VLOOKUP([1]!preferred_alternative[[#This Row],[Wert]],[1]LVs!A$1:U$592,9,FALSE)","v":"Economics"},{"$f":"_xlfn.IFS([1]!preferred_alternative[[#This Row],[Anmerkung]]=\"currently spots available\",\"please check the list of available courses\",[1]!preferred_alternative[[#This Row],[Anmerkung]]=\"if you need a spot, please reach out to us\",\"if you need a spot, please reach out to us\",[1]!preferred_alternative[[#This Row],[Anmerkung]]=\"completely full\",\"completely full\",[1]!preferred_alternative[[#This Row],[Anmerkung]]=\"Markus fragen\",\"in process of asking for more spots\",[1]!preferred_alternative[[#This Row],[Anmerkung]]=\"\",\"further updates by \"&TEXT([1]!preferred_alternative[[#This Row],[Further updates by]],\"tt.MM.jj\"))","v":"if you need a spot, please reach out to us"}]
[1444,{"$f":"VLOOKUP([1]!preferred_alternative[[#This Row],[Wert]],[1]LVs!A$1:U$592,2,FALSE)","v":"Working in Teams"},{"$f":"VLOOKUP([1]!preferred_alternative[[#This Row],[Wert]],[1]LVs!A$1:U$592,17,FALSE)","v":"Bachelor"},{"$f":"VLOOKUP([1]!preferred_alternative[[#This Row],[Wert]],[1]LVs!A$1:U$592,9,FALSE)","v":"Business Skills"},{"$f":"_xlfn.IFS([1]!preferred_alternative[[#This Row],[Anmerkung]]=\"currently spots available\",\"please check the list of available courses\",[1]!preferred_alternative[[#This Row],[Anmerkung]]=\"if you need a spot, please reach out to us\",\"if you need a spot, please reach out to us\",[1]!preferred_alternative[[#This Row],[Anmerkung]]=\"completely full\",\"completely full\",[1]!preferred_alternative[[#This Row],[Anmerkung]]=\"Markus fragen\",\"in process of asking for more spots\",[1]!preferred_alternative[[#This Row],[Anmerkung]]=\"\",\"further updates by \"&TEXT([1]!preferred_alternative[[#This Row],[Further updates by]],\"tt.MM.jj\"))","v":"completely full"}]
[1312,{"$f":"VLOOKUP([1]!preferred_alternative[[#This Row],[Wert]],[1]LVs!A$1:U$592,2,FALSE)","v":"S3INV1 Active Portfolio Management I"},{"$f":"VLOOKUP([1]!preferred_alternative[[#This Row],[Wert]],[1]LVs!A$1:U$592,17,FALSE)","v":"Master"},{"$f":"VLOOKUP([1]!preferred_alternative[[#This Row],[Wert]],[1]LVs!A$1:U$592,9,FALSE)","v":"Finance"},{"$f":"_xlfn.IFS([1]!preferred_alternative[[#This Row],[Anmerkung]]=\"currently spots available\",\"please check the list of available courses\",[1]!preferred_alternative[[#This Row],[Anmerkung]]=\"if you need a spot, please reach out to us\",\"if you need a spot, please reach out to us\",[1]!preferred_alternative[[#This Row],[Anmerkung]]=\"completely full\",\"completely full\",[1]!preferred_alternative[[#This Row],[Anmerkung]]=\"Markus fragen\",\"in process of asking for more spots\",[1]!preferred_alternative[[#This Row],[Anmerkung]]=\"\",\"further updates by \"&TEXT([1]!preferred_alternative[[#This Row],[Further updates by]],\"tt.MM.jj\"))","v":"completely full"}]
[2068,{"$f":"VLOOKUP([1]!preferred_alternative[[#This Row],[Wert]],[1]LVs!A$1:U$592,2,FALSE)","v":"Economic Modeling"},{"$f":"VLOOKUP([1]!preferred_alternative[[#This Row],[Wert]],[1]LVs!A$1:U$592,17,FALSE)","v":"Bachelor"},{"$f":"VLOOKUP([1]!preferred_alternative[[#This Row],[Wert]],[1]LVs!A$1:U$592,9,FALSE)","v":"Economics"},{"$f":"_xlfn.IFS([1]!preferred_alternative[[#This Row],[Anmerkung]]=\"currently spots available\",\"please check the list of available courses\",[1]!preferred_alternative[[#This Row],[Anmerkung]]=\"if you need a spot, please reach out to us\",\"if you need a spot, please reach out to us\",[1]!preferred_alternative[[#This Row],[Anmerkung]]=\"completely full\",\"completely full\",[1]!preferred_alternative[[#This Row],[Anmerkung]]=\"Markus fragen\",\"in process of asking for more spots\",[1]!preferred_alternative[[#This Row],[Anmerkung]]=\"\",\"further updates by \"&TEXT([1]!preferred_alternative[[#This Row],[Further updates by]],\"tt.MM.jj\"))","v":"if you need a spot, please reach out to us"}]
[2237,{"$f":"VLOOKUP([1]!preferred_alternative[[#This Row],[Wert]],[1]LVs!A$1:U$592,2,FALSE)","v":"Political Economics, Theory and History"},{"$f":"VLOOKUP([1]!preferred_alternative[[#This Row],[Wert]],[1]LVs!A$1:U$592,17,FALSE)","v":"Bachelor"},{"$f":"VLOOKUP([1]!preferred_alternative[[#This Row],[Wert]],[1]LVs!A$1:U$592,9,FALSE)","v":"Economics"},{"$f":"_xlfn.IFS([1]!preferred_alternative[[#This Row],[Anmerkung]]=\"currently spots available\",\"please check the list of available courses\",[1]!preferred_alternative[[#This Row],[Anmerkung]]=\"if you need a spot, please reach out to us\",\"if you need a spot, please reach out to us\",[1]!preferred_alternative[[#This Row],[Anmerkung]]=\"completely full\",\"completely full\",[1]!preferred_alternative[[#This Row],[Anmerkung]]=\"Markus fragen\",\"in process of asking for more spots\",[1]!preferred_alternative[[#This Row],[Anmerkung]]=\"\",\"further updates by \"&TEXT([1]!preferred_alternative[[#This Row],[Further updates by]],\"tt.MM.jj\"))","v":"completely full"}]
[214,{"$f":"VLOOKUP([1]!preferred_alternative[[#This Row],[Wert]],[1]LVs!A$1:U$592,2,FALSE)","v":"Statistics for Economics with R"},{"$f":"VLOOKUP([1]!preferred_alternative[[#This Row],[Wert]],[1]LVs!A$1:U$592,17,FALSE)","v":"Bachelor"},{"$f":"VLOOKUP([1]!preferred_alternative[[#This Row],[Wert]],[1]LVs!A$1:U$592,9,FALSE)","v":"Economics"},{"$f":"_xlfn.IFS([1]!preferred_alternative[[#This Row],[Anmerkung]]=\"currently spots available\",\"please check the list of available courses\",[1]!preferred_alternative[[#This Row],[Anmerkung]]=\"if you need a spot, please reach out to us\",\"if you need a spot, please reach out to us\",[1]!preferred_alternative[[#This Row],[Anmerkung]]=\"completely full\",\"completely full\",[1]!preferred_alternative[[#This Row],[Anmerkung]]=\"Markus fragen\",\"in process of asking for more spots\",[1]!preferred_alternative[[#This Row],[Anmerkung]]=\"\",\"further updates by \"&TEXT([1]!preferred_alternative[[#This Row],[Further updates by]],\"tt.MM.jj\"))","v":"please check the list of available courses"}]
[483,{"$f":"VLOOKUP([1]!preferred_alternative[[#This Row],[Wert]],[1]LVs!A$1:U$592,2,FALSE)","v":"Statistics for Economics with R"},{"$f":"VLOOKUP([1]!preferred_alternative[[#This Row],[Wert]],[1]LVs!A$1:U$592,17,FALSE)","v":"Bachelor"},{"$f":"VLOOKUP([1]!preferred_alternative[[#This Row],[Wert]],[1]LVs!A$1:U$592,9,FALSE)","v":"Economics"},{"$f":"_xlfn.IFS([1]!preferred_alternative[[#This Row],[Anmerkung]]=\"currently spots available\",\"please check the list of available courses\",[1]!preferred_alternative[[#This Row],[Anmerkung]]=\"if you need a spot, please reach out to us\",\"if you need a spot, please reach out to us\",[1]!preferred_alternative[[#This Row],[Anmerkung]]=\"completely full\",\"completely full\",[1]!preferred_alternative[[#This Row],[Anmerkung]]=\"Markus fragen\",\"in process of asking for more spots\",[1]!preferred_alternative[[#This Row],[Anmerkung]]=\"\",\"further updates by \"&TEXT([1]!preferred_alternative[[#This Row],[Further updates by]],\"tt.MM.jj\"))","v":"please check the list of available courses"}]
[1311,{"$f":"VLOOKUP([1]!preferred_alternative[[#This Row],[Wert]],[1]LVs!A$1:U$592,2,FALSE)","v":"S3INTF1 International Finance I"},{"$f":"VLOOKUP([1]!preferred_alternative[[#This Row],[Wert]],[1]LVs!A$1:U$592,17,FALSE)","v":"Master"},{"$f":"VLOOKUP([1]!preferred_alternative[[#This Row],[Wert]],[1]LVs!A$1:U$592,9,FALSE)","v":"Finance"},{"$f":"_xlfn.IFS([1]!preferred_alternative[[#This Row],[Anmerkung]]=\"currently spots available\",\"please check the list of available courses\",[1]!preferred_alternative[[#This Row],[Anmerkung]]=\"if you need a spot, please reach out to us\",\"if you need a spot, please reach out to us\",[1]!preferred_alternative[[#This Row],[Anmerkung]]=\"completely full\",\"completely full\",[1]!preferred_alternative[[#This Row],[Anmerkung]]=\"Markus fragen\",\"in process of asking for more spots\",[1]!preferred_alternative[[#This Row],[Anmerkung]]=\"\",\"further updates by \"&TEXT([1]!preferred_alternative[[#This Row],[Further updates by]],\"tt.MM.jj\"))","v":"please check the list of available courses"}]
[549,{"$f":"VLOOKUP([1]!preferred_alternative[[#This Row],[Wert]],[1]LVs!A$1:U$592,2,FALSE)","v":"S3INTA1 Financial Statement Analysis"},{"$f":"VLOOKUP([1]!preferred_alternative[[#This Row],[Wert]],[1]LVs!A$1:U$592,17,FALSE)","v":"Master"},{"$f":"VLOOKUP([1]!preferred_alternative[[#This Row],[Wert]],[1]LVs!A$1:U$592,9,FALSE)","v":"Accounting"},{"$f":"_xlfn.IFS([1]!preferred_alternative[[#This Row],[Anmerkung]]=\"currently spots available\",\"please check the list of available courses\",[1]!preferred_alternative[[#This Row],[Anmerkung]]=\"if you need a spot, please reach out to us\",\"if you need a spot, please reach out to us\",[1]!preferred_alternative[[#This Row],[Anmerkung]]=\"completely full\",\"completely full\",[1]!preferred_alternative[[#This Row],[Anmerkung]]=\"Markus fragen\",\"in process of asking for more spots\",[1]!preferred_alternative[[#This Row],[Anmerkung]]=\"\",\"further updates by \"&TEXT([1]!preferred_alternative[[#This Row],[Further updates by]],\"tt.MM.jj\"))","v":"completely full"}]
[1446,{"$f":"VLOOKUP([1]!preferred_alternative[[#This Row],[Wert]],[1]LVs!A$1:U$592,2,FALSE)","v":"S3INV1 Active Portfolio Management I"},{"$f":"VLOOKUP([1]!preferred_alternative[[#This Row],[Wert]],[1]LVs!A$1:U$592,17,FALSE)","v":"Master"},{"$f":"VLOOKUP([1]!preferred_alternative[[#This Row],[Wert]],[1]LVs!A$1:U$592,9,FALSE)","v":"Finance"},{"$f":"_xlfn.IFS([1]!preferred_alternative[[#This Row],[Anmerkung]]=\"currently spots available\",\"please check the list of available courses\",[1]!preferred_alternative[[#This Row],[Anmerkung]]=\"if you need a spot, please reach out to us\",\"if you need a spot, please reach out to us\",[1]!preferred_alternative[[#This Row],[Anmerkung]]=\"completely full\",\"completely full\",[1]!preferred_alternative[[#This Row],[Anmerkung]]=\"Markus fragen\",\"in process of asking for more spots\",[1]!preferred_alternative[[#This Row],[Anmerkung]]=\"\",\"further updates by \"&TEXT([1]!preferred_alternative[[#This Row],[Further updates by]],\"tt.MM.jj\"))","v":"please check the list of available courses"}]
[2225,{"$f":"VLOOKUP([1]!preferred_alternative[[#This Row],[Wert]],[1]LVs!A$1:U$592,2,FALSE)","v":"Course II Supply Chain Management"},{"$f":"VLOOKUP([1]!preferred_alternative[[#This Row],[Wert]],[1]LVs!A$1:U$592,17,FALSE)","v":"Bachelor"},{"$f":"VLOOKUP([1]!preferred_alternative[[#This Row],[Wert]],[1]LVs!A$1:U$592,9,FALSE)","v":"Operations and Supply Chain Management"},{"$f":"_xlfn.IFS([1]!preferred_alternative[[#This Row],[Anmerkung]]=\"currently spots available\",\"please check the list of available courses\",[1]!preferred_alternative[[#This Row],[Anmerkung]]=\"if you need a spot, please reach out to us\",\"if you need a spot, please reach out to us\",[1]!preferred_alternative[[#This Row],[Anmerkung]]=\"completely full\",\"completely full\",[1]!preferred_alternative[[#This Row],[Anmerkung]]=\"Markus fragen\",\"in process of asking for more spots\",[1]!preferred_alternative[[#This Row],[Anmerkung]]=\"\",\"further updates by \"&TEXT([1]!preferred_alternative[[#This Row],[Further updates by]],\"tt.MM.jj\"))","v":"please check the list of available courses"}]
[1596,{"$f":"VLOOKUP([1]!preferred_alternative[[#This Row],[Wert]],[1]LVs!A$1:U$592,2,FALSE)","v":"International Mergers & Acquisitions"},{"$f":"VLOOKUP([1]!preferred_alternative[[#This Row],[Wert]],[1]LVs!A$1:U$592,17,FALSE)","v":"Bachelor"},{"$f":"VLOOKUP([1]!preferred_alternative[[#This Row],[Wert]],[1]LVs!A$1:U$592,9,FALSE)","v":"Management"},{"$f":"_xlfn.IFS([1]!preferred_alternative[[#This Row],[Anmerkung]]=\"currently spots available\",\"please check the list of available courses\",[1]!preferred_alternative[[#This Row],[Anmerkung]]=\"if you need a spot, please reach out to us\",\"if you need a spot, please reach out to us\",[1]!preferred_alternative[[#This Row],[Anmerkung]]=\"completely full\",\"completely full\",[1]!preferred_alternative[[#This Row],[Anmerkung]]=\"Markus fragen\",\"in process of asking for more spots\",[1]!preferred_alternative[[#This Row],[Anmerkung]]=\"\",\"further updates by \"&TEXT([1]!preferred_alternative[[#This Row],[Further updates by]],\"tt.MM.jj\"))","v":"completely full"}]
[757,{"$f":"VLOOKUP([1]!preferred_alternative[[#This Row],[Wert]],[1]LVs!A$1:U$592,2,FALSE)","v":"Organizational Change und Innovation"},{"$f":"VLOOKUP([1]!preferred_alternative[[#This Row],[Wert]],[1]LVs!A$1:U$592,17,FALSE)","v":"Master"},{"$f":"VLOOKUP([1]!preferred_alternative[[#This Row],[Wert]],[1]LVs!A$1:U$592,9,FALSE)","v":"Entrepreneurship and Innovation"},{"$f":"_xlfn.IFS([1]!preferred_alternative[[#This Row],[Anmerkung]]=\"currently spots available\",\"please check the list of available courses\",[1]!preferred_alternative[[#This Row],[Anmerkung]]=\"if you need a spot, please reach out to us\",\"if you need a spot, please reach out to us\",[1]!preferred_alternative[[#This Row],[Anmerkung]]=\"completely full\",\"completely full\",[1]!preferred_alternative[[#This Row],[Anmerkung]]=\"Markus fragen\",\"in process of asking for more spots\",[1]!preferred_alternative[[#This Row],[Anmerkung]]=\"\",\"further updates by \"&TEXT([1]!preferred_alternative[[#This Row],[Further updates by]],\"tt.MM.jj\"))","v":"please check the list of available courses"}]
[1488,{"$f":"VLOOKUP([1]!preferred_alternative[[#This Row],[Wert]],[1]LVs!A$1:U$592,2,FALSE)","v":"Game Theory I: Strategic Behavior"},{"$f":"VLOOKUP([1]!preferred_alternative[[#This Row],[Wert]],[1]LVs!A$1:U$592,17,FALSE)","v":"Bachelor"},{"$f":"VLOOKUP([1]!preferred_alternative[[#This Row],[Wert]],[1]LVs!A$1:U$592,9,FALSE)","v":"Strategic Management"},{"$f":"_xlfn.IFS([1]!preferred_alternative[[#This Row],[Anmerkung]]=\"currently spots available\",\"please check the list of available courses\",[1]!preferred_alternative[[#This Row],[Anmerkung]]=\"if you need a spot, please reach out to us\",\"if you need a spot, please reach out to us\",[1]!preferred_alternative[[#This Row],[Anmerkung]]=\"completely full\",\"completely full\",[1]!preferred_alternative[[#This Row],[Anmerkung]]=\"Markus fragen\",\"in process of asking for more spots\",[1]!preferred_alternative[[#This Row],[Anmerkung]]=\"\",\"further updates by \"&TEXT([1]!preferred_alternative[[#This Row],[Further updates by]],\"tt.MM.jj\"))","v":"completely full"}]
[2755,{"$f":"VLOOKUP([1]!preferred_alternative[[#This Row],[Wert]],[1]LVs!A$1:U$592,2,FALSE)","v":"E-Business"},{"$f":"VLOOKUP([1]!preferred_alternative[[#This Row],[Wert]],[1]LVs!A$1:U$592,17,FALSE)","v":"Bachelor"},{"$f":"VLOOKUP([1]!preferred_alternative[[#This Row],[Wert]],[1]LVs!A$1:U$592,9,FALSE)","v":"Marketing"},{"$f":"_xlfn.IFS([1]!preferred_alternative[[#This Row],[Anmerkung]]=\"currently spots available\",\"please check the list of available courses\",[1]!preferred_alternative[[#This Row],[Anmerkung]]=\"if you need a spot, please reach out to us\",\"if you need a spot, please reach out to us\",[1]!preferred_alternative[[#This Row],[Anmerkung]]=\"completely full\",\"completely full\",[1]!preferred_alternative[[#This Row],[Anmerkung]]=\"Markus fragen\",\"in process of asking for more spots\",[1]!preferred_alternative[[#This Row],[Anmerkung]]=\"\",\"further updates by \"&TEXT([1]!preferred_alternative[[#This Row],[Further updates by]],\"tt.MM.jj\"))","v":"completely full"}]
[387,{"$f":"VLOOKUP([1]!preferred_alternative[[#This Row],[Wert]],[1]LVs!A$1:U$592,2,FALSE)","v":"Foundations of International Business"},{"$f":"VLOOKUP([1]!preferred_alternative[[#This Row],[Wert]],[1]LVs!A$1:U$592,17,FALSE)","v":"Bachelor"},{"$f":"VLOOKUP([1]!preferred_alternative[[#This Row],[Wert]],[1]LVs!A$1:U$592,9,FALSE)","v":"International Business"},{"$f":"_xlfn.IFS([1]!preferred_alternative[[#This Row],[Anmerkung]]=\"currently spots available\",\"please check the list of available courses\",[1]!preferred_alternative[[#This Row],[Anmerkung]]=\"if you need a spot, please reach out to us\",\"if you need a spot, please reach out to us\",[1]!preferred_alternative[[#This Row],[Anmerkung]]=\"completely full\",\"completely full\",[1]!preferred_alternative[[#This Row],[Anmerkung]]=\"Markus fragen\",\"in process of asking for more spots\",[1]!preferred_alternative[[#This Row],[Anmerkung]]=\"\",\"further updates by \"&TEXT([1]!preferred_alternative[[#This Row],[Further updates by]],\"tt.MM.jj\"))","v":"completely full"}]
[1512,{"$f":"VLOOKUP([1]!preferred_alternative[[#This Row],[Wert]],[1]LVs!A$1:U$592,2,FALSE)","v":"Game Theory I: Strategic Behavior"},{"$f":"VLOOKUP([1]!preferred_alternative[[#This Row],[Wert]],[1]LVs!A$1:U$592,17,FALSE)","v":"Bachelor"},{"$f":"VLOOKUP([1]!preferred_alternative[[#This Row],[Wert]],[1]LVs!A$1:U$592,9,FALSE)","v":"Strategic Management"},{"$f":"_xlfn.IFS([1]!preferred_alternative[[#This Row],[Anmerkung]]=\"currently spots available\",\"please check the list of available courses\",[1]!preferred_alternative[[#This Row],[Anmerkung]]=\"if you need a spot, please reach out to us\",\"if you need a spot, please reach out to us\",[1]!preferred_alternative[[#This Row],[Anmerkung]]=\"completely full\",\"completely full\",[1]!preferred_alternative[[#This Row],[Anmerkung]]=\"Markus fragen\",\"in process of asking for more spots\",[1]!preferred_alternative[[#This Row],[Anmerkung]]=\"\",\"further updates by \"&TEXT([1]!preferred_alternative[[#This Row],[Further updates by]],\"tt.MM.jj\"))","v":"completely full"}]
[646,{"$f":"VLOOKUP([1]!preferred_alternative[[#This Row],[Wert]],[1]LVs!A$1:U$592,2,FALSE)","v":"Economic Sociology"},{"$f":"VLOOKUP([1]!preferred_alternative[[#This Row],[Wert]],[1]LVs!A$1:U$592,17,FALSE)","v":"Bachelor"},{"$f":"VLOOKUP([1]!preferred_alternative[[#This Row],[Wert]],[1]LVs!A$1:U$592,9,FALSE)","v":"Socioeconomics"},{"$f":"_xlfn.IFS([1]!preferred_alternative[[#This Row],[Anmerkung]]=\"currently spots available\",\"please check the list of available courses\",[1]!preferred_alternative[[#This Row],[Anmerkung]]=\"if you need a spot, please reach out to us\",\"if you need a spot, please reach out to us\",[1]!preferred_alternative[[#This Row],[Anmerkung]]=\"completely full\",\"completely full\",[1]!preferred_alternative[[#This Row],[Anmerkung]]=\"Markus fragen\",\"in process of asking for more spots\",[1]!preferred_alternative[[#This Row],[Anmerkung]]=\"\",\"further updates by \"&TEXT([1]!preferred_alternative[[#This Row],[Further updates by]],\"tt.MM.jj\"))","v":"please check the list of available courses"}]
[1465,{"$f":"VLOOKUP([1]!preferred_alternative[[#This Row],[Wert]],[1]LVs!A$1:U$592,2,FALSE)","v":"Social Media Analytics"},{"$f":"VLOOKUP([1]!preferred_alternative[[#This Row],[Wert]],[1]LVs!A$1:U$592,17,FALSE)","v":"Bachelor"},{"$f":"VLOOKUP([1]!preferred_alternative[[#This Row],[Wert]],[1]LVs!A$1:U$592,9,FALSE)","v":"Marketing"},{"$f":"_xlfn.IFS([1]!preferred_alternative[[#This Row],[Anmerkung]]=\"currently spots available\",\"please check the list of available courses\",[1]!preferred_alternative[[#This Row],[Anmerkung]]=\"if you need a spot, please reach out to us\",\"if you need a spot, please reach out to us\",[1]!preferred_alternative[[#This Row],[Anmerkung]]=\"completely full\",\"completely full\",[1]!preferred_alternative[[#This Row],[Anmerkung]]=\"Markus fragen\",\"in process of asking for more spots\",[1]!preferred_alternative[[#This Row],[Anmerkung]]=\"\",\"further updates by \"&TEXT([1]!preferred_alternative[[#This Row],[Further updates by]],\"tt.MM.jj\"))","v":"completely full"}]
[506,{"$f":"VLOOKUP([1]!preferred_alternative[[#This Row],[Wert]],[1]LVs!A$1:U$592,2,FALSE)","v":"Course II - Strategic Business Analytics and Investment Decisions"},{"$f":"VLOOKUP([1]!preferred_alternative[[#This Row],[Wert]],[1]LVs!A$1:U$592,17,FALSE)","v":"Bachelor"},{"$f":"VLOOKUP([1]!preferred_alternative[[#This Row],[Wert]],[1]LVs!A$1:U$592,9,FALSE)","v":"Finance"},{"$f":"_xlfn.IFS([1]!preferred_alternative[[#This Row],[Anmerkung]]=\"currently spots available\",\"please check the list of available courses\",[1]!preferred_alternative[[#This Row],[Anmerkung]]=\"if you need a spot, please reach out to us\",\"if you need a spot, please reach out to us\",[1]!preferred_alternative[[#This Row],[Anmerkung]]=\"completely full\",\"completely full\",[1]!preferred_alternative[[#This Row],[Anmerkung]]=\"Markus fragen\",\"in process of asking for more spots\",[1]!preferred_alternative[[#This Row],[Anmerkung]]=\"\",\"further updates by \"&TEXT([1]!preferred_alternative[[#This Row],[Further updates by]],\"tt.MM.jj\"))","v":"please check the list of available courses"}]
[1105,{"$f":"VLOOKUP([1]!preferred_alternative[[#This Row],[Wert]],[1]LVs!A$1:U$592,2,FALSE)","v":"Field Course: Money, Credit, and Finance"},{"$f":"VLOOKUP([1]!preferred_alternative[[#This Row],[Wert]],[1]LVs!A$1:U$592,17,FALSE)","v":"Master"},{"$f":"VLOOKUP([1]!preferred_alternative[[#This Row],[Wert]],[1]LVs!A$1:U$592,9,FALSE)","v":"Economics"},{"$f":"_xlfn.IFS([1]!preferred_alternative[[#This Row],[Anmerkung]]=\"currently spots available\",\"please check the list of available courses\",[1]!preferred_alternative[[#This Row],[Anmerkung]]=\"if you need a spot, please reach out to us\",\"if you need a spot, please reach out to us\",[1]!preferred_alternative[[#This Row],[Anmerkung]]=\"completely full\",\"completely full\",[1]!preferred_alternative[[#This Row],[Anmerkung]]=\"Markus fragen\",\"in process of asking for more spots\",[1]!preferred_alternative[[#This Row],[Anmerkung]]=\"\",\"further updates by \"&TEXT([1]!preferred_alternative[[#This Row],[Further updates by]],\"tt.MM.jj\"))","v":"completely full"}]
[2653,{"$f":"VLOOKUP([1]!preferred_alternative[[#This Row],[Wert]],[1]LVs!A$1:U$592,2,FALSE)","v":"Data Literacy"},{"$f":"VLOOKUP([1]!preferred_alternative[[#This Row],[Wert]],[1]LVs!A$1:U$592,17,FALSE)","v":"Bachelor"},{"$f":"VLOOKUP([1]!preferred_alternative[[#This Row],[Wert]],[1]LVs!A$1:U$592,9,FALSE)","v":"Information Systems"},{"$f":"_xlfn.IFS([1]!preferred_alternative[[#This Row],[Anmerkung]]=\"currently spots available\",\"please check the list of available courses\",[1]!preferred_alternative[[#This Row],[Anmerkung]]=\"if you need a spot, please reach out to us\",\"if you need a spot, please reach out to us\",[1]!preferred_alternative[[#This Row],[Anmerkung]]=\"completely full\",\"completely full\",[1]!preferred_alternative[[#This Row],[Anmerkung]]=\"Markus fragen\",\"in process of asking for more spots\",[1]!preferred_alternative[[#This Row],[Anmerkung]]=\"\",\"further updates by \"&TEXT([1]!preferred_alternative[[#This Row],[Further updates by]],\"tt.MM.jj\"))","v":"please check the list of available courses"}]
[1256,{"$f":"VLOOKUP([1]!preferred_alternative[[#This Row],[Wert]],[1]LVs!A$1:U$592,2,FALSE)","v":"Course I - Philosophy of Economics"},{"$f":"VLOOKUP([1]!preferred_alternative[[#This Row],[Wert]],[1]LVs!A$1:U$592,17,FALSE)","v":"Bachelor"},{"$f":"VLOOKUP([1]!preferred_alternative[[#This Row],[Wert]],[1]LVs!A$1:U$592,9,FALSE)","v":"History, Culture and Philosophy"},{"$f":"_xlfn.IFS([1]!preferred_alternative[[#This Row],[Anmerkung]]=\"currently spots available\",\"please check the list of available courses\",[1]!preferred_alternative[[#This Row],[Anmerkung]]=\"if you need a spot, please reach out to us\",\"if you need a spot, please reach out to us\",[1]!preferred_alternative[[#This Row],[Anmerkung]]=\"completely full\",\"completely full\",[1]!preferred_alternative[[#This Row],[Anmerkung]]=\"Markus fragen\",\"in process of asking for more spots\",[1]!preferred_alternative[[#This Row],[Anmerkung]]=\"\",\"further updates by \"&TEXT([1]!preferred_alternative[[#This Row],[Further updates by]],\"tt.MM.jj\"))","v":"please check the list of available courses"}]
[676,{"$f":"VLOOKUP([1]!preferred_alternative[[#This Row],[Wert]],[1]LVs!A$1:U$592,2,FALSE)","v":"Consumer Psychology and Behavior"},{"$f":"VLOOKUP([1]!preferred_alternative[[#This Row],[Wert]],[1]LVs!A$1:U$592,17,FALSE)","v":"Bachelor"},{"$f":"VLOOKUP([1]!preferred_alternative[[#This Row],[Wert]],[1]LVs!A$1:U$592,9,FALSE)","v":"Marketing"},{"$f":"_xlfn.IFS([1]!preferred_alternative[[#This Row],[Anmerkung]]=\"currently spots available\",\"please check the list of available courses\",[1]!preferred_alternative[[#This Row],[Anmerkung]]=\"if you need a spot, please reach out to us\",\"if you need a spot, please reach out to us\",[1]!preferred_alternative[[#This Row],[Anmerkung]]=\"completely full\",\"completely full\",[1]!preferred_alternative[[#This Row],[Anmerkung]]=\"Markus fragen\",\"in process of asking for more spots\",[1]!preferred_alternative[[#This Row],[Anmerkung]]=\"\",\"further updates by \"&TEXT([1]!preferred_alternative[[#This Row],[Further updates by]],\"tt.MM.jj\"))","v":"completely full"}]
[1706,{"$f":"VLOOKUP([1]!preferred_alternative[[#This Row],[Wert]],[1]LVs!A$1:U$592,2,FALSE)","v":"Course I - Principles of Capital Markets"},{"$f":"VLOOKUP([1]!preferred_alternative[[#This Row],[Wert]],[1]LVs!A$1:U$592,17,FALSE)","v":"Bachelor"},{"$f":"VLOOKUP([1]!preferred_alternative[[#This Row],[Wert]],[1]LVs!A$1:U$592,9,FALSE)","v":"Finance"},{"$f":"_xlfn.IFS([1]!preferred_alternative[[#This Row],[Anmerkung]]=\"currently spots available\",\"please check the list of available courses\",[1]!preferred_alternative[[#This Row],[Anmerkung]]=\"if you need a spot, please reach out to us\",\"if you need a spot, please reach out to us\",[1]!preferred_alternative[[#This Row],[Anmerkung]]=\"completely full\",\"completely full\",[1]!preferred_alternative[[#This Row],[Anmerkung]]=\"Markus fragen\",\"in process of asking for more spots\",[1]!preferred_alternative[[#This Row],[Anmerkung]]=\"\",\"further updates by \"&TEXT([1]!preferred_alternative[[#This Row],[Further updates by]],\"tt.MM.jj\"))","v":"completely full"}]
[1104,{"$f":"VLOOKUP([1]!preferred_alternative[[#This Row],[Wert]],[1]LVs!A$1:U$592,2,FALSE)","v":"Course II - Strategic Business Analytics and Investment Decisions"},{"$f":"VLOOKUP([1]!preferred_alternative[[#This Row],[Wert]],[1]LVs!A$1:U$592,17,FALSE)","v":"Bachelor"},{"$f":"VLOOKUP([1]!preferred_alternative[[#This Row],[Wert]],[1]LVs!A$1:U$592,9,FALSE)","v":"Strategic Management"},{"$f":"_xlfn.IFS([1]!preferred_alternative[[#This Row],[Anmerkung]]=\"currently spots available\",\"please check the list of available courses\",[1]!preferred_alternative[[#This Row],[Anmerkung]]=\"if you need a spot, please reach out to us\",\"if you need a spot, please reach out to us\",[1]!preferred_alternative[[#This Row],[Anmerkung]]=\"completely full\",\"completely full\",[1]!preferred_alternative[[#This Row],[Anmerkung]]=\"Markus fragen\",\"in process of asking for more spots\",[1]!preferred_alternative[[#This Row],[Anmerkung]]=\"\",\"further updates by \"&TEXT([1]!preferred_alternative[[#This Row],[Further updates by]],\"tt.MM.jj\"))","v":"completely full"}]
[1778,{"$f":"VLOOKUP([1]!preferred_alternative[[#This Row],[Wert]],[1]LVs!A$1:U$592,2,FALSE)","v":"Course I - Principles of Capital Markets"},{"$f":"VLOOKUP([1]!preferred_alternative[[#This Row],[Wert]],[1]LVs!A$1:U$592,17,FALSE)","v":"Bachelor"},{"$f":"VLOOKUP([1]!preferred_alternative[[#This Row],[Wert]],[1]LVs!A$1:U$592,9,FALSE)","v":"Finance"},{"$f":"_xlfn.IFS([1]!preferred_alternative[[#This Row],[Anmerkung]]=\"currently spots available\",\"please check the list of available courses\",[1]!preferred_alternative[[#This Row],[Anmerkung]]=\"if you need a spot, please reach out to us\",\"if you need a spot, please reach out to us\",[1]!preferred_alternative[[#This Row],[Anmerkung]]=\"completely full\",\"completely full\",[1]!preferred_alternative[[#This Row],[Anmerkung]]=\"Markus fragen\",\"in process of asking for more spots\",[1]!preferred_alternative[[#This Row],[Anmerkung]]=\"\",\"further updates by \"&TEXT([1]!preferred_alternative[[#This Row],[Further updates by]],\"tt.MM.jj\"))","v":"please check the list of available courses"}]
[734,{"$f":"VLOOKUP([1]!preferred_alternative[[#This Row],[Wert]],[1]LVs!A$1:U$592,2,FALSE)","v":"Introduction to Climate Change Economics, Policy, and Justice"},{"$f":"VLOOKUP([1]!preferred_alternative[[#This Row],[Wert]],[1]LVs!A$1:U$592,17,FALSE)","v":"Bachelor"},{"$f":"VLOOKUP([1]!preferred_alternative[[#This Row],[Wert]],[1]LVs!A$1:U$592,9,FALSE)","v":"Socioeconomics"},{"$f":"_xlfn.IFS([1]!preferred_alternative[[#This Row],[Anmerkung]]=\"currently spots available\",\"please check the list of available courses\",[1]!preferred_alternative[[#This Row],[Anmerkung]]=\"if you need a spot, please reach out to us\",\"if you need a spot, please reach out to us\",[1]!preferred_alternative[[#This Row],[Anmerkung]]=\"completely full\",\"completely full\",[1]!preferred_alternative[[#This Row],[Anmerkung]]=\"Markus fragen\",\"in process of asking for more spots\",[1]!preferred_alternative[[#This Row],[Anmerkung]]=\"\",\"further updates by \"&TEXT([1]!preferred_alternative[[#This Row],[Further updates by]],\"tt.MM.jj\"))","v":"please check the list of available courses"}]
[2152,{"$f":"VLOOKUP([1]!preferred_alternative[[#This Row],[Wert]],[1]LVs!A$1:U$592,2,FALSE)","v":"Field Course: Labor and Organizational Economics"},{"$f":"VLOOKUP([1]!preferred_alternative[[#This Row],[Wert]],[1]LVs!A$1:U$592,17,FALSE)","v":"Master"},{"$f":"VLOOKUP([1]!preferred_alternative[[#This Row],[Wert]],[1]LVs!A$1:U$592,9,FALSE)","v":"Economics"},{"$f":"_xlfn.IFS([1]!preferred_alternative[[#This Row],[Anmerkung]]=\"currently spots available\",\"please check the list of available courses\",[1]!preferred_alternative[[#This Row],[Anmerkung]]=\"if you need a spot, please reach out to us\",\"if you need a spot, please reach out to us\",[1]!preferred_alternative[[#This Row],[Anmerkung]]=\"completely full\",\"completely full\",[1]!preferred_alternative[[#This Row],[Anmerkung]]=\"Markus fragen\",\"in process of asking for more spots\",[1]!preferred_alternative[[#This Row],[Anmerkung]]=\"\",\"further updates by \"&TEXT([1]!preferred_alternative[[#This Row],[Further updates by]],\"tt.MM.jj\"))","v":"completely full"}]
[2683,{"$f":"VLOOKUP([1]!preferred_alternative[[#This Row],[Wert]],[1]LVs!A$1:U$592,2,FALSE)","v":"Sustainability"},{"$f":"VLOOKUP([1]!preferred_alternative[[#This Row],[Wert]],[1]LVs!A$1:U$592,17,FALSE)","v":"Bachelor"},{"$f":"VLOOKUP([1]!preferred_alternative[[#This Row],[Wert]],[1]LVs!A$1:U$592,9,FALSE)","v":"Management"},{"$f":"_xlfn.IFS([1]!preferred_alternative[[#This Row],[Anmerkung]]=\"currently spots available\",\"please check the list of available courses\",[1]!preferred_alternative[[#This Row],[Anmerkung]]=\"if you need a spot, please reach out to us\",\"if you need a spot, please reach out to us\",[1]!preferred_alternative[[#This Row],[Anmerkung]]=\"completely full\",\"completely full\",[1]!preferred_alternative[[#This Row],[Anmerkung]]=\"Markus fragen\",\"in process of asking for more spots\",[1]!preferred_alternative[[#This Row],[Anmerkung]]=\"\",\"further updates by \"&TEXT([1]!preferred_alternative[[#This Row],[Further updates by]],\"tt.MM.jj\"))","v":"completely full"}]
[784,{"$f":"VLOOKUP([1]!preferred_alternative[[#This Row],[Wert]],[1]LVs!A$1:U$592,2,FALSE)","v":"Climate Policy"},{"$f":"VLOOKUP([1]!preferred_alternative[[#This Row],[Wert]],[1]LVs!A$1:U$592,17,FALSE)","v":"Bachelor"},{"$f":"VLOOKUP([1]!preferred_alternative[[#This Row],[Wert]],[1]LVs!A$1:U$592,9,FALSE)","v":"Socioeconomics"},{"$f":"_xlfn.IFS([1]!preferred_alternative[[#This Row],[Anmerkung]]=\"currently spots available\",\"please check the list of available courses\",[1]!preferred_alternative[[#This Row],[Anmerkung]]=\"if you need a spot, please reach out to us\",\"if you need a spot, please reach out to us\",[1]!preferred_alternative[[#This Row],[Anmerkung]]=\"completely full\",\"completely full\",[1]!preferred_alternative[[#This Row],[Anmerkung]]=\"Markus fragen\",\"in process of asking for more spots\",[1]!preferred_alternative[[#This Row],[Anmerkung]]=\"\",\"further updates by \"&TEXT([1]!preferred_alternative[[#This Row],[Further updates by]],\"tt.MM.jj\"))","v":"please check the list of available courses"}]
[1222,{"$f":"VLOOKUP([1]!preferred_alternative[[#This Row],[Wert]],[1]LVs!A$1:U$592,2,FALSE)","v":"Digitalization and Tax Law"},{"$f":"VLOOKUP([1]!preferred_alternative[[#This Row],[Wert]],[1]LVs!A$1:U$592,17,FALSE)","v":"Bachelor"},{"$f":"VLOOKUP([1]!preferred_alternative[[#This Row],[Wert]],[1]LVs!A$1:U$592,9,FALSE)","v":"Business Law (incl. THEMIS)"},{"$f":"_xlfn.IFS([1]!preferred_alternative[[#This Row],[Anmerkung]]=\"currently spots available\",\"please check the list of available courses\",[1]!preferred_alternative[[#This Row],[Anmerkung]]=\"if you need a spot, please reach out to us\",\"if you need a spot, please reach out to us\",[1]!preferred_alternative[[#This Row],[Anmerkung]]=\"completely full\",\"completely full\",[1]!preferred_alternative[[#This Row],[Anmerkung]]=\"Markus fragen\",\"in process of asking for more spots\",[1]!preferred_alternative[[#This Row],[Anmerkung]]=\"\",\"further updates by \"&TEXT([1]!preferred_alternative[[#This Row],[Further updates by]],\"tt.MM.jj\"))","v":"please check the list of available courses"}]
[957,{"$f":"VLOOKUP([1]!preferred_alternative[[#This Row],[Wert]],[1]LVs!A$1:U$592,2,FALSE)","v":"Advanced Microeconomics"},{"$f":"VLOOKUP([1]!preferred_alternative[[#This Row],[Wert]],[1]LVs!A$1:U$592,17,FALSE)","v":"Bachelor"},{"$f":"VLOOKUP([1]!preferred_alternative[[#This Row],[Wert]],[1]LVs!A$1:U$592,9,FALSE)","v":"Economics"},{"$f":"_xlfn.IFS([1]!preferred_alternative[[#This Row],[Anmerkung]]=\"currently spots available\",\"please check the list of available courses\",[1]!preferred_alternative[[#This Row],[Anmerkung]]=\"if you need a spot, please reach out to us\",\"if you need a spot, please reach out to us\",[1]!preferred_alternative[[#This Row],[Anmerkung]]=\"completely full\",\"completely full\",[1]!preferred_alternative[[#This Row],[Anmerkung]]=\"Markus fragen\",\"in process of asking for more spots\",[1]!preferred_alternative[[#This Row],[Anmerkung]]=\"\",\"further updates by \"&TEXT([1]!preferred_alternative[[#This Row],[Further updates by]],\"tt.MM.jj\"))","v":"please check the list of available courses"}]
[564,{"$f":"VLOOKUP([1]!preferred_alternative[[#This Row],[Wert]],[1]LVs!A$1:U$592,2,FALSE)","v":"Tax Law in Practice"},{"$f":"VLOOKUP([1]!preferred_alternative[[#This Row],[Wert]],[1]LVs!A$1:U$592,17,FALSE)","v":"Bachelor"},{"$f":"VLOOKUP([1]!preferred_alternative[[#This Row],[Wert]],[1]LVs!A$1:U$592,9,FALSE)","v":"Business Law (incl. THEMIS)"},{"$f":"_xlfn.IFS([1]!preferred_alternative[[#This Row],[Anmerkung]]=\"currently spots available\",\"please check the list of available courses\",[1]!preferred_alternative[[#This Row],[Anmerkung]]=\"if you need a spot, please reach out to us\",\"if you need a spot, please reach out to us\",[1]!preferred_alternative[[#This Row],[Anmerkung]]=\"completely full\",\"completely full\",[1]!preferred_alternative[[#This Row],[Anmerkung]]=\"Markus fragen\",\"in process of asking for more spots\",[1]!preferred_alternative[[#This Row],[Anmerkung]]=\"\",\"further updates by \"&TEXT([1]!preferred_alternative[[#This Row],[Further updates by]],\"tt.MM.jj\"))","v":"please check the list of available courses"}]
[1088,{"$f":"VLOOKUP([1]!preferred_alternative[[#This Row],[Wert]],[1]LVs!A$1:U$592,2,FALSE)","v":"Field Course: Regulatory Economics"},{"$f":"VLOOKUP([1]!preferred_alternative[[#This Row],[Wert]],[1]LVs!A$1:U$592,17,FALSE)","v":"Master"},{"$f":"VLOOKUP([1]!preferred_alternative[[#This Row],[Wert]],[1]LVs!A$1:U$592,9,FALSE)","v":"Economics"},{"$f":"_xlfn.IFS([1]!preferred_alternative[[#This Row],[Anmerkung]]=\"currently spots available\",\"please check the list of available courses\",[1]!preferred_alternative[[#This Row],[Anmerkung]]=\"if you need a spot, please reach out to us\",\"if you need a spot, please reach out to us\",[1]!preferred_alternative[[#This Row],[Anmerkung]]=\"completely full\",\"completely full\",[1]!preferred_alternative[[#This Row],[Anmerkung]]=\"Markus fragen\",\"in process of asking for more spots\",[1]!preferred_alternative[[#This Row],[Anmerkung]]=\"\",\"further updates by \"&TEXT([1]!preferred_alternative[[#This Row],[Further updates by]],\"tt.MM.jj\"))","v":"if you need a spot, please reach out to us"}]
[2058,{"$f":"VLOOKUP([1]!preferred_alternative[[#This Row],[Wert]],[1]LVs!A$1:U$592,2,FALSE)","v":"Field Course: Public Finance and Public Policy"},{"$f":"VLOOKUP([1]!preferred_alternative[[#This Row],[Wert]],[1]LVs!A$1:U$592,17,FALSE)","v":"Master"},{"$f":"VLOOKUP([1]!preferred_alternative[[#This Row],[Wert]],[1]LVs!A$1:U$592,9,FALSE)","v":"Finance"},{"$f":"_xlfn.IFS([1]!preferred_alternative[[#This Row],[Anmerkung]]=\"currently spots available\",\"please check the list of available courses\",[1]!preferred_alternative[[#This Row],[Anmerkung]]=\"if you need a spot, please reach out to us\",\"if you need a spot, please reach out to us\",[1]!preferred_alternative[[#This Row],[Anmerkung]]=\"completely full\",\"completely full\",[1]!preferred_alternative[[#This Row],[Anmerkung]]=\"Markus fragen\",\"in process of asking for more spots\",[1]!preferred_alternative[[#This Row],[Anmerkung]]=\"\",\"further updates by \"&TEXT([1]!preferred_alternative[[#This Row],[Further updates by]],\"tt.MM.jj\"))","v":"completely full"}]
[2585,{"$f":"VLOOKUP([1]!preferred_alternative[[#This Row],[Wert]],[1]LVs!A$1:U$592,2,FALSE)","v":"Research & Policy Seminar: Public Finance and Public Policy"},{"$f":"VLOOKUP([1]!preferred_alternative[[#This Row],[Wert]],[1]LVs!A$1:U$592,17,FALSE)","v":"Master"},{"$f":"VLOOKUP([1]!preferred_alternative[[#This Row],[Wert]],[1]LVs!A$1:U$592,9,FALSE)","v":"Finance"},{"$f":"_xlfn.IFS([1]!preferred_alternative[[#This Row],[Anmerkung]]=\"currently spots available\",\"please check the list of available courses\",[1]!preferred_alternative[[#This Row],[Anmerkung]]=\"if you need a spot, please reach out to us\",\"if you need a spot, please reach out to us\",[1]!preferred_alternative[[#This Row],[Anmerkung]]=\"completely full\",\"completely full\",[1]!preferred_alternative[[#This Row],[Anmerkung]]=\"Markus fragen\",\"in process of asking for more spots\",[1]!preferred_alternative[[#This Row],[Anmerkung]]=\"\",\"further updates by \"&TEXT([1]!preferred_alternative[[#This Row],[Further updates by]],\"tt.MM.jj\"))","v":"completely full"}]
[1193,{"$f":"VLOOKUP([1]!preferred_alternative[[#This Row],[Wert]],[1]LVs!A$1:U$592,2,FALSE)","v":"Course I - Principles of Capital Markets"},{"$f":"VLOOKUP([1]!preferred_alternative[[#This Row],[Wert]],[1]LVs!A$1:U$592,17,FALSE)","v":"Bachelor"},{"$f":"VLOOKUP([1]!preferred_alternative[[#This Row],[Wert]],[1]LVs!A$1:U$592,9,FALSE)","v":"Finance"},{"$f":"_xlfn.IFS([1]!preferred_alternative[[#This Row],[Anmerkung]]=\"currently spots available\",\"please check the list of available courses\",[1]!preferred_alternative[[#This Row],[Anmerkung]]=\"if you need a spot, please reach out to us\",\"if you need a spot, please reach out to us\",[1]!preferred_alternative[[#This Row],[Anmerkung]]=\"completely full\",\"completely full\",[1]!preferred_alternative[[#This Row],[Anmerkung]]=\"Markus fragen\",\"in process of asking for more spots\",[1]!preferred_alternative[[#This Row],[Anmerkung]]=\"\",\"further updates by \"&TEXT([1]!preferred_alternative[[#This Row],[Further updates by]],\"tt.MM.jj\"))","v":"completely full"}]
[1083,{"$f":"VLOOKUP([1]!preferred_alternative[[#This Row],[Wert]],[1]LVs!A$1:U$592,2,FALSE)","v":"Field Course: Economics of Distribution"},{"$f":"VLOOKUP([1]!preferred_alternative[[#This Row],[Wert]],[1]LVs!A$1:U$592,17,FALSE)","v":"Master"},{"$f":"VLOOKUP([1]!preferred_alternative[[#This Row],[Wert]],[1]LVs!A$1:U$592,9,FALSE)","v":"Economics"},{"$f":"_xlfn.IFS([1]!preferred_alternative[[#This Row],[Anmerkung]]=\"currently spots available\",\"please check the list of available courses\",[1]!preferred_alternative[[#This Row],[Anmerkung]]=\"if you need a spot, please reach out to us\",\"if you need a spot, please reach out to us\",[1]!preferred_alternative[[#This Row],[Anmerkung]]=\"completely full\",\"completely full\",[1]!preferred_alternative[[#This Row],[Anmerkung]]=\"Markus fragen\",\"in process of asking for more spots\",[1]!preferred_alternative[[#This Row],[Anmerkung]]=\"\",\"further updates by \"&TEXT([1]!preferred_alternative[[#This Row],[Further updates by]],\"tt.MM.jj\"))","v":"completely full"}]
[1089,{"$f":"VLOOKUP([1]!preferred_alternative[[#This Row],[Wert]],[1]LVs!A$1:U$592,2,FALSE)","v":"Research & Policy Seminar: Regulatory Economics"},{"$f":"VLOOKUP([1]!preferred_alternative[[#This Row],[Wert]],[1]LVs!A$1:U$592,17,FALSE)","v":"Master"},{"$f":"VLOOKUP([1]!preferred_alternative[[#This Row],[Wert]],[1]LVs!A$1:U$592,9,FALSE)","v":"Economics"},{"$f":"_xlfn.IFS([1]!preferred_alternative[[#This Row],[Anmerkung]]=\"currently spots available\",\"please check the list of available courses\",[1]!preferred_alternative[[#This Row],[Anmerkung]]=\"if you need a spot, please reach out to us\",\"if you need a spot, please reach out to us\",[1]!preferred_alternative[[#This Row],[Anmerkung]]=\"completely full\",\"completely full\",[1]!preferred_alternative[[#This Row],[Anmerkung]]=\"Markus fragen\",\"in process of asking for more spots\",[1]!preferred_alternative[[#This Row],[Anmerkung]]=\"\",\"further updates by \"&TEXT([1]!preferred_alternative[[#This Row],[Further updates by]],\"tt.MM.jj\"))","v":"if you need a spot, please reach out to us"}]
[1285,{"$f":"VLOOKUP([1]!preferred_alternative[[#This Row],[Wert]],[1]LVs!A$1:U$592,2,FALSE)","v":"Negotiations in International Business"},{"$f":"VLOOKUP([1]!preferred_alternative[[#This Row],[Wert]],[1]LVs!A$1:U$592,17,FALSE)","v":"Bachelor"},{"$f":"VLOOKUP([1]!preferred_alternative[[#This Row],[Wert]],[1]LVs!A$1:U$592,9,FALSE)","v":"International Business"},{"$f":"_xlfn.IFS([1]!preferred_alternative[[#This Row],[Anmerkung]]=\"currently spots available\",\"please check the list of available courses\",[1]!preferred_alternative[[#This Row],[Anmerkung]]=\"if you need a spot, please reach out to us\",\"if you need a spot, please reach out to us\",[1]!preferred_alternative[[#This Row],[Anmerkung]]=\"completely full\",\"completely full\",[1]!preferred_alternative[[#This Row],[Anmerkung]]=\"Markus fragen\",\"in process of asking for more spots\",[1]!preferred_alternative[[#This Row],[Anmerkung]]=\"\",\"further updates by \"&TEXT([1]!preferred_alternative[[#This Row],[Further updates by]],\"tt.MM.jj\"))","v":"completely full"}]
[1283,{"$f":"VLOOKUP([1]!preferred_alternative[[#This Row],[Wert]],[1]LVs!A$1:U$592,2,FALSE)","v":"Agile Leadership in the Digital Age"},{"$f":"VLOOKUP([1]!preferred_alternative[[#This Row],[Wert]],[1]LVs!A$1:U$592,17,FALSE)","v":"Bachelor"},{"$f":"VLOOKUP([1]!preferred_alternative[[#This Row],[Wert]],[1]LVs!A$1:U$592,9,FALSE)","v":"Management"},{"$f":"_xlfn.IFS([1]!preferred_alternative[[#This Row],[Anmerkung]]=\"currently spots available\",\"please check the list of available courses\",[1]!preferred_alternative[[#This Row],[Anmerkung]]=\"if you need a spot, please reach out to us\",\"if you need a spot, please reach out to us\",[1]!preferred_alternative[[#This Row],[Anmerkung]]=\"completely full\",\"completely full\",[1]!preferred_alternative[[#This Row],[Anmerkung]]=\"Markus fragen\",\"in process of asking for more spots\",[1]!preferred_alternative[[#This Row],[Anmerkung]]=\"\",\"further updates by \"&TEXT([1]!preferred_alternative[[#This Row],[Further updates by]],\"tt.MM.jj\"))","v":"completely full"}]
[1277,{"$f":"VLOOKUP([1]!preferred_alternative[[#This Row],[Wert]],[1]LVs!A$1:U$592,2,FALSE)","v":"International Human Resource Management"},{"$f":"VLOOKUP([1]!preferred_alternative[[#This Row],[Wert]],[1]LVs!A$1:U$592,17,FALSE)","v":"Bachelor"},{"$f":"VLOOKUP([1]!preferred_alternative[[#This Row],[Wert]],[1]LVs!A$1:U$592,9,FALSE)","v":"Human Resource Management"},{"$f":"_xlfn.IFS([1]!preferred_alternative[[#This Row],[Anmerkung]]=\"currently spots available\",\"please check the list of available courses\",[1]!preferred_alternative[[#This Row],[Anmerkung]]=\"if you need a spot, please reach out to us\",\"if you need a spot, please reach out to us\",[1]!preferred_alternative[[#This Row],[Anmerkung]]=\"completely full\",\"completely full\",[1]!preferred_alternative[[#This Row],[Anmerkung]]=\"Markus fragen\",\"in process of asking for more spots\",[1]!preferred_alternative[[#This Row],[Anmerkung]]=\"\",\"further updates by \"&TEXT([1]!preferred_alternative[[#This Row],[Further updates by]],\"tt.MM.jj\"))","v":"please check the list of available courses"}]
[2720,{"$f":"VLOOKUP([1]!preferred_alternative[[#This Row],[Wert]],[1]LVs!A$1:U$592,2,FALSE)","v":"Globalisation and Offshoring"},{"$f":"VLOOKUP([1]!preferred_alternative[[#This Row],[Wert]],[1]LVs!A$1:U$592,17,FALSE)","v":"Bachelor"},{"$f":"VLOOKUP([1]!preferred_alternative[[#This Row],[Wert]],[1]LVs!A$1:U$592,9,FALSE)","v":"International Business"},{"$f":"_xlfn.IFS([1]!preferred_alternative[[#This Row],[Anmerkung]]=\"currently spots available\",\"please check the list of available courses\",[1]!preferred_alternative[[#This Row],[Anmerkung]]=\"if you need a spot, please reach out to us\",\"if you need a spot, please reach out to us\",[1]!preferred_alternative[[#This Row],[Anmerkung]]=\"completely full\",\"completely full\",[1]!preferred_alternative[[#This Row],[Anmerkung]]=\"Markus fragen\",\"in process of asking for more spots\",[1]!preferred_alternative[[#This Row],[Anmerkung]]=\"\",\"further updates by \"&TEXT([1]!preferred_alternative[[#This Row],[Further updates by]],\"tt.MM.jj\"))","v":"completely full"}]
[464,{"$f":"VLOOKUP([1]!preferred_alternative[[#This Row],[Wert]],[1]LVs!A$1:U$592,2,FALSE)","v":"Internationalization & Financial Risk Management"},{"$f":"VLOOKUP([1]!preferred_alternative[[#This Row],[Wert]],[1]LVs!A$1:U$592,17,FALSE)","v":"Bachelor"},{"$f":"VLOOKUP([1]!preferred_alternative[[#This Row],[Wert]],[1]LVs!A$1:U$592,9,FALSE)","v":"Finance"},{"$f":"_xlfn.IFS([1]!preferred_alternative[[#This Row],[Anmerkung]]=\"currently spots available\",\"please check the list of available courses\",[1]!preferred_alternative[[#This Row],[Anmerkung]]=\"if you need a spot, please reach out to us\",\"if you need a spot, please reach out to us\",[1]!preferred_alternative[[#This Row],[Anmerkung]]=\"completely full\",\"completely full\",[1]!preferred_alternative[[#This Row],[Anmerkung]]=\"Markus fragen\",\"in process of asking for more spots\",[1]!preferred_alternative[[#This Row],[Anmerkung]]=\"\",\"further updates by \"&TEXT([1]!preferred_alternative[[#This Row],[Further updates by]],\"tt.MM.jj\"))","v":"completely full"}]
[2735,{"$f":"VLOOKUP([1]!preferred_alternative[[#This Row],[Wert]],[1]LVs!A$1:U$592,2,FALSE)","v":"Global Branding"},{"$f":"VLOOKUP([1]!preferred_alternative[[#This Row],[Wert]],[1]LVs!A$1:U$592,17,FALSE)","v":"Bachelor"},{"$f":"VLOOKUP([1]!preferred_alternative[[#This Row],[Wert]],[1]LVs!A$1:U$592,9,FALSE)","v":"Marketing"},{"$f":"_xlfn.IFS([1]!preferred_alternative[[#This Row],[Anmerkung]]=\"currently spots available\",\"please check the list of available courses\",[1]!preferred_alternative[[#This Row],[Anmerkung]]=\"if you need a spot, please reach out to us\",\"if you need a spot, please reach out to us\",[1]!preferred_alternative[[#This Row],[Anmerkung]]=\"completely full\",\"completely full\",[1]!preferred_alternative[[#This Row],[Anmerkung]]=\"Markus fragen\",\"in process of asking for more spots\",[1]!preferred_alternative[[#This Row],[Anmerkung]]=\"\",\"further updates by \"&TEXT([1]!preferred_alternative[[#This Row],[Further updates by]],\"tt.MM.jj\"))","v":"please check the list of available courses"}]
[2719,{"$f":"VLOOKUP([1]!preferred_alternative[[#This Row],[Wert]],[1]LVs!A$1:U$592,2,FALSE)","v":"Data Analysis and Decision Making in International Business"},{"$f":"VLOOKUP([1]!preferred_alternative[[#This Row],[Wert]],[1]LVs!A$1:U$592,17,FALSE)","v":"Bachelor"},{"$f":"VLOOKUP([1]!preferred_alternative[[#This Row],[Wert]],[1]LVs!A$1:U$592,9,FALSE)","v":"Information Systems"},{"$f":"_xlfn.IFS([1]!preferred_alternative[[#This Row],[Anmerkung]]=\"currently spots available\",\"please check the list of available courses\",[1]!preferred_alternative[[#This Row],[Anmerkung]]=\"if you need a spot, please reach out to us\",\"if you need a spot, please reach out to us\",[1]!preferred_alternative[[#This Row],[Anmerkung]]=\"completely full\",\"completely full\",[1]!preferred_alternative[[#This Row],[Anmerkung]]=\"Markus fragen\",\"in process of asking for more spots\",[1]!preferred_alternative[[#This Row],[Anmerkung]]=\"\",\"further updates by \"&TEXT([1]!preferred_alternative[[#This Row],[Further updates by]],\"tt.MM.jj\"))","v":"please check the list of available courses"}]
[2622,{"$f":"VLOOKUP([1]!preferred_alternative[[#This Row],[Wert]],[1]LVs!A$1:U$592,2,FALSE)","v":"Economic Policy"},{"$f":"VLOOKUP([1]!preferred_alternative[[#This Row],[Wert]],[1]LVs!A$1:U$592,17,FALSE)","v":"Bachelor"},{"$f":"VLOOKUP([1]!preferred_alternative[[#This Row],[Wert]],[1]LVs!A$1:U$592,9,FALSE)","v":"Economics"},{"$f":"_xlfn.IFS([1]!preferred_alternative[[#This Row],[Anmerkung]]=\"currently spots available\",\"please check the list of available courses\",[1]!preferred_alternative[[#This Row],[Anmerkung]]=\"if you need a spot, please reach out to us\",\"if you need a spot, please reach out to us\",[1]!preferred_alternative[[#This Row],[Anmerkung]]=\"completely full\",\"completely full\",[1]!preferred_alternative[[#This Row],[Anmerkung]]=\"Markus fragen\",\"in process of asking for more spots\",[1]!preferred_alternative[[#This Row],[Anmerkung]]=\"\",\"further updates by \"&TEXT([1]!preferred_alternative[[#This Row],[Further updates by]],\"tt.MM.jj\"))","v":"please check the list of available courses"}]
[1284,{"$f":"VLOOKUP([1]!preferred_alternative[[#This Row],[Wert]],[1]LVs!A$1:U$592,2,FALSE)","v":"Leading Globally"},{"$f":"VLOOKUP([1]!preferred_alternative[[#This Row],[Wert]],[1]LVs!A$1:U$592,17,FALSE)","v":"Bachelor"},{"$f":"VLOOKUP([1]!preferred_alternative[[#This Row],[Wert]],[1]LVs!A$1:U$592,9,FALSE)","v":"Management"},{"$f":"_xlfn.IFS([1]!preferred_alternative[[#This Row],[Anmerkung]]=\"currently spots available\",\"please check the list of available courses\",[1]!preferred_alternative[[#This Row],[Anmerkung]]=\"if you need a spot, please reach out to us\",\"if you need a spot, please reach out to us\",[1]!preferred_alternative[[#This Row],[Anmerkung]]=\"completely full\",\"completely full\",[1]!preferred_alternative[[#This Row],[Anmerkung]]=\"Markus fragen\",\"in process of asking for more spots\",[1]!preferred_alternative[[#This Row],[Anmerkung]]=\"\",\"further updates by \"&TEXT([1]!preferred_alternative[[#This Row],[Further updates by]],\"tt.MM.jj\"))","v":"completely full"}]
[2753,{"$f":"VLOOKUP([1]!preferred_alternative[[#This Row],[Wert]],[1]LVs!A$1:U$592,2,FALSE)","v":"Global Leadership & Management"},{"$f":"VLOOKUP([1]!preferred_alternative[[#This Row],[Wert]],[1]LVs!A$1:U$592,17,FALSE)","v":"Bachelor"},{"$f":"VLOOKUP([1]!preferred_alternative[[#This Row],[Wert]],[1]LVs!A$1:U$592,9,FALSE)","v":"International Business"},{"$f":"_xlfn.IFS([1]!preferred_alternative[[#This Row],[Anmerkung]]=\"currently spots available\",\"please check the list of available courses\",[1]!preferred_alternative[[#This Row],[Anmerkung]]=\"if you need a spot, please reach out to us\",\"if you need a spot, please reach out to us\",[1]!preferred_alternative[[#This Row],[Anmerkung]]=\"completely full\",\"completely full\",[1]!preferred_alternative[[#This Row],[Anmerkung]]=\"Markus fragen\",\"in process of asking for more spots\",[1]!preferred_alternative[[#This Row],[Anmerkung]]=\"\",\"further updates by \"&TEXT([1]!preferred_alternative[[#This Row],[Further updates by]],\"tt.MM.jj\"))","v":"further updates by 23.09.25"}]
[1287,{"$f":"VLOOKUP([1]!preferred_alternative[[#This Row],[Wert]],[1]LVs!A$1:U$592,2,FALSE)","v":"Internationalization Strategies"},{"$f":"VLOOKUP([1]!preferred_alternative[[#This Row],[Wert]],[1]LVs!A$1:U$592,17,FALSE)","v":"Bachelor"},{"$f":"VLOOKUP([1]!preferred_alternative[[#This Row],[Wert]],[1]LVs!A$1:U$592,9,FALSE)","v":"Strategic Management"},{"$f":"_xlfn.IFS([1]!preferred_alternative[[#This Row],[Anmerkung]]=\"currently spots available\",\"please check the list of available courses\",[1]!preferred_alternative[[#This Row],[Anmerkung]]=\"if you need a spot, please reach out to us\",\"if you need a spot, please reach out to us\",[1]!preferred_alternative[[#This Row],[Anmerkung]]=\"completely full\",\"completely full\",[1]!preferred_alternative[[#This Row],[Anmerkung]]=\"Markus fragen\",\"in process of asking for more spots\",[1]!preferred_alternative[[#This Row],[Anmerkung]]=\"\",\"further updates by \"&TEXT([1]!preferred_alternative[[#This Row],[Further updates by]],\"tt.MM.jj\"))","v":"please check the list of available courses"}]
[1284,{"$f":"VLOOKUP([1]!preferred_alternative[[#This Row],[Wert]],[1]LVs!A$1:U$592,2,FALSE)","v":"Leading Globally"},{"$f":"VLOOKUP([1]!preferred_alternative[[#This Row],[Wert]],[1]LVs!A$1:U$592,17,FALSE)","v":"Bachelor"},{"$f":"VLOOKUP([1]!preferred_alternative[[#This Row],[Wert]],[1]LVs!A$1:U$592,9,FALSE)","v":"Management"},{"$f":"_xlfn.IFS([1]!preferred_alternative[[#This Row],[Anmerkung]]=\"currently spots available\",\"please check the list of available courses\",[1]!preferred_alternative[[#This Row],[Anmerkung]]=\"if you need a spot, please reach out to us\",\"if you need a spot, please reach out to us\",[1]!preferred_alternative[[#This Row],[Anmerkung]]=\"completely full\",\"completely full\",[1]!preferred_alternative[[#This Row],[Anmerkung]]=\"Markus fragen\",\"in process of asking for more spots\",[1]!preferred_alternative[[#This Row],[Anmerkung]]=\"\",\"further updates by \"&TEXT([1]!preferred_alternative[[#This Row],[Further updates by]],\"tt.MM.jj\"))","v":"if you need a spot, please reach out to us"}]
[1394,{"$f":"VLOOKUP([1]!preferred_alternative[[#This Row],[Wert]],[1]LVs!A$1:U$592,2,FALSE)","v":"Social Media Strategy"},{"$f":"VLOOKUP([1]!preferred_alternative[[#This Row],[Wert]],[1]LVs!A$1:U$592,17,FALSE)","v":"Bachelor"},{"$f":"VLOOKUP([1]!preferred_alternative[[#This Row],[Wert]],[1]LVs!A$1:U$592,9,FALSE)","v":"Marketing"},{"$f":"_xlfn.IFS([1]!preferred_alternative[[#This Row],[Anmerkung]]=\"currently spots available\",\"please check the list of available courses\",[1]!preferred_alternative[[#This Row],[Anmerkung]]=\"if you need a spot, please reach out to us\",\"if you need a spot, please reach out to us\",[1]!preferred_alternative[[#This Row],[Anmerkung]]=\"completely full\",\"completely full\",[1]!preferred_alternative[[#This Row],[Anmerkung]]=\"Markus fragen\",\"in process of asking for more spots\",[1]!preferred_alternative[[#This Row],[Anmerkung]]=\"\",\"further updates by \"&TEXT([1]!preferred_alternative[[#This Row],[Further updates by]],\"tt.MM.jj\"))","v":"completely full"}]
[2226,{"$f":"VLOOKUP([1]!preferred_alternative[[#This Row],[Wert]],[1]LVs!A$1:U$592,2,FALSE)","v":"Generative AI Applications in Marketing"},{"$f":"VLOOKUP([1]!preferred_alternative[[#This Row],[Wert]],[1]LVs!A$1:U$592,17,FALSE)","v":"Bachelor"},{"$f":"VLOOKUP([1]!preferred_alternative[[#This Row],[Wert]],[1]LVs!A$1:U$592,9,FALSE)","v":"Marketing"},{"$f":"_xlfn.IFS([1]!preferred_alternative[[#This Row],[Anmerkung]]=\"currently spots available\",\"please check the list of available courses\",[1]!preferred_alternative[[#This Row],[Anmerkung]]=\"if you need a spot, please reach out to us\",\"if you need a spot, please reach out to us\",[1]!preferred_alternative[[#This Row],[Anmerkung]]=\"completely full\",\"completely full\",[1]!preferred_alternative[[#This Row],[Anmerkung]]=\"Markus fragen\",\"in process of asking for more spots\",[1]!preferred_alternative[[#This Row],[Anmerkung]]=\"\",\"further updates by \"&TEXT([1]!preferred_alternative[[#This Row],[Further updates by]],\"tt.MM.jj\"))","v":"completely full"}]
[448,{"$f":"VLOOKUP([1]!preferred_alternative[[#This Row],[Wert]],[1]LVs!A$1:U$592,2,FALSE)","v":"International Mergers & Acquisitions"},{"$f":"VLOOKUP([1]!preferred_alternative[[#This Row],[Wert]],[1]LVs!A$1:U$592,17,FALSE)","v":"Bachelor"},{"$f":"VLOOKUP([1]!preferred_alternative[[#This Row],[Wert]],[1]LVs!A$1:U$592,9,FALSE)","v":"Finance"},{"$f":"_xlfn.IFS([1]!preferred_alternative[[#This Row],[Anmerkung]]=\"currently spots available\",\"please check the list of available courses\",[1]!preferred_alternative[[#This Row],[Anmerkung]]=\"if you need a spot, please reach out to us\",\"if you need a spot, please reach out to us\",[1]!preferred_alternative[[#This Row],[Anmerkung]]=\"completely full\",\"completely full\",[1]!preferred_alternative[[#This Row],[Anmerkung]]=\"Markus fragen\",\"in process of asking for more spots\",[1]!preferred_alternative[[#This Row],[Anmerkung]]=\"\",\"further updates by \"&TEXT([1]!preferred_alternative[[#This Row],[Further updates by]],\"tt.MM.jj\"))","v":"completely full"}]
[2634,{"$f":"VLOOKUP([1]!preferred_alternative[[#This Row],[Wert]],[1]LVs!A$1:U$592,2,FALSE)","v":"Vertiefende Wirtschaftspolitik"},{"$f":"VLOOKUP([1]!preferred_alternative[[#This Row],[Wert]],[1]LVs!A$1:U$592,17,FALSE)","v":"Bachelor"},{"$f":"VLOOKUP([1]!preferred_alternative[[#This Row],[Wert]],[1]LVs!A$1:U$592,9,FALSE)","v":"Economics"},{"$f":"_xlfn.IFS([1]!preferred_alternative[[#This Row],[Anmerkung]]=\"currently spots available\",\"please check the list of available courses\",[1]!preferred_alternative[[#This Row],[Anmerkung]]=\"if you need a spot, please reach out to us\",\"if you need a spot, please reach out to us\",[1]!preferred_alternative[[#This Row],[Anmerkung]]=\"completely full\",\"completely full\",[1]!preferred_alternative[[#This Row],[Anmerkung]]=\"Markus fragen\",\"in process of asking for more spots\",[1]!preferred_alternative[[#This Row],[Anmerkung]]=\"\",\"further updates by \"&TEXT([1]!preferred_alternative[[#This Row],[Further updates by]],\"tt.MM.jj\"))","v":"please check the list of available courses"}]
[1150,{"$f":"VLOOKUP([1]!preferred_alternative[[#This Row],[Wert]],[1]LVs!A$1:U$592,2,FALSE)","v":"IB Business Project: Marketing & Market Research"},{"$f":"VLOOKUP([1]!preferred_alternative[[#This Row],[Wert]],[1]LVs!A$1:U$592,17,FALSE)","v":"Bachelor"},{"$f":"VLOOKUP([1]!preferred_alternative[[#This Row],[Wert]],[1]LVs!A$1:U$592,9,FALSE)","v":"International Business"},{"$f":"_xlfn.IFS([1]!preferred_alternative[[#This Row],[Anmerkung]]=\"currently spots available\",\"please check the list of available courses\",[1]!preferred_alternative[[#This Row],[Anmerkung]]=\"if you need a spot, please reach out to us\",\"if you need a spot, please reach out to us\",[1]!preferred_alternative[[#This Row],[Anmerkung]]=\"completely full\",\"completely full\",[1]!preferred_alternative[[#This Row],[Anmerkung]]=\"Markus fragen\",\"in process of asking for more spots\",[1]!preferred_alternative[[#This Row],[Anmerkung]]=\"\",\"further updates by \"&TEXT([1]!preferred_alternative[[#This Row],[Further updates by]],\"tt.MM.jj\"))","v":"please check the list of available courses"}]
[1665,{"$f":"VLOOKUP([1]!preferred_alternative[[#This Row],[Wert]],[1]LVs!A$1:U$592,2,FALSE)","v":"Specialization Course - International Economics"},{"$f":"VLOOKUP([1]!preferred_alternative[[#This Row],[Wert]],[1]LVs!A$1:U$592,17,FALSE)","v":"Bachelor"},{"$f":"VLOOKUP([1]!preferred_alternative[[#This Row],[Wert]],[1]LVs!A$1:U$592,9,FALSE)","v":"Economics"},{"$f":"_xlfn.IFS([1]!preferred_alternative[[#This Row],[Anmerkung]]=\"currently spots available\",\"please check the list of available courses\",[1]!preferred_alternative[[#This Row],[Anmerkung]]=\"if you need a spot, please reach out to us\",\"if you need a spot, please reach out to us\",[1]!preferred_alternative[[#This Row],[Anmerkung]]=\"completely full\",\"completely full\",[1]!preferred_alternative[[#This Row],[Anmerkung]]=\"Markus fragen\",\"in process of asking for more spots\",[1]!preferred_alternative[[#This Row],[Anmerkung]]=\"\",\"further updates by \"&TEXT([1]!preferred_alternative[[#This Row],[Further updates by]],\"tt.MM.jj\"))","v":"please check the list of available courses"}]
[371,{"$f":"VLOOKUP([1]!preferred_alternative[[#This Row],[Wert]],[1]LVs!A$1:U$592,2,FALSE)","v":"Advanced Economic Policy"},{"$f":"VLOOKUP([1]!preferred_alternative[[#This Row],[Wert]],[1]LVs!A$1:U$592,17,FALSE)","v":"Bachelor"},{"$f":"VLOOKUP([1]!preferred_alternative[[#This Row],[Wert]],[1]LVs!A$1:U$592,9,FALSE)","v":"Economics"},{"$f":"_xlfn.IFS([1]!preferred_alternative[[#This Row],[Anmerkung]]=\"currently spots available\",\"please check the list of available courses\",[1]!preferred_alternative[[#This Row],[Anmerkung]]=\"if you need a spot, please reach out to us\",\"if you need a spot, please reach out to us\",[1]!preferred_alternative[[#This Row],[Anmerkung]]=\"completely full\",\"completely full\",[1]!preferred_alternative[[#This Row],[Anmerkung]]=\"Markus fragen\",\"in process of asking for more spots\",[1]!preferred_alternative[[#This Row],[Anmerkung]]=\"\",\"further updates by \"&TEXT([1]!preferred_alternative[[#This Row],[Further updates by]],\"tt.MM.jj\"))","v":"please check the list of available courses"}]
[1046,{"$f":"VLOOKUP([1]!preferred_alternative[[#This Row],[Wert]],[1]LVs!A$1:U$592,2,FALSE)","v":"Marketing Mix Modeling: A Gentle Introduction"},{"$f":"VLOOKUP([1]!preferred_alternative[[#This Row],[Wert]],[1]LVs!A$1:U$592,17,FALSE)","v":"Bachelor"},{"$f":"VLOOKUP([1]!preferred_alternative[[#This Row],[Wert]],[1]LVs!A$1:U$592,9,FALSE)","v":"Marketing"},{"$f":"_xlfn.IFS([1]!preferred_alternative[[#This Row],[Anmerkung]]=\"currently spots available\",\"please check the list of available courses\",[1]!preferred_alternative[[#This Row],[Anmerkung]]=\"if you need a spot, please reach out to us\",\"if you need a spot, please reach out to us\",[1]!preferred_alternative[[#This Row],[Anmerkung]]=\"completely full\",\"completely full\",[1]!preferred_alternative[[#This Row],[Anmerkung]]=\"Markus fragen\",\"in process of asking for more spots\",[1]!preferred_alternative[[#This Row],[Anmerkung]]=\"\",\"further updates by \"&TEXT([1]!preferred_alternative[[#This Row],[Further updates by]],\"tt.MM.jj\"))","v":"please check the list of available courses"}]
[2535,{"$f":"VLOOKUP([1]!preferred_alternative[[#This Row],[Wert]],[1]LVs!A$1:U$592,2,FALSE)","v":"Econometrics II"},{"$f":"VLOOKUP([1]!preferred_alternative[[#This Row],[Wert]],[1]LVs!A$1:U$592,17,FALSE)","v":"Bachelor"},{"$f":"VLOOKUP([1]!preferred_alternative[[#This Row],[Wert]],[1]LVs!A$1:U$592,9,FALSE)","v":"Economics"},{"$f":"_xlfn.IFS([1]!preferred_alternative[[#This Row],[Anmerkung]]=\"currently spots available\",\"please check the list of available courses\",[1]!preferred_alternative[[#This Row],[Anmerkung]]=\"if you need a spot, please reach out to us\",\"if you need a spot, please reach out to us\",[1]!preferred_alternative[[#This Row],[Anmerkung]]=\"completely full\",\"completely full\",[1]!preferred_alternative[[#This Row],[Anmerkung]]=\"Markus fragen\",\"in process of asking for more spots\",[1]!preferred_alternative[[#This Row],[Anmerkung]]=\"\",\"further updates by \"&TEXT([1]!preferred_alternative[[#This Row],[Further updates by]],\"tt.MM.jj\"))","v":"please check the list of available courses"}]
[1004,{"$f":"VLOOKUP([1]!preferred_alternative[[#This Row],[Wert]],[1]LVs!A$1:U$592,2,FALSE)","v":"Marketing Insights"},{"$f":"VLOOKUP([1]!preferred_alternative[[#This Row],[Wert]],[1]LVs!A$1:U$592,17,FALSE)","v":"Bachelor"},{"$f":"VLOOKUP([1]!preferred_alternative[[#This Row],[Wert]],[1]LVs!A$1:U$592,9,FALSE)","v":"Marketing"},{"$f":"_xlfn.IFS([1]!preferred_alternative[[#This Row],[Anmerkung]]=\"currently spots available\",\"please check the list of available courses\",[1]!preferred_alternative[[#This Row],[Anmerkung]]=\"if you need a spot, please reach out to us\",\"if you need a spot, please reach out to us\",[1]!preferred_alternative[[#This Row],[Anmerkung]]=\"completely full\",\"completely full\",[1]!preferred_alternative[[#This Row],[Anmerkung]]=\"Markus fragen\",\"in process of asking for more spots\",[1]!preferred_alternative[[#This Row],[Anmerkung]]=\"\",\"further updates by \"&TEXT([1]!preferred_alternative[[#This Row],[Further updates by]],\"tt.MM.jj\"))","v":"completely full"}]
[1016,{"$f":"VLOOKUP([1]!preferred_alternative[[#This Row],[Wert]],[1]LVs!A$1:U$592,2,FALSE)","v":"Paid Advertising - Growing Companies with Google Ads and Analytics"},{"$f":"VLOOKUP([1]!preferred_alternative[[#This Row],[Wert]],[1]LVs!A$1:U$592,17,FALSE)","v":"Bachelor"},{"$f":"VLOOKUP([1]!preferred_alternative[[#This Row],[Wert]],[1]LVs!A$1:U$592,9,FALSE)","v":"Marketing"},{"$f":"_xlfn.IFS([1]!preferred_alternative[[#This Row],[Anmerkung]]=\"currently spots available\",\"please check the list of available courses\",[1]!preferred_alternative[[#This Row],[Anmerkung]]=\"if you need a spot, please reach out to us\",\"if you need a spot, please reach out to us\",[1]!preferred_alternative[[#This Row],[Anmerkung]]=\"completely full\",\"completely full\",[1]!preferred_alternative[[#This Row],[Anmerkung]]=\"Markus fragen\",\"in process of asking for more spots\",[1]!preferred_alternative[[#This Row],[Anmerkung]]=\"\",\"further updates by \"&TEXT([1]!preferred_alternative[[#This Row],[Further updates by]],\"tt.MM.jj\"))","v":"completely full"}]
[15,{"$f":"VLOOKUP([1]!preferred_alternative[[#This Row],[Wert]],[1]LVs!A$1:U$592,2,FALSE)","v":"Global B-2-B Marketing"},{"$f":"VLOOKUP([1]!preferred_alternative[[#This Row],[Wert]],[1]LVs!A$1:U$592,17,FALSE)","v":"Bachelor"},{"$f":"VLOOKUP([1]!preferred_alternative[[#This Row],[Wert]],[1]LVs!A$1:U$592,9,FALSE)","v":"Marketing"},{"$f":"_xlfn.IFS([1]!preferred_alternative[[#This Row],[Anmerkung]]=\"currently spots available\",\"please check the list of available courses\",[1]!preferred_alternative[[#This Row],[Anmerkung]]=\"if you need a spot, please reach out to us\",\"if you need a spot, please reach out to us\",[1]!preferred_alternative[[#This Row],[Anmerkung]]=\"completely full\",\"completely full\",[1]!preferred_alternative[[#This Row],[Anmerkung]]=\"Markus fragen\",\"in process of asking for more spots\",[1]!preferred_alternative[[#This Row],[Anmerkung]]=\"\",\"further updates by \"&TEXT([1]!preferred_alternative[[#This Row],[Further updates by]],\"tt.MM.jj\"))","v":"completely full"}]
[268,{"$f":"VLOOKUP([1]!preferred_alternative[[#This Row],[Wert]],[1]LVs!A$1:U$592,2,FALSE)","v":"Global Branding"},{"$f":"VLOOKUP([1]!preferred_alternative[[#This Row],[Wert]],[1]LVs!A$1:U$592,17,FALSE)","v":"Bachelor"},{"$f":"VLOOKUP([1]!preferred_alternative[[#This Row],[Wert]],[1]LVs!A$1:U$592,9,FALSE)","v":"Marketing"},{"$f":"_xlfn.IFS([1]!preferred_alternative[[#This Row],[Anmerkung]]=\"currently spots available\",\"please check the list of available courses\",[1]!preferred_alternative[[#This Row],[Anmerkung]]=\"if you need a spot, please reach out to us\",\"if you need a spot, please reach out to us\",[1]!preferred_alternative[[#This Row],[Anmerkung]]=\"completely full\",\"completely full\",[1]!preferred_alternative[[#This Row],[Anmerkung]]=\"Markus fragen\",\"in process of asking for more spots\",[1]!preferred_alternative[[#This Row],[Anmerkung]]=\"\",\"further updates by \"&TEXT([1]!preferred_alternative[[#This Row],[Further updates by]],\"tt.MM.jj\"))","v":"completely full"}]
[1626,{"$f":"VLOOKUP([1]!preferred_alternative[[#This Row],[Wert]],[1]LVs!A$1:U$592,2,FALSE)","v":"The Dark Side of Marketing"},{"$f":"VLOOKUP([1]!preferred_alternative[[#This Row],[Wert]],[1]LVs!A$1:U$592,17,FALSE)","v":"Bachelor"},{"$f":"VLOOKUP([1]!preferred_alternative[[#This Row],[Wert]],[1]LVs!A$1:U$592,9,FALSE)","v":"Marketing"},{"$f":"_xlfn.IFS([1]!preferred_alternative[[#This Row],[Anmerkung]]=\"currently spots available\",\"please check the list of available courses\",[1]!preferred_alternative[[#This Row],[Anmerkung]]=\"if you need a spot, please reach out to us\",\"if you need a spot, please reach out to us\",[1]!preferred_alternative[[#This Row],[Anmerkung]]=\"completely full\",\"completely full\",[1]!preferred_alternative[[#This Row],[Anmerkung]]=\"Markus fragen\",\"in process of asking for more spots\",[1]!preferred_alternative[[#This Row],[Anmerkung]]=\"\",\"further updates by \"&TEXT([1]!preferred_alternative[[#This Row],[Further updates by]],\"tt.MM.jj\"))","v":"completely full"}]
[722,{"$f":"VLOOKUP([1]!preferred_alternative[[#This Row],[Wert]],[1]LVs!A$1:U$592,2,FALSE)","v":"Econometrics I"},{"$f":"VLOOKUP([1]!preferred_alternative[[#This Row],[Wert]],[1]LVs!A$1:U$592,17,FALSE)","v":"Bachelor"},{"$f":"VLOOKUP([1]!preferred_alternative[[#This Row],[Wert]],[1]LVs!A$1:U$592,9,FALSE)","v":"Economics"},{"$f":"_xlfn.IFS([1]!preferred_alternative[[#This Row],[Anmerkung]]=\"currently spots available\",\"please check the list of available courses\",[1]!preferred_alternative[[#This Row],[Anmerkung]]=\"if you need a spot, please reach out to us\",\"if you need a spot, please reach out to us\",[1]!preferred_alternative[[#This Row],[Anmerkung]]=\"completely full\",\"completely full\",[1]!preferred_alternative[[#This Row],[Anmerkung]]=\"Markus fragen\",\"in process of asking for more spots\",[1]!preferred_alternative[[#This Row],[Anmerkung]]=\"\",\"further updates by \"&TEXT([1]!preferred_alternative[[#This Row],[Further updates by]],\"tt.MM.jj\"))","v":"completely full"}]
[403,{"$f":"VLOOKUP([1]!preferred_alternative[[#This Row],[Wert]],[1]LVs!A$1:U$592,2,FALSE)","v":"Marketing in Emerging Markets"},{"$f":"VLOOKUP([1]!preferred_alternative[[#This Row],[Wert]],[1]LVs!A$1:U$592,17,FALSE)","v":"Bachelor"},{"$f":"VLOOKUP([1]!preferred_alternative[[#This Row],[Wert]],[1]LVs!A$1:U$592,9,FALSE)","v":"Marketing"},{"$f":"_xlfn.IFS([1]!preferred_alternative[[#This Row],[Anmerkung]]=\"currently spots available\",\"please check the list of available courses\",[1]!preferred_alternative[[#This Row],[Anmerkung]]=\"if you need a spot, please reach out to us\",\"if you need a spot, please reach out to us\",[1]!preferred_alternative[[#This Row],[Anmerkung]]=\"completely full\",\"completely full\",[1]!preferred_alternative[[#This Row],[Anmerkung]]=\"Markus fragen\",\"in process of asking for more spots\",[1]!preferred_alternative[[#This Row],[Anmerkung]]=\"\",\"further updates by \"&TEXT([1]!preferred_alternative[[#This Row],[Further updates by]],\"tt.MM.jj\"))","v":"please check the list of available courses"}]
[378,{"$f":"VLOOKUP([1]!preferred_alternative[[#This Row],[Wert]],[1]LVs!A$1:U$592,2,FALSE)","v":"Specialization Course - Money and Business Cycles"},{"$f":"VLOOKUP([1]!preferred_alternative[[#This Row],[Wert]],[1]LVs!A$1:U$592,17,FALSE)","v":"Bachelor"},{"$f":"VLOOKUP([1]!preferred_alternative[[#This Row],[Wert]],[1]LVs!A$1:U$592,9,FALSE)","v":"Economics"},{"$f":"_xlfn.IFS([1]!preferred_alternative[[#This Row],[Anmerkung]]=\"currently spots available\",\"please check the list of available courses\",[1]!preferred_alternative[[#This Row],[Anmerkung]]=\"if you need a spot, please reach out to us\",\"if you need a spot, please reach out to us\",[1]!preferred_alternative[[#This Row],[Anmerkung]]=\"completely full\",\"completely full\",[1]!preferred_alternative[[#This Row],[Anmerkung]]=\"Markus fragen\",\"in process of asking for more spots\",[1]!preferred_alternative[[#This Row],[Anmerkung]]=\"\",\"further updates by \"&TEXT([1]!preferred_alternative[[#This Row],[Further updates by]],\"tt.MM.jj\"))","v":"completely full"}]
[2133,{"$f":"VLOOKUP([1]!preferred_alternative[[#This Row],[Wert]],[1]LVs!A$1:U$592,2,FALSE)","v":"Revolutionize Digital Marketing Techniques with AI & Smart Tools: Convert Customers to Raving Fans"},{"$f":"VLOOKUP([1]!preferred_alternative[[#This Row],[Wert]],[1]LVs!A$1:U$592,17,FALSE)","v":"Bachelor"},{"$f":"VLOOKUP([1]!preferred_alternative[[#This Row],[Wert]],[1]LVs!A$1:U$592,9,FALSE)","v":"Marketing"},{"$f":"_xlfn.IFS([1]!preferred_alternative[[#This Row],[Anmerkung]]=\"currently spots available\",\"please check the list of available courses\",[1]!preferred_alternative[[#This Row],[Anmerkung]]=\"if you need a spot, please reach out to us\",\"if you need a spot, please reach out to us\",[1]!preferred_alternative[[#This Row],[Anmerkung]]=\"completely full\",\"completely full\",[1]!preferred_alternative[[#This Row],[Anmerkung]]=\"Markus fragen\",\"in process of asking for more spots\",[1]!preferred_alternative[[#This Row],[Anmerkung]]=\"\",\"further updates by \"&TEXT([1]!preferred_alternative[[#This Row],[Further updates by]],\"tt.MM.jj\"))","v":"completely full"}]
[8,{"$f":"VLOOKUP([1]!preferred_alternative[[#This Row],[Wert]],[1]LVs!A$1:U$592,2,FALSE)","v":"Online Content Analysis"},{"$f":"VLOOKUP([1]!preferred_alternative[[#This Row],[Wert]],[1]LVs!A$1:U$592,17,FALSE)","v":"Bachelor"},{"$f":"VLOOKUP([1]!preferred_alternative[[#This Row],[Wert]],[1]LVs!A$1:U$592,9,FALSE)","v":"Marketing"},{"$f":"_xlfn.IFS([1]!preferred_alternative[[#This Row],[Anmerkung]]=\"currently spots available\",\"please check the list of available courses\",[1]!preferred_alternative[[#This Row],[Anmerkung]]=\"if you need a spot, please reach out to us\",\"if you need a spot, please reach out to us\",[1]!preferred_alternative[[#This Row],[Anmerkung]]=\"completely full\",\"completely full\",[1]!preferred_alternative[[#This Row],[Anmerkung]]=\"Markus fragen\",\"in process of asking for more spots\",[1]!preferred_alternative[[#This Row],[Anmerkung]]=\"\",\"further updates by \"&TEXT([1]!preferred_alternative[[#This Row],[Further updates by]],\"tt.MM.jj\"))","v":"completely full"}]
[504,{"$f":"VLOOKUP([1]!preferred_alternative[[#This Row],[Wert]],[1]LVs!A$1:U$592,2,FALSE)","v":"Global Marketing Research"},{"$f":"VLOOKUP([1]!preferred_alternative[[#This Row],[Wert]],[1]LVs!A$1:U$592,17,FALSE)","v":"Bachelor"},{"$f":"VLOOKUP([1]!preferred_alternative[[#This Row],[Wert]],[1]LVs!A$1:U$592,9,FALSE)","v":"Marketing"},{"$f":"_xlfn.IFS([1]!preferred_alternative[[#This Row],[Anmerkung]]=\"currently spots available\",\"please check the list of available courses\",[1]!preferred_alternative[[#This Row],[Anmerkung]]=\"if you need a spot, please reach out to us\",\"if you need a spot, please reach out to us\",[1]!preferred_alternative[[#This Row],[Anmerkung]]=\"completely full\",\"completely full\",[1]!preferred_alternative[[#This Row],[Anmerkung]]=\"Markus fragen\",\"in process of asking for more spots\",[1]!preferred_alternative[[#This Row],[Anmerkung]]=\"\",\"further updates by \"&TEXT([1]!preferred_alternative[[#This Row],[Further updates by]],\"tt.MM.jj\"))","v":"please check the list of available courses"}]
[2373,{"$f":"VLOOKUP([1]!preferred_alternative[[#This Row],[Wert]],[1]LVs!A$1:U$592,2,FALSE)","v":"Communicative Competence in Business Contexts"},{"$f":"VLOOKUP([1]!preferred_alternative[[#This Row],[Wert]],[1]LVs!A$1:U$592,17,FALSE)","v":"Bachelor"},{"$f":"VLOOKUP([1]!preferred_alternative[[#This Row],[Wert]],[1]LVs!A$1:U$592,9,FALSE)","v":"Business Skills"},{"$f":"_xlfn.IFS([1]!preferred_alternative[[#This Row],[Anmerkung]]=\"currently spots available\",\"please check the list of available courses\",[1]!preferred_alternative[[#This Row],[Anmerkung]]=\"if you need a spot, please reach out to us\",\"if you need a spot, please reach out to us\",[1]!preferred_alternative[[#This Row],[Anmerkung]]=\"completely full\",\"completely full\",[1]!preferred_alternative[[#This Row],[Anmerkung]]=\"Markus fragen\",\"in process of asking for more spots\",[1]!preferred_alternative[[#This Row],[Anmerkung]]=\"\",\"further updates by \"&TEXT([1]!preferred_alternative[[#This Row],[Further updates by]],\"tt.MM.jj\"))","v":"please check the list of available courses"}]
[361,{"$f":"VLOOKUP([1]!preferred_alternative[[#This Row],[Wert]],[1]LVs!A$1:U$592,2,FALSE)","v":"Future Trends in International Business"},{"$f":"VLOOKUP([1]!preferred_alternative[[#This Row],[Wert]],[1]LVs!A$1:U$592,17,FALSE)","v":"Bachelor"},{"$f":"VLOOKUP([1]!preferred_alternative[[#This Row],[Wert]],[1]LVs!A$1:U$592,9,FALSE)","v":"International Business"},{"$f":"_xlfn.IFS([1]!preferred_alternative[[#This Row],[Anmerkung]]=\"currently spots available\",\"please check the list of available courses\",[1]!preferred_alternative[[#This Row],[Anmerkung]]=\"if you need a spot, please reach out to us\",\"if you need a spot, please reach out to us\",[1]!preferred_alternative[[#This Row],[Anmerkung]]=\"completely full\",\"completely full\",[1]!preferred_alternative[[#This Row],[Anmerkung]]=\"Markus fragen\",\"in process of asking for more spots\",[1]!preferred_alternative[[#This Row],[Anmerkung]]=\"\",\"further updates by \"&TEXT([1]!preferred_alternative[[#This Row],[Further updates by]],\"tt.MM.jj\"))","v":"please check the list of available courses"}]
[356,{"$f":"VLOOKUP([1]!preferred_alternative[[#This Row],[Wert]],[1]LVs!A$1:U$592,2,FALSE)","v":"Global Media Marketing"},{"$f":"VLOOKUP([1]!preferred_alternative[[#This Row],[Wert]],[1]LVs!A$1:U$592,17,FALSE)","v":"Bachelor"},{"$f":"VLOOKUP([1]!preferred_alternative[[#This Row],[Wert]],[1]LVs!A$1:U$592,9,FALSE)","v":"Marketing"},{"$f":"_xlfn.IFS([1]!preferred_alternative[[#This Row],[Anmerkung]]=\"currently spots available\",\"please check the list of available courses\",[1]!preferred_alternative[[#This Row],[Anmerkung]]=\"if you need a spot, please reach out to us\",\"if you need a spot, please reach out to us\",[1]!preferred_alternative[[#This Row],[Anmerkung]]=\"completely full\",\"completely full\",[1]!preferred_alternative[[#This Row],[Anmerkung]]=\"Markus fragen\",\"in process of asking for more spots\",[1]!preferred_alternative[[#This Row],[Anmerkung]]=\"\",\"further updates by \"&TEXT([1]!preferred_alternative[[#This Row],[Further updates by]],\"tt.MM.jj\"))","v":"completely full"}]
[267,{"$f":"VLOOKUP([1]!preferred_alternative[[#This Row],[Wert]],[1]LVs!A$1:U$592,2,FALSE)","v":"Global Marketing Communication"},{"$f":"VLOOKUP([1]!preferred_alternative[[#This Row],[Wert]],[1]LVs!A$1:U$592,17,FALSE)","v":"Bachelor"},{"$f":"VLOOKUP([1]!preferred_alternative[[#This Row],[Wert]],[1]LVs!A$1:U$592,9,FALSE)","v":"Marketing"},{"$f":"_xlfn.IFS([1]!preferred_alternative[[#This Row],[Anmerkung]]=\"currently spots available\",\"please check the list of available courses\",[1]!preferred_alternative[[#This Row],[Anmerkung]]=\"if you need a spot, please reach out to us\",\"if you need a spot, please reach out to us\",[1]!preferred_alternative[[#This Row],[Anmerkung]]=\"completely full\",\"completely full\",[1]!preferred_alternative[[#This Row],[Anmerkung]]=\"Markus fragen\",\"in process of asking for more spots\",[1]!preferred_alternative[[#This Row],[Anmerkung]]=\"\",\"further updates by \"&TEXT([1]!preferred_alternative[[#This Row],[Further updates by]],\"tt.MM.jj\"))","v":"please check the list of available courses"}]
[421,{"$f":"VLOOKUP([1]!preferred_alternative[[#This Row],[Wert]],[1]LVs!A$1:U$592,2,FALSE)","v":"Econometrics I"},{"$f":"VLOOKUP([1]!preferred_alternative[[#This Row],[Wert]],[1]LVs!A$1:U$592,17,FALSE)","v":"Bachelor"},{"$f":"VLOOKUP([1]!preferred_alternative[[#This Row],[Wert]],[1]LVs!A$1:U$592,9,FALSE)","v":"Economics"},{"$f":"_xlfn.IFS([1]!preferred_alternative[[#This Row],[Anmerkung]]=\"currently spots available\",\"please check the list of available courses\",[1]!preferred_alternative[[#This Row],[Anmerkung]]=\"if you need a spot, please reach out to us\",\"if you need a spot, please reach out to us\",[1]!preferred_alternative[[#This Row],[Anmerkung]]=\"completely full\",\"completely full\",[1]!preferred_alternative[[#This Row],[Anmerkung]]=\"Markus fragen\",\"in process of asking for more spots\",[1]!preferred_alternative[[#This Row],[Anmerkung]]=\"\",\"further updates by \"&TEXT([1]!preferred_alternative[[#This Row],[Further updates by]],\"tt.MM.jj\"))","v":"if you need a spot, please reach out to us"}]
[480,{"$f":"VLOOKUP([1]!preferred_alternative[[#This Row],[Wert]],[1]LVs!A$1:U$592,2,FALSE)","v":"Applied Econometrics"},{"$f":"VLOOKUP([1]!preferred_alternative[[#This Row],[Wert]],[1]LVs!A$1:U$592,17,FALSE)","v":"Bachelor"},{"$f":"VLOOKUP([1]!preferred_alternative[[#This Row],[Wert]],[1]LVs!A$1:U$592,9,FALSE)","v":"Economics"},{"$f":"_xlfn.IFS([1]!preferred_alternative[[#This Row],[Anmerkung]]=\"currently spots available\",\"please check the list of available courses\",[1]!preferred_alternative[[#This Row],[Anmerkung]]=\"if you need a spot, please reach out to us\",\"if you need a spot, please reach out to us\",[1]!preferred_alternative[[#This Row],[Anmerkung]]=\"completely full\",\"completely full\",[1]!preferred_alternative[[#This Row],[Anmerkung]]=\"Markus fragen\",\"in process of asking for more spots\",[1]!preferred_alternative[[#This Row],[Anmerkung]]=\"\",\"further updates by \"&TEXT([1]!preferred_alternative[[#This Row],[Further updates by]],\"tt.MM.jj\"))","v":"please check the list of available courses"}]
[2445,{"$f":"VLOOKUP([1]!preferred_alternative[[#This Row],[Wert]],[1]LVs!A$1:U$592,2,FALSE)","v":"Econometrics I"},{"$f":"VLOOKUP([1]!preferred_alternative[[#This Row],[Wert]],[1]LVs!A$1:U$592,17,FALSE)","v":"Bachelor"},{"$f":"VLOOKUP([1]!preferred_alternative[[#This Row],[Wert]],[1]LVs!A$1:U$592,9,FALSE)","v":"Economics"},{"$f":"_xlfn.IFS([1]!preferred_alternative[[#This Row],[Anmerkung]]=\"currently spots available\",\"please check the list of available courses\",[1]!preferred_alternative[[#This Row],[Anmerkung]]=\"if you need a spot, please reach out to us\",\"if you need a spot, please reach out to us\",[1]!preferred_alternative[[#This Row],[Anmerkung]]=\"completely full\",\"completely full\",[1]!preferred_alternative[[#This Row],[Anmerkung]]=\"Markus fragen\",\"in process of asking for more spots\",[1]!preferred_alternative[[#This Row],[Anmerkung]]=\"\",\"further updates by \"&TEXT([1]!preferred_alternative[[#This Row],[Further updates by]],\"tt.MM.jj\"))","v":"completely full"}]
[378,{"$f":"VLOOKUP([1]!preferred_alternative[[#This Row],[Wert]],[1]LVs!A$1:U$592,2,FALSE)","v":"Specialization Course - Money and Business Cycles"},{"$f":"VLOOKUP([1]!preferred_alternative[[#This Row],[Wert]],[1]LVs!A$1:U$592,17,FALSE)","v":"Bachelor"},{"$f":"VLOOKUP([1]!preferred_alternative[[#This Row],[Wert]],[1]LVs!A$1:U$592,9,FALSE)","v":"Economics"},{"$f":"_xlfn.IFS([1]!preferred_alternative[[#This Row],[Anmerkung]]=\"currently spots available\",\"please check the list of available courses\",[1]!preferred_alternative[[#This Row],[Anmerkung]]=\"if you need a spot, please reach out to us\",\"if you need a spot, please reach out to us\",[1]!preferred_alternative[[#This Row],[Anmerkung]]=\"completely full\",\"completely full\",[1]!preferred_alternative[[#This Row],[Anmerkung]]=\"Markus fragen\",\"in process of asking for more spots\",[1]!preferred_alternative[[#This Row],[Anmerkung]]=\"\",\"further updates by \"&TEXT([1]!preferred_alternative[[#This Row],[Further updates by]],\"tt.MM.jj\"))","v":"completely full"}]
[2668,{"$f":"VLOOKUP([1]!preferred_alternative[[#This Row],[Wert]],[1]LVs!A$1:U$592,2,FALSE)","v":"International Marketing - Get the Real Life Experience"},{"$f":"VLOOKUP([1]!preferred_alternative[[#This Row],[Wert]],[1]LVs!A$1:U$592,17,FALSE)","v":"Bachelor"},{"$f":"VLOOKUP([1]!preferred_alternative[[#This Row],[Wert]],[1]LVs!A$1:U$592,9,FALSE)","v":"Marketing"},{"$f":"_xlfn.IFS([1]!preferred_alternative[[#This Row],[Anmerkung]]=\"currently spots available\",\"please check the list of available courses\",[1]!preferred_alternative[[#This Row],[Anmerkung]]=\"if you need a spot, please reach out to us\",\"if you need a spot, please reach out to us\",[1]!preferred_alternative[[#This Row],[Anmerkung]]=\"completely full\",\"completely full\",[1]!preferred_alternative[[#This Row],[Anmerkung]]=\"Markus fragen\",\"in process of asking for more spots\",[1]!preferred_alternative[[#This Row],[Anmerkung]]=\"\",\"further updates by \"&TEXT([1]!preferred_alternative[[#This Row],[Further updates by]],\"tt.MM.jj\"))","v":"please check the list of available courses"}]
[547,{"$f":"VLOOKUP([1]!preferred_alternative[[#This Row],[Wert]],[1]LVs!A$1:U$592,2,FALSE)","v":"Applied Econometrics"},{"$f":"VLOOKUP([1]!preferred_alternative[[#This Row],[Wert]],[1]LVs!A$1:U$592,17,FALSE)","v":"Bachelor"},{"$f":"VLOOKUP([1]!preferred_alternative[[#This Row],[Wert]],[1]LVs!A$1:U$592,9,FALSE)","v":"Economics"},{"$f":"_xlfn.IFS([1]!preferred_alternative[[#This Row],[Anmerkung]]=\"currently spots available\",\"please check the list of available courses\",[1]!preferred_alternative[[#This Row],[Anmerkung]]=\"if you need a spot, please reach out to us\",\"if you need a spot, please reach out to us\",[1]!preferred_alternative[[#This Row],[Anmerkung]]=\"completely full\",\"completely full\",[1]!preferred_alternative[[#This Row],[Anmerkung]]=\"Markus fragen\",\"in process of asking for more spots\",[1]!preferred_alternative[[#This Row],[Anmerkung]]=\"\",\"further updates by \"&TEXT([1]!preferred_alternative[[#This Row],[Further updates by]],\"tt.MM.jj\"))","v":"please check the list of available courses"}]
[421,{"$f":"VLOOKUP([1]!preferred_alternative[[#This Row],[Wert]],[1]LVs!A$1:U$592,2,FALSE)","v":"Econometrics I"},{"$f":"VLOOKUP([1]!preferred_alternative[[#This Row],[Wert]],[1]LVs!A$1:U$592,17,FALSE)","v":"Bachelor"},{"$f":"VLOOKUP([1]!preferred_alternative[[#This Row],[Wert]],[1]LVs!A$1:U$592,9,FALSE)","v":"Economics"},{"$f":"_xlfn.IFS([1]!preferred_alternative[[#This Row],[Anmerkung]]=\"currently spots available\",\"please check the list of available courses\",[1]!preferred_alternative[[#This Row],[Anmerkung]]=\"if you need a spot, please reach out to us\",\"if you need a spot, please reach out to us\",[1]!preferred_alternative[[#This Row],[Anmerkung]]=\"completely full\",\"completely full\",[1]!preferred_alternative[[#This Row],[Anmerkung]]=\"Markus fragen\",\"in process of asking for more spots\",[1]!preferred_alternative[[#This Row],[Anmerkung]]=\"\",\"further updates by \"&TEXT([1]!preferred_alternative[[#This Row],[Further updates by]],\"tt.MM.jj\"))","v":"if you need a spot, please reach out to us"}]
[2658,{"$f":"VLOOKUP([1]!preferred_alternative[[#This Row],[Wert]],[1]LVs!A$1:U$592,2,FALSE)","v":"ESG: Cases, Concepts, Challenges"},{"$f":"VLOOKUP([1]!preferred_alternative[[#This Row],[Wert]],[1]LVs!A$1:U$592,17,FALSE)","v":"Master"},{"$f":"VLOOKUP([1]!preferred_alternative[[#This Row],[Wert]],[1]LVs!A$1:U$592,9,FALSE)","v":"Business Law (incl. THEMIS)"},{"$f":"_xlfn.IFS([1]!preferred_alternative[[#This Row],[Anmerkung]]=\"currently spots available\",\"please check the list of available courses\",[1]!preferred_alternative[[#This Row],[Anmerkung]]=\"if you need a spot, please reach out to us\",\"if you need a spot, please reach out to us\",[1]!preferred_alternative[[#This Row],[Anmerkung]]=\"completely full\",\"completely full\",[1]!preferred_alternative[[#This Row],[Anmerkung]]=\"Markus fragen\",\"in process of asking for more spots\",[1]!preferred_alternative[[#This Row],[Anmerkung]]=\"\",\"further updates by \"&TEXT([1]!preferred_alternative[[#This Row],[Further updates by]],\"tt.MM.jj\"))","v":"please check the list of available courses"}]
[2603,{"$f":"VLOOKUP([1]!preferred_alternative[[#This Row],[Wert]],[1]LVs!A$1:U$592,2,FALSE)","v":"Course III - Economic History: Topics in Economic and Social History"},{"$f":"VLOOKUP([1]!preferred_alternative[[#This Row],[Wert]],[1]LVs!A$1:U$592,17,FALSE)","v":"Bachelor"},{"$f":"VLOOKUP([1]!preferred_alternative[[#This Row],[Wert]],[1]LVs!A$1:U$592,9,FALSE)","v":"History, Culture and Philosophy"},{"$f":"_xlfn.IFS([1]!preferred_alternative[[#This Row],[Anmerkung]]=\"currently spots available\",\"please check the list of available courses\",[1]!preferred_alternative[[#This Row],[Anmerkung]]=\"if you need a spot, please reach out to us\",\"if you need a spot, please reach out to us\",[1]!preferred_alternative[[#This Row],[Anmerkung]]=\"completely full\",\"completely full\",[1]!preferred_alternative[[#This Row],[Anmerkung]]=\"Markus fragen\",\"in process of asking for more spots\",[1]!preferred_alternative[[#This Row],[Anmerkung]]=\"\",\"further updates by \"&TEXT([1]!preferred_alternative[[#This Row],[Further updates by]],\"tt.MM.jj\"))","v":"completely full"}]
[53,{"$f":"VLOOKUP([1]!preferred_alternative[[#This Row],[Wert]],[1]LVs!A$1:U$592,2,FALSE)","v":"International Commercial Contracts"},{"$f":"VLOOKUP([1]!preferred_alternative[[#This Row],[Wert]],[1]LVs!A$1:U$592,17,FALSE)","v":"Master"},{"$f":"VLOOKUP([1]!preferred_alternative[[#This Row],[Wert]],[1]LVs!A$1:U$592,9,FALSE)","v":"Business Law (incl. THEMIS)"},{"$f":"_xlfn.IFS([1]!preferred_alternative[[#This Row],[Anmerkung]]=\"currently spots available\",\"please check the list of available courses\",[1]!preferred_alternative[[#This Row],[Anmerkung]]=\"if you need a spot, please reach out to us\",\"if you need a spot, please reach out to us\",[1]!preferred_alternative[[#This Row],[Anmerkung]]=\"completely full\",\"completely full\",[1]!preferred_alternative[[#This Row],[Anmerkung]]=\"Markus fragen\",\"in process of asking for more spots\",[1]!preferred_alternative[[#This Row],[Anmerkung]]=\"\",\"further updates by \"&TEXT([1]!preferred_alternative[[#This Row],[Further updates by]],\"tt.MM.jj\"))","v":"please check the list of available courses"}]
[1613,{"$f":"VLOOKUP([1]!preferred_alternative[[#This Row],[Wert]],[1]LVs!A$1:U$592,2,FALSE)","v":"Transactional Finance Law and Economics of the Debt Market"},{"$f":"VLOOKUP([1]!preferred_alternative[[#This Row],[Wert]],[1]LVs!A$1:U$592,17,FALSE)","v":"Master"},{"$f":"VLOOKUP([1]!preferred_alternative[[#This Row],[Wert]],[1]LVs!A$1:U$592,9,FALSE)","v":"Business Law (incl. THEMIS)"},{"$f":"_xlfn.IFS([1]!preferred_alternative[[#This Row],[Anmerkung]]=\"currently spots available\",\"please check the list of available courses\",[1]!preferred_alternative[[#This Row],[Anmerkung]]=\"if you need a spot, please reach out to us\",\"if you need a spot, please reach out to us\",[1]!preferred_alternative[[#This Row],[Anmerkung]]=\"completely full\",\"completely full\",[1]!preferred_alternative[[#This Row],[Anmerkung]]=\"Markus fragen\",\"in process of asking for more spots\",[1]!preferred_alternative[[#This Row],[Anmerkung]]=\"\",\"further updates by \"&TEXT([1]!preferred_alternative[[#This Row],[Further updates by]],\"tt.MM.jj\"))","v":"please check the list of available courses"}]
[1417,{"$f":"VLOOKUP([1]!preferred_alternative[[#This Row],[Wert]],[1]LVs!A$1:U$592,2,FALSE)","v":"Marketing and Innovation A"},{"$f":"VLOOKUP([1]!preferred_alternative[[#This Row],[Wert]],[1]LVs!A$1:U$592,17,FALSE)","v":"Master"},{"$f":"VLOOKUP([1]!preferred_alternative[[#This Row],[Wert]],[1]LVs!A$1:U$592,9,FALSE)","v":"Marketing"},{"$f":"_xlfn.IFS([1]!preferred_alternative[[#This Row],[Anmerkung]]=\"currently spots available\",\"please check the list of available courses\",[1]!preferred_alternative[[#This Row],[Anmerkung]]=\"if you need a spot, please reach out to us\",\"if you need a spot, please reach out to us\",[1]!preferred_alternative[[#This Row],[Anmerkung]]=\"completely full\",\"completely full\",[1]!preferred_alternative[[#This Row],[Anmerkung]]=\"Markus fragen\",\"in process of asking for more spots\",[1]!preferred_alternative[[#This Row],[Anmerkung]]=\"\",\"further updates by \"&TEXT([1]!preferred_alternative[[#This Row],[Further updates by]],\"tt.MM.jj\"))","v":"completely full"}]
[2091,{"$f":"VLOOKUP([1]!preferred_alternative[[#This Row],[Wert]],[1]LVs!A$1:U$592,2,FALSE)","v":"Asset Protection - How to Make Your Money Untouchable!"},{"$f":"VLOOKUP([1]!preferred_alternative[[#This Row],[Wert]],[1]LVs!A$1:U$592,17,FALSE)","v":"Master"},{"$f":"VLOOKUP([1]!preferred_alternative[[#This Row],[Wert]],[1]LVs!A$1:U$592,9,FALSE)","v":"Business Law (incl. THEMIS)"},{"$f":"_xlfn.IFS([1]!preferred_alternative[[#This Row],[Anmerkung]]=\"currently spots available\",\"please check the list of available courses\",[1]!preferred_alternative[[#This Row],[Anmerkung]]=\"if you need a spot, please reach out to us\",\"if you need a spot, please reach out to us\",[1]!preferred_alternative[[#This Row],[Anmerkung]]=\"completely full\",\"completely full\",[1]!preferred_alternative[[#This Row],[Anmerkung]]=\"Markus fragen\",\"in process of asking for more spots\",[1]!preferred_alternative[[#This Row],[Anmerkung]]=\"\",\"further updates by \"&TEXT([1]!preferred_alternative[[#This Row],[Further updates by]],\"tt.MM.jj\"))","v":"completely full"}]
[1414,{"$f":"VLOOKUP([1]!preferred_alternative[[#This Row],[Wert]],[1]LVs!A$1:U$592,2,FALSE)","v":"IT Governance, Risk and Control A"},{"$f":"VLOOKUP([1]!preferred_alternative[[#This Row],[Wert]],[1]LVs!A$1:U$592,17,FALSE)","v":"Master"},{"$f":"VLOOKUP([1]!preferred_alternative[[#This Row],[Wert]],[1]LVs!A$1:U$592,9,FALSE)","v":"Information Systems"},{"$f":"_xlfn.IFS([1]!preferred_alternative[[#This Row],[Anmerkung]]=\"currently spots available\",\"please check the list of available courses\",[1]!preferred_alternative[[#This Row],[Anmerkung]]=\"if you need a spot, please reach out to us\",\"if you need a spot, please reach out to us\",[1]!preferred_alternative[[#This Row],[Anmerkung]]=\"completely full\",\"completely full\",[1]!preferred_alternative[[#This Row],[Anmerkung]]=\"Markus fragen\",\"in process of asking for more spots\",[1]!preferred_alternative[[#This Row],[Anmerkung]]=\"\",\"further updates by \"&TEXT([1]!preferred_alternative[[#This Row],[Further updates by]],\"tt.MM.jj\"))","v":"please check the list of available courses"}]
[52,{"$f":"VLOOKUP([1]!preferred_alternative[[#This Row],[Wert]],[1]LVs!A$1:U$592,2,FALSE)","v":"Introduction to the Law of International Commerce and International Private Law"},{"$f":"VLOOKUP([1]!preferred_alternative[[#This Row],[Wert]],[1]LVs!A$1:U$592,17,FALSE)","v":"Master"},{"$f":"VLOOKUP([1]!preferred_alternative[[#This Row],[Wert]],[1]LVs!A$1:U$592,9,FALSE)","v":"Business Law (incl. THEMIS)"},{"$f":"_xlfn.IFS([1]!preferred_alternative[[#This Row],[Anmerkung]]=\"currently spots available\",\"please check the list of available courses\",[1]!preferred_alternative[[#This Row],[Anmerkung]]=\"if you need a spot, please reach out to us\",\"if you need a spot, please reach out to us\",[1]!preferred_alternative[[#This Row],[Anmerkung]]=\"completely full\",\"completely full\",[1]!preferred_alternative[[#This Row],[Anmerkung]]=\"Markus fragen\",\"in process of asking for more spots\",[1]!preferred_alternative[[#This Row],[Anmerkung]]=\"\",\"further updates by \"&TEXT([1]!preferred_alternative[[#This Row],[Further updates by]],\"tt.MM.jj\"))","v":"please check the list of available courses"}]
[1304,{"$f":"VLOOKUP([1]!preferred_alternative[[#This Row],[Wert]],[1]LVs!A$1:U$592,2,FALSE)","v":"International Commercial Arbitration"},{"$f":"VLOOKUP([1]!preferred_alternative[[#This Row],[Wert]],[1]LVs!A$1:U$592,17,FALSE)","v":"Master"},{"$f":"VLOOKUP([1]!preferred_alternative[[#This Row],[Wert]],[1]LVs!A$1:U$592,9,FALSE)","v":"Business Law (incl. THEMIS)"},{"$f":"_xlfn.IFS([1]!preferred_alternative[[#This Row],[Anmerkung]]=\"currently spots available\",\"please check the list of available courses\",[1]!preferred_alternative[[#This Row],[Anmerkung]]=\"if you need a spot, please reach out to us\",\"if you need a spot, please reach out to us\",[1]!preferred_alternative[[#This Row],[Anmerkung]]=\"completely full\",\"completely full\",[1]!preferred_alternative[[#This Row],[Anmerkung]]=\"Markus fragen\",\"in process of asking for more spots\",[1]!preferred_alternative[[#This Row],[Anmerkung]]=\"\",\"further updates by \"&TEXT([1]!preferred_alternative[[#This Row],[Further updates by]],\"tt.MM.jj\"))","v":"completely full"}]
[1561,{"$f":"VLOOKUP([1]!preferred_alternative[[#This Row],[Wert]],[1]LVs!A$1:U$592,2,FALSE)","v":"Advanced Topics in Strategy: Transforming your Business with AI"},{"$f":"VLOOKUP([1]!preferred_alternative[[#This Row],[Wert]],[1]LVs!A$1:U$592,17,FALSE)","v":"Master"},{"$f":"VLOOKUP([1]!preferred_alternative[[#This Row],[Wert]],[1]LVs!A$1:U$592,9,FALSE)","v":"Information Systems"},{"$f":"_xlfn.IFS([1]!preferred_alternative[[#This Row],[Anmerkung]]=\"currently spots available\",\"please check the list of available courses\",[1]!preferred_alternative[[#This Row],[Anmerkung]]=\"if you need a spot, please reach out to us\",\"if you need a spot, please reach out to us\",[1]!preferred_alternative[[#This Row],[Anmerkung]]=\"completely full\",\"completely full\",[1]!preferred_alternative[[#This Row],[Anmerkung]]=\"Markus fragen\",\"in process of asking for more spots\",[1]!preferred_alternative[[#This Row],[Anmerkung]]=\"\",\"further updates by \"&TEXT([1]!preferred_alternative[[#This Row],[Further updates by]],\"tt.MM.jj\"))","v":"completely full"}]
[1605,{"$f":"VLOOKUP([1]!preferred_alternative[[#This Row],[Wert]],[1]LVs!A$1:U$592,2,FALSE)","v":"International Corporate Governance (Introductory and Cases on How to Steer Companies)"},{"$f":"VLOOKUP([1]!preferred_alternative[[#This Row],[Wert]],[1]LVs!A$1:U$592,17,FALSE)","v":"Bachelor"},{"$f":"VLOOKUP([1]!preferred_alternative[[#This Row],[Wert]],[1]LVs!A$1:U$592,9,FALSE)","v":"Management"},{"$f":"_xlfn.IFS([1]!preferred_alternative[[#This Row],[Anmerkung]]=\"currently spots available\",\"please check the list of available courses\",[1]!preferred_alternative[[#This Row],[Anmerkung]]=\"if you need a spot, please reach out to us\",\"if you need a spot, please reach out to us\",[1]!preferred_alternative[[#This Row],[Anmerkung]]=\"completely full\",\"completely full\",[1]!preferred_alternative[[#This Row],[Anmerkung]]=\"Markus fragen\",\"in process of asking for more spots\",[1]!preferred_alternative[[#This Row],[Anmerkung]]=\"\",\"further updates by \"&TEXT([1]!preferred_alternative[[#This Row],[Further updates by]],\"tt.MM.jj\"))","v":"completely full"}]
[1556,{"$f":"VLOOKUP([1]!preferred_alternative[[#This Row],[Wert]],[1]LVs!A$1:U$592,2,FALSE)","v":"Global Strategy in the Digital Economy"},{"$f":"VLOOKUP([1]!preferred_alternative[[#This Row],[Wert]],[1]LVs!A$1:U$592,17,FALSE)","v":"Master"},{"$f":"VLOOKUP([1]!preferred_alternative[[#This Row],[Wert]],[1]LVs!A$1:U$592,9,FALSE)","v":"International Business"},{"$f":"_xlfn.IFS([1]!preferred_alternative[[#This Row],[Anmerkung]]=\"currently spots available\",\"please check the list of available courses\",[1]!preferred_alternative[[#This Row],[Anmerkung]]=\"if you need a spot, please reach out to us\",\"if you need a spot, please reach out to us\",[1]!preferred_alternative[[#This Row],[Anmerkung]]=\"completely full\",\"completely full\",[1]!preferred_alternative[[#This Row],[Anmerkung]]=\"Markus fragen\",\"in process of asking for more spots\",[1]!preferred_alternative[[#This Row],[Anmerkung]]=\"\",\"further updates by \"&TEXT([1]!preferred_alternative[[#This Row],[Further updates by]],\"tt.MM.jj\"))","v":"completely full"}]
[1042,{"$f":"VLOOKUP([1]!preferred_alternative[[#This Row],[Wert]],[1]LVs!A$1:U$592,2,FALSE)","v":"Economic History / Course V - Interactions of Economy and Society"},{"$f":"VLOOKUP([1]!preferred_alternative[[#This Row],[Wert]],[1]LVs!A$1:U$592,17,FALSE)","v":"Bachelor"},{"$f":"VLOOKUP([1]!preferred_alternative[[#This Row],[Wert]],[1]LVs!A$1:U$592,9,FALSE)","v":"Economics"},{"$f":"_xlfn.IFS([1]!preferred_alternative[[#This Row],[Anmerkung]]=\"currently spots available\",\"please check the list of available courses\",[1]!preferred_alternative[[#This Row],[Anmerkung]]=\"if you need a spot, please reach out to us\",\"if you need a spot, please reach out to us\",[1]!preferred_alternative[[#This Row],[Anmerkung]]=\"completely full\",\"completely full\",[1]!preferred_alternative[[#This Row],[Anmerkung]]=\"Markus fragen\",\"in process of asking for more spots\",[1]!preferred_alternative[[#This Row],[Anmerkung]]=\"\",\"further updates by \"&TEXT([1]!preferred_alternative[[#This Row],[Further updates by]],\"tt.MM.jj\"))","v":"please check the list of available courses"}]
[2100,{"$f":"VLOOKUP([1]!preferred_alternative[[#This Row],[Wert]],[1]LVs!A$1:U$592,2,FALSE)","v":"Digitalization, Energy, and Sustainability I"},{"$f":"VLOOKUP([1]!preferred_alternative[[#This Row],[Wert]],[1]LVs!A$1:U$592,17,FALSE)","v":"Master"},{"$f":"VLOOKUP([1]!preferred_alternative[[#This Row],[Wert]],[1]LVs!A$1:U$592,9,FALSE)","v":"Socioeconomics"},{"$f":"_xlfn.IFS([1]!preferred_alternative[[#This Row],[Anmerkung]]=\"currently spots available\",\"please check the list of available courses\",[1]!preferred_alternative[[#This Row],[Anmerkung]]=\"if you need a spot, please reach out to us\",\"if you need a spot, please reach out to us\",[1]!preferred_alternative[[#This Row],[Anmerkung]]=\"completely full\",\"completely full\",[1]!preferred_alternative[[#This Row],[Anmerkung]]=\"Markus fragen\",\"in process of asking for more spots\",[1]!preferred_alternative[[#This Row],[Anmerkung]]=\"\",\"further updates by \"&TEXT([1]!preferred_alternative[[#This Row],[Further updates by]],\"tt.MM.jj\"))","v":"completely full"}]
[1557,{"$f":"VLOOKUP([1]!preferred_alternative[[#This Row],[Wert]],[1]LVs!A$1:U$592,2,FALSE)","v":"Advanced Topics in Finance"},{"$f":"VLOOKUP([1]!preferred_alternative[[#This Row],[Wert]],[1]LVs!A$1:U$592,17,FALSE)","v":"Master"},{"$f":"VLOOKUP([1]!preferred_alternative[[#This Row],[Wert]],[1]LVs!A$1:U$592,9,FALSE)","v":"Finance"},{"$f":"_xlfn.IFS([1]!preferred_alternative[[#This Row],[Anmerkung]]=\"currently spots available\",\"please check the list of available courses\",[1]!preferred_alternative[[#This Row],[Anmerkung]]=\"if you need a spot, please reach out to us\",\"if you need a spot, please reach out to us\",[1]!preferred_alternative[[#This Row],[Anmerkung]]=\"completely full\",\"completely full\",[1]!preferred_alternative[[#This Row],[Anmerkung]]=\"Markus fragen\",\"in process of asking for more spots\",[1]!preferred_alternative[[#This Row],[Anmerkung]]=\"\",\"further updates by \"&TEXT([1]!preferred_alternative[[#This Row],[Further updates by]],\"tt.MM.jj\"))","v":"completely full"}]
[2758,{"$f":"VLOOKUP([1]!preferred_alternative[[#This Row],[Wert]],[1]LVs!A$1:U$592,2,FALSE)","v":"Selected Topics in Diversity Management in Sports"},{"$f":"VLOOKUP([1]!preferred_alternative[[#This Row],[Wert]],[1]LVs!A$1:U$592,17,FALSE)","v":"Bachelor"},{"$f":"VLOOKUP([1]!preferred_alternative[[#This Row],[Wert]],[1]LVs!A$1:U$592,9,FALSE)","v":"Gender and Diversity Management"},{"$f":"_xlfn.IFS([1]!preferred_alternative[[#This Row],[Anmerkung]]=\"currently spots available\",\"please check the list of available courses\",[1]!preferred_alternative[[#This Row],[Anmerkung]]=\"if you need a spot, please reach out to us\",\"if you need a spot, please reach out to us\",[1]!preferred_alternative[[#This Row],[Anmerkung]]=\"completely full\",\"completely full\",[1]!preferred_alternative[[#This Row],[Anmerkung]]=\"Markus fragen\",\"in process of asking for more spots\",[1]!preferred_alternative[[#This Row],[Anmerkung]]=\"\",\"further updates by \"&TEXT([1]!preferred_alternative[[#This Row],[Further updates by]],\"tt.MM.jj\"))","v":"please check the list of available courses"}]
[482,{"$f":"VLOOKUP([1]!preferred_alternative[[#This Row],[Wert]],[1]LVs!A$1:U$592,2,FALSE)","v":"Research Methods in Marketing"},{"$f":"VLOOKUP([1]!preferred_alternative[[#This Row],[Wert]],[1]LVs!A$1:U$592,17,FALSE)","v":"Bachelor"},{"$f":"VLOOKUP([1]!preferred_alternative[[#This Row],[Wert]],[1]LVs!A$1:U$592,9,FALSE)","v":"Research"},{"$f":"_xlfn.IFS([1]!preferred_alternative[[#This Row],[Anmerkung]]=\"currently spots available\",\"please check the list of available courses\",[1]!preferred_alternative[[#This Row],[Anmerkung]]=\"if you need a spot, please reach out to us\",\"if you need a spot, please reach out to us\",[1]!preferred_alternative[[#This Row],[Anmerkung]]=\"completely full\",\"completely full\",[1]!preferred_alternative[[#This Row],[Anmerkung]]=\"Markus fragen\",\"in process of asking for more spots\",[1]!preferred_alternative[[#This Row],[Anmerkung]]=\"\",\"further updates by \"&TEXT([1]!preferred_alternative[[#This Row],[Further updates by]],\"tt.MM.jj\"))","v":"please check the list of available courses"}]
[1620,{"$f":"VLOOKUP([1]!preferred_alternative[[#This Row],[Wert]],[1]LVs!A$1:U$592,2,FALSE)","v":"Blockchain and Distributed Ledger Technology I"},{"$f":"VLOOKUP([1]!preferred_alternative[[#This Row],[Wert]],[1]LVs!A$1:U$592,17,FALSE)","v":"Master"},{"$f":"VLOOKUP([1]!preferred_alternative[[#This Row],[Wert]],[1]LVs!A$1:U$592,9,FALSE)","v":"Information Systems"},{"$f":"_xlfn.IFS([1]!preferred_alternative[[#This Row],[Anmerkung]]=\"currently spots available\",\"please check the list of available courses\",[1]!preferred_alternative[[#This Row],[Anmerkung]]=\"if you need a spot, please reach out to us\",\"if you need a spot, please reach out to us\",[1]!preferred_alternative[[#This Row],[Anmerkung]]=\"completely full\",\"completely full\",[1]!preferred_alternative[[#This Row],[Anmerkung]]=\"Markus fragen\",\"in process of asking for more spots\",[1]!preferred_alternative[[#This Row],[Anmerkung]]=\"\",\"further updates by \"&TEXT([1]!preferred_alternative[[#This Row],[Further updates by]],\"tt.MM.jj\"))","v":"if you need a spot, please reach out to us"}]
[1727,{"$f":"VLOOKUP([1]!preferred_alternative[[#This Row],[Wert]],[1]LVs!A$1:U$592,2,FALSE)","v":"Business Communication: Critical Views through the Language Lens"},{"$f":"VLOOKUP([1]!preferred_alternative[[#This Row],[Wert]],[1]LVs!A$1:U$592,17,FALSE)","v":"Master"},{"$f":"VLOOKUP([1]!preferred_alternative[[#This Row],[Wert]],[1]LVs!A$1:U$592,9,FALSE)","v":"English Business Communication"},{"$f":"_xlfn.IFS([1]!preferred_alternative[[#This Row],[Anmerkung]]=\"currently spots available\",\"please check the list of available courses\",[1]!preferred_alternative[[#This Row],[Anmerkung]]=\"if you need a spot, please reach out to us\",\"if you need a spot, please reach out to us\",[1]!preferred_alternative[[#This Row],[Anmerkung]]=\"completely full\",\"completely full\",[1]!preferred_alternative[[#This Row],[Anmerkung]]=\"Markus fragen\",\"in process of asking for more spots\",[1]!preferred_alternative[[#This Row],[Anmerkung]]=\"\",\"further updates by \"&TEXT([1]!preferred_alternative[[#This Row],[Further updates by]],\"tt.MM.jj\"))","v":"if you need a spot, please reach out to us"}]
[2203,{"$f":"VLOOKUP([1]!preferred_alternative[[#This Row],[Wert]],[1]LVs!A$1:U$592,2,FALSE)","v":"Advanced Strategic Management"},{"$f":"VLOOKUP([1]!preferred_alternative[[#This Row],[Wert]],[1]LVs!A$1:U$592,17,FALSE)","v":"Bachelor"},{"$f":"VLOOKUP([1]!preferred_alternative[[#This Row],[Wert]],[1]LVs!A$1:U$592,9,FALSE)","v":"Strategic Management"},{"$f":"_xlfn.IFS([1]!preferred_alternative[[#This Row],[Anmerkung]]=\"currently spots available\",\"please check the list of available courses\",[1]!preferred_alternative[[#This Row],[Anmerkung]]=\"if you need a spot, please reach out to us\",\"if you need a spot, please reach out to us\",[1]!preferred_alternative[[#This Row],[Anmerkung]]=\"completely full\",\"completely full\",[1]!preferred_alternative[[#This Row],[Anmerkung]]=\"Markus fragen\",\"in process of asking for more spots\",[1]!preferred_alternative[[#This Row],[Anmerkung]]=\"\",\"further updates by \"&TEXT([1]!preferred_alternative[[#This Row],[Further updates by]],\"tt.MM.jj\"))","v":"completely full"}]
[2177,{"$f":"VLOOKUP([1]!preferred_alternative[[#This Row],[Wert]],[1]LVs!A$1:U$592,2,FALSE)","v":"Sustainable Finance"},{"$f":"VLOOKUP([1]!preferred_alternative[[#This Row],[Wert]],[1]LVs!A$1:U$592,17,FALSE)","v":"Bachelor"},{"$f":"VLOOKUP([1]!preferred_alternative[[#This Row],[Wert]],[1]LVs!A$1:U$592,9,FALSE)","v":"Finance"},{"$f":"_xlfn.IFS([1]!preferred_alternative[[#This Row],[Anmerkung]]=\"currently spots available\",\"please check the list of available courses\",[1]!preferred_alternative[[#This Row],[Anmerkung]]=\"if you need a spot, please reach out to us\",\"if you need a spot, please reach out to us\",[1]!preferred_alternative[[#This Row],[Anmerkung]]=\"completely full\",\"completely full\",[1]!preferred_alternative[[#This Row],[Anmerkung]]=\"Markus fragen\",\"in process of asking for more spots\",[1]!preferred_alternative[[#This Row],[Anmerkung]]=\"\",\"further updates by \"&TEXT([1]!preferred_alternative[[#This Row],[Further updates by]],\"tt.MM.jj\"))","v":"completely full"}]
[2089,{"$f":"VLOOKUP([1]!preferred_alternative[[#This Row],[Wert]],[1]LVs!A$1:U$592,2,FALSE)","v":"International Supply Chain Management"},{"$f":"VLOOKUP([1]!preferred_alternative[[#This Row],[Wert]],[1]LVs!A$1:U$592,17,FALSE)","v":"Bachelor"},{"$f":"VLOOKUP([1]!preferred_alternative[[#This Row],[Wert]],[1]LVs!A$1:U$592,9,FALSE)","v":"Operations and Supply Chain Management"},{"$f":"_xlfn.IFS([1]!preferred_alternative[[#This Row],[Anmerkung]]=\"currently spots available\",\"please check the list of available courses\",[1]!preferred_alternative[[#This Row],[Anmerkung]]=\"if you need a spot, please reach out to us\",\"if you need a spot, please reach out to us\",[1]!preferred_alternative[[#This Row],[Anmerkung]]=\"completely full\",\"completely full\",[1]!preferred_alternative[[#This Row],[Anmerkung]]=\"Markus fragen\",\"in process of asking for more spots\",[1]!preferred_alternative[[#This Row],[Anmerkung]]=\"\",\"further updates by \"&TEXT([1]!preferred_alternative[[#This Row],[Further updates by]],\"tt.MM.jj\"))","v":"please check the list of available courses"}]
[2725,{"$f":"VLOOKUP([1]!preferred_alternative[[#This Row],[Wert]],[1]LVs!A$1:U$592,2,FALSE)","v":"Introduction to Securities and Capital Markets"},{"$f":"VLOOKUP([1]!preferred_alternative[[#This Row],[Wert]],[1]LVs!A$1:U$592,17,FALSE)","v":"Bachelor"},{"$f":"VLOOKUP([1]!preferred_alternative[[#This Row],[Wert]],[1]LVs!A$1:U$592,9,FALSE)","v":"Finance"},{"$f":"_xlfn.IFS([1]!preferred_alternative[[#This Row],[Anmerkung]]=\"currently spots available\",\"please check the list of available courses\",[1]!preferred_alternative[[#This Row],[Anmerkung]]=\"if you need a spot, please reach out to us\",\"if you need a spot, please reach out to us\",[1]!preferred_alternative[[#This Row],[Anmerkung]]=\"completely full\",\"completely full\",[1]!preferred_alternative[[#This Row],[Anmerkung]]=\"Markus fragen\",\"in process of asking for more spots\",[1]!preferred_alternative[[#This Row],[Anmerkung]]=\"\",\"further updates by \"&TEXT([1]!preferred_alternative[[#This Row],[Further updates by]],\"tt.MM.jj\"))","v":"please check the list of available courses"}]
[2714,{"$f":"VLOOKUP([1]!preferred_alternative[[#This Row],[Wert]],[1]LVs!A$1:U$592,2,FALSE)","v":"Innovation and Entrepreneurship"},{"$f":"VLOOKUP([1]!preferred_alternative[[#This Row],[Wert]],[1]LVs!A$1:U$592,17,FALSE)","v":"Bachelor"},{"$f":"VLOOKUP([1]!preferred_alternative[[#This Row],[Wert]],[1]LVs!A$1:U$592,9,FALSE)","v":"Entrepreneurship and Innovation"},{"$f":"_xlfn.IFS([1]!preferred_alternative[[#This Row],[Anmerkung]]=\"currently spots available\",\"please check the list of available courses\",[1]!preferred_alternative[[#This Row],[Anmerkung]]=\"if you need a spot, please reach out to us\",\"if you need a spot, please reach out to us\",[1]!preferred_alternative[[#This Row],[Anmerkung]]=\"completely full\",\"completely full\",[1]!preferred_alternative[[#This Row],[Anmerkung]]=\"Markus fragen\",\"in process of asking for more spots\",[1]!preferred_alternative[[#This Row],[Anmerkung]]=\"\",\"further updates by \"&TEXT([1]!preferred_alternative[[#This Row],[Further updates by]],\"tt.MM.jj\"))","v":"completely full"}]
[2712,{"$f":"VLOOKUP([1]!preferred_alternative[[#This Row],[Wert]],[1]LVs!A$1:U$592,2,FALSE)","v":"Artificial Intelligence (AI), Automation, and Multinational Business"},{"$f":"VLOOKUP([1]!preferred_alternative[[#This Row],[Wert]],[1]LVs!A$1:U$592,17,FALSE)","v":"Bachelor"},{"$f":"VLOOKUP([1]!preferred_alternative[[#This Row],[Wert]],[1]LVs!A$1:U$592,9,FALSE)","v":"International Business"},{"$f":"_xlfn.IFS([1]!preferred_alternative[[#This Row],[Anmerkung]]=\"currently spots available\",\"please check the list of available courses\",[1]!preferred_alternative[[#This Row],[Anmerkung]]=\"if you need a spot, please reach out to us\",\"if you need a spot, please reach out to us\",[1]!preferred_alternative[[#This Row],[Anmerkung]]=\"completely full\",\"completely full\",[1]!preferred_alternative[[#This Row],[Anmerkung]]=\"Markus fragen\",\"in process of asking for more spots\",[1]!preferred_alternative[[#This Row],[Anmerkung]]=\"\",\"further updates by \"&TEXT([1]!preferred_alternative[[#This Row],[Further updates by]],\"tt.MM.jj\"))","v":"completely full"}]
[2713,{"$f":"VLOOKUP([1]!preferred_alternative[[#This Row],[Wert]],[1]LVs!A$1:U$592,2,FALSE)","v":"Leadership: Sense and Purpose in Leading People"},{"$f":"VLOOKUP([1]!preferred_alternative[[#This Row],[Wert]],[1]LVs!A$1:U$592,17,FALSE)","v":"Master"},{"$f":"VLOOKUP([1]!preferred_alternative[[#This Row],[Wert]],[1]LVs!A$1:U$592,9,FALSE)","v":"Human Resource Management"},{"$f":"_xlfn.IFS([1]!preferred_alternative[[#This Row],[Anmerkung]]=\"currently spots available\",\"please check the list of available courses\",[1]!preferred_alternative[[#This Row],[Anmerkung]]=\"if you need a spot, please reach out to us\",\"if you need a spot, please reach out to us\",[1]!preferred_alternative[[#This Row],[Anmerkung]]=\"completely full\",\"completely full\",[1]!preferred_alternative[[#This Row],[Anmerkung]]=\"Markus fragen\",\"in process of asking for more spots\",[1]!preferred_alternative[[#This Row],[Anmerkung]]=\"\",\"further updates by \"&TEXT([1]!preferred_alternative[[#This Row],[Further updates by]],\"tt.MM.jj\"))","v":"completely full"}]
[1775,{"$f":"VLOOKUP([1]!preferred_alternative[[#This Row],[Wert]],[1]LVs!A$1:U$592,2,FALSE)","v":"Data Analysis in Business"},{"$f":"VLOOKUP([1]!preferred_alternative[[#This Row],[Wert]],[1]LVs!A$1:U$592,17,FALSE)","v":"Bachelor"},{"$f":"VLOOKUP([1]!preferred_alternative[[#This Row],[Wert]],[1]LVs!A$1:U$592,9,FALSE)","v":"Information Systems"},{"$f":"_xlfn.IFS([1]!preferred_alternative[[#This Row],[Anmerkung]]=\"currently spots available\",\"please check the list of available courses\",[1]!preferred_alternative[[#This Row],[Anmerkung]]=\"if you need a spot, please reach out to us\",\"if you need a spot, please reach out to us\",[1]!preferred_alternative[[#This Row],[Anmerkung]]=\"completely full\",\"completely full\",[1]!preferred_alternative[[#This Row],[Anmerkung]]=\"Markus fragen\",\"in process of asking for more spots\",[1]!preferred_alternative[[#This Row],[Anmerkung]]=\"\",\"further updates by \"&TEXT([1]!preferred_alternative[[#This Row],[Further updates by]],\"tt.MM.jj\"))","v":"please check the list of available courses"}]
[2074,{"$f":"VLOOKUP([1]!preferred_alternative[[#This Row],[Wert]],[1]LVs!A$1:U$592,2,FALSE)","v":"Strategic Leadership"},{"$f":"VLOOKUP([1]!preferred_alternative[[#This Row],[Wert]],[1]LVs!A$1:U$592,17,FALSE)","v":"Bachelor"},{"$f":"VLOOKUP([1]!preferred_alternative[[#This Row],[Wert]],[1]LVs!A$1:U$592,9,FALSE)","v":"Strategic Management"},{"$f":"_xlfn.IFS([1]!preferred_alternative[[#This Row],[Anmerkung]]=\"currently spots available\",\"please check the list of available courses\",[1]!preferred_alternative[[#This Row],[Anmerkung]]=\"if you need a spot, please reach out to us\",\"if you need a spot, please reach out to us\",[1]!preferred_alternative[[#This Row],[Anmerkung]]=\"completely full\",\"completely full\",[1]!preferred_alternative[[#This Row],[Anmerkung]]=\"Markus fragen\",\"in process of asking for more spots\",[1]!preferred_alternative[[#This Row],[Anmerkung]]=\"\",\"further updates by \"&TEXT([1]!preferred_alternative[[#This Row],[Further updates by]],\"tt.MM.jj\"))","v":"please check the list of available courses"}]
[2711,{"$f":"VLOOKUP([1]!preferred_alternative[[#This Row],[Wert]],[1]LVs!A$1:U$592,2,FALSE)","v":"Central and South Eastern Europe Economic Growth in the Context of Global Disturbances"},{"$f":"VLOOKUP([1]!preferred_alternative[[#This Row],[Wert]],[1]LVs!A$1:U$592,17,FALSE)","v":"Bachelor"},{"$f":"VLOOKUP([1]!preferred_alternative[[#This Row],[Wert]],[1]LVs!A$1:U$592,9,FALSE)","v":"Economics"},{"$f":"_xlfn.IFS([1]!preferred_alternative[[#This Row],[Anmerkung]]=\"currently spots available\",\"please check the list of available courses\",[1]!preferred_alternative[[#This Row],[Anmerkung]]=\"if you need a spot, please reach out to us\",\"if you need a spot, please reach out to us\",[1]!preferred_alternative[[#This Row],[Anmerkung]]=\"completely full\",\"completely full\",[1]!preferred_alternative[[#This Row],[Anmerkung]]=\"Markus fragen\",\"in process of asking for more spots\",[1]!preferred_alternative[[#This Row],[Anmerkung]]=\"\",\"further updates by \"&TEXT([1]!preferred_alternative[[#This Row],[Further updates by]],\"tt.MM.jj\"))","v":"please check the list of available courses"}]
[2727,{"$f":"VLOOKUP([1]!preferred_alternative[[#This Row],[Wert]],[1]LVs!A$1:U$592,2,FALSE)","v":"Marketing Strategies for Emerging Markets"},{"$f":"VLOOKUP([1]!preferred_alternative[[#This Row],[Wert]],[1]LVs!A$1:U$592,17,FALSE)","v":"Bachelor"},{"$f":"VLOOKUP([1]!preferred_alternative[[#This Row],[Wert]],[1]LVs!A$1:U$592,9,FALSE)","v":"Marketing"},{"$f":"_xlfn.IFS([1]!preferred_alternative[[#This Row],[Anmerkung]]=\"currently spots available\",\"please check the list of available courses\",[1]!preferred_alternative[[#This Row],[Anmerkung]]=\"if you need a spot, please reach out to us\",\"if you need a spot, please reach out to us\",[1]!preferred_alternative[[#This Row],[Anmerkung]]=\"completely full\",\"completely full\",[1]!preferred_alternative[[#This Row],[Anmerkung]]=\"Markus fragen\",\"in process of asking for more spots\",[1]!preferred_alternative[[#This Row],[Anmerkung]]=\"\",\"further updates by \"&TEXT([1]!preferred_alternative[[#This Row],[Further updates by]],\"tt.MM.jj\"))","v":"please check the list of available courses"}]
[1768,{"$f":"VLOOKUP([1]!preferred_alternative[[#This Row],[Wert]],[1]LVs!A$1:U$592,2,FALSE)","v":"EU and the Challenge of Global Leadership"},{"$f":"VLOOKUP([1]!preferred_alternative[[#This Row],[Wert]],[1]LVs!A$1:U$592,17,FALSE)","v":"Bachelor"},{"$f":"VLOOKUP([1]!preferred_alternative[[#This Row],[Wert]],[1]LVs!A$1:U$592,9,FALSE)","v":"Economics"},{"$f":"_xlfn.IFS([1]!preferred_alternative[[#This Row],[Anmerkung]]=\"currently spots available\",\"please check the list of available courses\",[1]!preferred_alternative[[#This Row],[Anmerkung]]=\"if you need a spot, please reach out to us\",\"if you need a spot, please reach out to us\",[1]!preferred_alternative[[#This Row],[Anmerkung]]=\"completely full\",\"completely full\",[1]!preferred_alternative[[#This Row],[Anmerkung]]=\"Markus fragen\",\"in process of asking for more spots\",[1]!preferred_alternative[[#This Row],[Anmerkung]]=\"\",\"further updates by \"&TEXT([1]!preferred_alternative[[#This Row],[Further updates by]],\"tt.MM.jj\"))","v":"please check the list of available courses"}]
[546,{"$f":"VLOOKUP([1]!preferred_alternative[[#This Row],[Wert]],[1]LVs!A$1:U$592,2,FALSE)","v":"Sustainability and Responsible Marketing"},{"$f":"VLOOKUP([1]!preferred_alternative[[#This Row],[Wert]],[1]LVs!A$1:U$592,17,FALSE)","v":"Bachelor"},{"$f":"VLOOKUP([1]!preferred_alternative[[#This Row],[Wert]],[1]LVs!A$1:U$592,9,FALSE)","v":"Marketing"},{"$f":"_xlfn.IFS([1]!preferred_alternative[[#This Row],[Anmerkung]]=\"currently spots available\",\"please check the list of available courses\",[1]!preferred_alternative[[#This Row],[Anmerkung]]=\"if you need a spot, please reach out to us\",\"if you need a spot, please reach out to us\",[1]!preferred_alternative[[#This Row],[Anmerkung]]=\"completely full\",\"completely full\",[1]!preferred_alternative[[#This Row],[Anmerkung]]=\"Markus fragen\",\"in process of asking for more spots\",[1]!preferred_alternative[[#This Row],[Anmerkung]]=\"\",\"further updates by \"&TEXT([1]!preferred_alternative[[#This Row],[Further updates by]],\"tt.MM.jj\"))","v":"please check the list of available courses"}]
[2197,{"$f":"VLOOKUP([1]!preferred_alternative[[#This Row],[Wert]],[1]LVs!A$1:U$592,2,FALSE)","v":"Fundamentals of Human Resource Management - HRM for non HR Professionals"},{"$f":"VLOOKUP([1]!preferred_alternative[[#This Row],[Wert]],[1]LVs!A$1:U$592,17,FALSE)","v":"Bachelor"},{"$f":"VLOOKUP([1]!preferred_alternative[[#This Row],[Wert]],[1]LVs!A$1:U$592,9,FALSE)","v":"Human Resource Management"},{"$f":"_xlfn.IFS([1]!preferred_alternative[[#This Row],[Anmerkung]]=\"currently spots available\",\"please check the list of available courses\",[1]!preferred_alternative[[#This Row],[Anmerkung]]=\"if you need a spot, please reach out to us\",\"if you need a spot, please reach out to us\",[1]!preferred_alternative[[#This Row],[Anmerkung]]=\"completely full\",\"completely full\",[1]!preferred_alternative[[#This Row],[Anmerkung]]=\"Markus fragen\",\"in process of asking for more spots\",[1]!preferred_alternative[[#This Row],[Anmerkung]]=\"\",\"further updates by \"&TEXT([1]!preferred_alternative[[#This Row],[Further updates by]],\"tt.MM.jj\"))","v":"completely full"}]
[2619,{"$f":"VLOOKUP([1]!preferred_alternative[[#This Row],[Wert]],[1]LVs!A$1:U$592,2,FALSE)","v":"Cases in Strategy & Organization"},{"$f":"VLOOKUP([1]!preferred_alternative[[#This Row],[Wert]],[1]LVs!A$1:U$592,17,FALSE)","v":"Bachelor"},{"$f":"VLOOKUP([1]!preferred_alternative[[#This Row],[Wert]],[1]LVs!A$1:U$592,9,FALSE)","v":"Strategic Management"},{"$f":"_xlfn.IFS([1]!preferred_alternative[[#This Row],[Anmerkung]]=\"currently spots available\",\"please check the list of available courses\",[1]!preferred_alternative[[#This Row],[Anmerkung]]=\"if you need a spot, please reach out to us\",\"if you need a spot, please reach out to us\",[1]!preferred_alternative[[#This Row],[Anmerkung]]=\"completely full\",\"completely full\",[1]!preferred_alternative[[#This Row],[Anmerkung]]=\"Markus fragen\",\"in process of asking for more spots\",[1]!preferred_alternative[[#This Row],[Anmerkung]]=\"\",\"further updates by \"&TEXT([1]!preferred_alternative[[#This Row],[Further updates by]],\"tt.MM.jj\"))","v":"please check the list of available courses"}]
[1767,{"$f":"VLOOKUP([1]!preferred_alternative[[#This Row],[Wert]],[1]LVs!A$1:U$592,2,FALSE)","v":"Sustainability and CSR"},{"$f":"VLOOKUP([1]!preferred_alternative[[#This Row],[Wert]],[1]LVs!A$1:U$592,17,FALSE)","v":"Bachelor"},{"$f":"VLOOKUP([1]!preferred_alternative[[#This Row],[Wert]],[1]LVs!A$1:U$592,9,FALSE)","v":"Management"},{"$f":"_xlfn.IFS([1]!preferred_alternative[[#This Row],[Anmerkung]]=\"currently spots available\",\"please check the list of available courses\",[1]!preferred_alternative[[#This Row],[Anmerkung]]=\"if you need a spot, please reach out to us\",\"if you need a spot, please reach out to us\",[1]!preferred_alternative[[#This Row],[Anmerkung]]=\"completely full\",\"completely full\",[1]!preferred_alternative[[#This Row],[Anmerkung]]=\"Markus fragen\",\"in process of asking for more spots\",[1]!preferred_alternative[[#This Row],[Anmerkung]]=\"\",\"further updates by \"&TEXT([1]!preferred_alternative[[#This Row],[Further updates by]],\"tt.MM.jj\"))","v":"please check the list of available courses"}]
[712,{"$f":"VLOOKUP([1]!preferred_alternative[[#This Row],[Wert]],[1]LVs!A$1:U$592,2,FALSE)","v":"Supply Chain Modelling and Design"},{"$f":"VLOOKUP([1]!preferred_alternative[[#This Row],[Wert]],[1]LVs!A$1:U$592,17,FALSE)","v":"Bachelor"},{"$f":"VLOOKUP([1]!preferred_alternative[[#This Row],[Wert]],[1]LVs!A$1:U$592,9,FALSE)","v":"Operations and Supply Chain Management"},{"$f":"_xlfn.IFS([1]!preferred_alternative[[#This Row],[Anmerkung]]=\"currently spots available\",\"please check the list of available courses\",[1]!preferred_alternative[[#This Row],[Anmerkung]]=\"if you need a spot, please reach out to us\",\"if you need a spot, please reach out to us\",[1]!preferred_alternative[[#This Row],[Anmerkung]]=\"completely full\",\"completely full\",[1]!preferred_alternative[[#This Row],[Anmerkung]]=\"Markus fragen\",\"in process of asking for more spots\",[1]!preferred_alternative[[#This Row],[Anmerkung]]=\"\",\"further updates by \"&TEXT([1]!preferred_alternative[[#This Row],[Further updates by]],\"tt.MM.jj\"))","v":"completely full"}]
[2204,{"$f":"VLOOKUP([1]!preferred_alternative[[#This Row],[Wert]],[1]LVs!A$1:U$592,2,FALSE)","v":"Responsible Consumer Behavior"},{"$f":"VLOOKUP([1]!preferred_alternative[[#This Row],[Wert]],[1]LVs!A$1:U$592,17,FALSE)","v":"Bachelor"},{"$f":"VLOOKUP([1]!preferred_alternative[[#This Row],[Wert]],[1]LVs!A$1:U$592,9,FALSE)","v":"Marketing"},{"$f":"_xlfn.IFS([1]!preferred_alternative[[#This Row],[Anmerkung]]=\"currently spots available\",\"please check the list of available courses\",[1]!preferred_alternative[[#This Row],[Anmerkung]]=\"if you need a spot, please reach out to us\",\"if you need a spot, please reach out to us\",[1]!preferred_alternative[[#This Row],[Anmerkung]]=\"completely full\",\"completely full\",[1]!preferred_alternative[[#This Row],[Anmerkung]]=\"Markus fragen\",\"in process of asking for more spots\",[1]!preferred_alternative[[#This Row],[Anmerkung]]=\"\",\"further updates by \"&TEXT([1]!preferred_alternative[[#This Row],[Further updates by]],\"tt.MM.jj\"))","v":"please check the list of available courses"}]
[2188,{"$f":"VLOOKUP([1]!preferred_alternative[[#This Row],[Wert]],[1]LVs!A$1:U$592,2,FALSE)","v":"International Marketing - Get the Real Life Experience"},{"$f":"VLOOKUP([1]!preferred_alternative[[#This Row],[Wert]],[1]LVs!A$1:U$592,17,FALSE)","v":"Bachelor"},{"$f":"VLOOKUP([1]!preferred_alternative[[#This Row],[Wert]],[1]LVs!A$1:U$592,9,FALSE)","v":"Marketing"},{"$f":"_xlfn.IFS([1]!preferred_alternative[[#This Row],[Anmerkung]]=\"currently spots available\",\"please check the list of available courses\",[1]!preferred_alternative[[#This Row],[Anmerkung]]=\"if you need a spot, please reach out to us\",\"if you need a spot, please reach out to us\",[1]!preferred_alternative[[#This Row],[Anmerkung]]=\"completely full\",\"completely full\",[1]!preferred_alternative[[#This Row],[Anmerkung]]=\"Markus fragen\",\"in process of asking for more spots\",[1]!preferred_alternative[[#This Row],[Anmerkung]]=\"\",\"further updates by \"&TEXT([1]!preferred_alternative[[#This Row],[Further updates by]],\"tt.MM.jj\"))","v":"please check the list of available courses"}]
[1728,{"$f":"VLOOKUP([1]!preferred_alternative[[#This Row],[Wert]],[1]LVs!A$1:U$592,2,FALSE)","v":"Financial Communication and Investor Relations"},{"$f":"VLOOKUP([1]!preferred_alternative[[#This Row],[Wert]],[1]LVs!A$1:U$592,17,FALSE)","v":"Master"},{"$f":"VLOOKUP([1]!preferred_alternative[[#This Row],[Wert]],[1]LVs!A$1:U$592,9,FALSE)","v":"Finance"},{"$f":"_xlfn.IFS([1]!preferred_alternative[[#This Row],[Anmerkung]]=\"currently spots available\",\"please check the list of available courses\",[1]!preferred_alternative[[#This Row],[Anmerkung]]=\"if you need a spot, please reach out to us\",\"if you need a spot, please reach out to us\",[1]!preferred_alternative[[#This Row],[Anmerkung]]=\"completely full\",\"completely full\",[1]!preferred_alternative[[#This Row],[Anmerkung]]=\"Markus fragen\",\"in process of asking for more spots\",[1]!preferred_alternative[[#This Row],[Anmerkung]]=\"\",\"further updates by \"&TEXT([1]!preferred_alternative[[#This Row],[Further updates by]],\"tt.MM.jj\"))","v":"completely full"}]
[1110,{"$f":"VLOOKUP([1]!preferred_alternative[[#This Row],[Wert]],[1]LVs!A$1:U$592,2,FALSE)","v":"E&I Zone: AI Bootcamp for Entrepreneurs"},{"$f":"VLOOKUP([1]!preferred_alternative[[#This Row],[Wert]],[1]LVs!A$1:U$592,17,FALSE)","v":"Bachelor"},{"$f":"VLOOKUP([1]!preferred_alternative[[#This Row],[Wert]],[1]LVs!A$1:U$592,9,FALSE)","v":"Entrepreneurship and Innovation"},{"$f":"_xlfn.IFS([1]!preferred_alternative[[#This Row],[Anmerkung]]=\"currently spots available\",\"please check the list of available courses\",[1]!preferred_alternative[[#This Row],[Anmerkung]]=\"if you need a spot, please reach out to us\",\"if you need a spot, please reach out to us\",[1]!preferred_alternative[[#This Row],[Anmerkung]]=\"completely full\",\"completely full\",[1]!preferred_alternative[[#This Row],[Anmerkung]]=\"Markus fragen\",\"in process of asking for more spots\",[1]!preferred_alternative[[#This Row],[Anmerkung]]=\"\",\"further updates by \"&TEXT([1]!preferred_alternative[[#This Row],[Further updates by]],\"tt.MM.jj\"))","v":"completely full"}]
[882,{"$f":"VLOOKUP([1]!preferred_alternative[[#This Row],[Wert]],[1]LVs!A$1:U$592,2,FALSE)","v":"Humanitarian Logistics"},{"$f":"VLOOKUP([1]!preferred_alternative[[#This Row],[Wert]],[1]LVs!A$1:U$592,17,FALSE)","v":"Bachelor"},{"$f":"VLOOKUP([1]!preferred_alternative[[#This Row],[Wert]],[1]LVs!A$1:U$592,9,FALSE)","v":"Operations and Supply Chain Management"},{"$f":"_xlfn.IFS([1]!preferred_alternative[[#This Row],[Anmerkung]]=\"currently spots available\",\"please check the list of available courses\",[1]!preferred_alternative[[#This Row],[Anmerkung]]=\"if you need a spot, please reach out to us\",\"if you need a spot, please reach out to us\",[1]!preferred_alternative[[#This Row],[Anmerkung]]=\"completely full\",\"completely full\",[1]!preferred_alternative[[#This Row],[Anmerkung]]=\"Markus fragen\",\"in process of asking for more spots\",[1]!preferred_alternative[[#This Row],[Anmerkung]]=\"\",\"further updates by \"&TEXT([1]!preferred_alternative[[#This Row],[Further updates by]],\"tt.MM.jj\"))","v":"completely full"}]
[711,{"$f":"VLOOKUP([1]!preferred_alternative[[#This Row],[Wert]],[1]LVs!A$1:U$592,2,FALSE)","v":"Analysis and Optimization of Distribution Networks"},{"$f":"VLOOKUP([1]!preferred_alternative[[#This Row],[Wert]],[1]LVs!A$1:U$592,17,FALSE)","v":"Bachelor"},{"$f":"VLOOKUP([1]!preferred_alternative[[#This Row],[Wert]],[1]LVs!A$1:U$592,9,FALSE)","v":"Operations and Supply Chain Management"},{"$f":"_xlfn.IFS([1]!preferred_alternative[[#This Row],[Anmerkung]]=\"currently spots available\",\"please check the list of available courses\",[1]!preferred_alternative[[#This Row],[Anmerkung]]=\"if you need a spot, please reach out to us\",\"if you need a spot, please reach out to us\",[1]!preferred_alternative[[#This Row],[Anmerkung]]=\"completely full\",\"completely full\",[1]!preferred_alternative[[#This Row],[Anmerkung]]=\"Markus fragen\",\"in process of asking for more spots\",[1]!preferred_alternative[[#This Row],[Anmerkung]]=\"\",\"further updates by \"&TEXT([1]!preferred_alternative[[#This Row],[Further updates by]],\"tt.MM.jj\"))","v":"please check the list of available courses"}]
[2189,{"$f":"VLOOKUP([1]!preferred_alternative[[#This Row],[Wert]],[1]LVs!A$1:U$592,2,FALSE)","v":"International Retailing and Sales"},{"$f":"VLOOKUP([1]!preferred_alternative[[#This Row],[Wert]],[1]LVs!A$1:U$592,17,FALSE)","v":"Bachelor"},{"$f":"VLOOKUP([1]!preferred_alternative[[#This Row],[Wert]],[1]LVs!A$1:U$592,9,FALSE)","v":"Marketing"},{"$f":"_xlfn.IFS([1]!preferred_alternative[[#This Row],[Anmerkung]]=\"currently spots available\",\"please check the list of available courses\",[1]!preferred_alternative[[#This Row],[Anmerkung]]=\"if you need a spot, please reach out to us\",\"if you need a spot, please reach out to us\",[1]!preferred_alternative[[#This Row],[Anmerkung]]=\"completely full\",\"completely full\",[1]!preferred_alternative[[#This Row],[Anmerkung]]=\"Markus fragen\",\"in process of asking for more spots\",[1]!preferred_alternative[[#This Row],[Anmerkung]]=\"\",\"further updates by \"&TEXT([1]!preferred_alternative[[#This Row],[Further updates by]],\"tt.MM.jj\"))","v":"completely full"}]
[1752,{"$f":"VLOOKUP([1]!preferred_alternative[[#This Row],[Wert]],[1]LVs!A$1:U$592,2,FALSE)","v":"Responsible Marketing - Ethics, Sustainability and Social Impact"},{"$f":"VLOOKUP([1]!preferred_alternative[[#This Row],[Wert]],[1]LVs!A$1:U$592,17,FALSE)","v":"Bachelor"},{"$f":"VLOOKUP([1]!preferred_alternative[[#This Row],[Wert]],[1]LVs!A$1:U$592,9,FALSE)","v":"Marketing"},{"$f":"_xlfn.IFS([1]!preferred_alternative[[#This Row],[Anmerkung]]=\"currently spots available\",\"please check the list of available courses\",[1]!preferred_alternative[[#This Row],[Anmerkung]]=\"if you need a spot, please reach out to us\",\"if you need a spot, please reach out to us\",[1]!preferred_alternative[[#This Row],[Anmerkung]]=\"completely full\",\"completely full\",[1]!preferred_alternative[[#This Row],[Anmerkung]]=\"Markus fragen\",\"in process of asking for more spots\",[1]!preferred_alternative[[#This Row],[Anmerkung]]=\"\",\"further updates by \"&TEXT([1]!preferred_alternative[[#This Row],[Further updates by]],\"tt.MM.jj\"))","v":"please check the list of available courses"}]
[2724,{"$f":"VLOOKUP([1]!preferred_alternative[[#This Row],[Wert]],[1]LVs!A$1:U$592,2,FALSE)","v":"International Entrepreneurship"},{"$f":"VLOOKUP([1]!preferred_alternative[[#This Row],[Wert]],[1]LVs!A$1:U$592,17,FALSE)","v":"Bachelor"},{"$f":"VLOOKUP([1]!preferred_alternative[[#This Row],[Wert]],[1]LVs!A$1:U$592,9,FALSE)","v":"Entrepreneurship and Innovation"},{"$f":"_xlfn.IFS([1]!preferred_alternative[[#This Row],[Anmerkung]]=\"currently spots available\",\"please check the list of available courses\",[1]!preferred_alternative[[#This Row],[Anmerkung]]=\"if you need a spot, please reach out to us\",\"if you need a spot, please reach out to us\",[1]!preferred_alternative[[#This Row],[Anmerkung]]=\"completely full\",\"completely full\",[1]!preferred_alternative[[#This Row],[Anmerkung]]=\"Markus fragen\",\"in process of asking for more spots\",[1]!preferred_alternative[[#This Row],[Anmerkung]]=\"\",\"further updates by \"&TEXT([1]!preferred_alternative[[#This Row],[Further updates by]],\"tt.MM.jj\"))","v":"please check the list of available courses"}]
[241,{"$f":"VLOOKUP([1]!preferred_alternative[[#This Row],[Wert]],[1]LVs!A$1:U$592,2,FALSE)","v":"E&I Zone: AI101"},{"$f":"VLOOKUP([1]!preferred_alternative[[#This Row],[Wert]],[1]LVs!A$1:U$592,17,FALSE)","v":"Bachelor"},{"$f":"VLOOKUP([1]!preferred_alternative[[#This Row],[Wert]],[1]LVs!A$1:U$592,9,FALSE)","v":"Entrepreneurship and Innovation"},{"$f":"_xlfn.IFS([1]!preferred_alternative[[#This Row],[Anmerkung]]=\"currently spots available\",\"please check the list of available courses\",[1]!preferred_alternative[[#This Row],[Anmerkung]]=\"if you need a spot, please reach out to us\",\"if you need a spot, please reach out to us\",[1]!preferred_alternative[[#This Row],[Anmerkung]]=\"completely full\",\"completely full\",[1]!preferred_alternative[[#This Row],[Anmerkung]]=\"Markus fragen\",\"in process of asking for more spots\",[1]!preferred_alternative[[#This Row],[Anmerkung]]=\"\",\"further updates by \"&TEXT([1]!preferred_alternative[[#This Row],[Further updates by]],\"tt.MM.jj\"))","v":"completely full"}]
[2242,{"$f":"VLOOKUP([1]!preferred_alternative[[#This Row],[Wert]],[1]LVs!A$1:U$592,2,FALSE)","v":"Soft Skills"},{"$f":"VLOOKUP([1]!preferred_alternative[[#This Row],[Wert]],[1]LVs!A$1:U$592,17,FALSE)","v":"Bachelor"},{"$f":"VLOOKUP([1]!preferred_alternative[[#This Row],[Wert]],[1]LVs!A$1:U$592,9,FALSE)","v":"Business Skills"},{"$f":"_xlfn.IFS([1]!preferred_alternative[[#This Row],[Anmerkung]]=\"currently spots available\",\"please check the list of available courses\",[1]!preferred_alternative[[#This Row],[Anmerkung]]=\"if you need a spot, please reach out to us\",\"if you need a spot, please reach out to us\",[1]!preferred_alternative[[#This Row],[Anmerkung]]=\"completely full\",\"completely full\",[1]!preferred_alternative[[#This Row],[Anmerkung]]=\"Markus fragen\",\"in process of asking for more spots\",[1]!preferred_alternative[[#This Row],[Anmerkung]]=\"\",\"further updates by \"&TEXT([1]!preferred_alternative[[#This Row],[Further updates by]],\"tt.MM.jj\"))","v":"completely full"}]
[340,{"$f":"VLOOKUP([1]!preferred_alternative[[#This Row],[Wert]],[1]LVs!A$1:U$592,2,FALSE)","v":"Course V - Innovating Exchange Industry"},{"$f":"VLOOKUP([1]!preferred_alternative[[#This Row],[Wert]],[1]LVs!A$1:U$592,17,FALSE)","v":"Bachelor"},{"$f":"VLOOKUP([1]!preferred_alternative[[#This Row],[Wert]],[1]LVs!A$1:U$592,9,FALSE)","v":"Finance"},{"$f":"_xlfn.IFS([1]!preferred_alternative[[#This Row],[Anmerkung]]=\"currently spots available\",\"please check the list of available courses\",[1]!preferred_alternative[[#This Row],[Anmerkung]]=\"if you need a spot, please reach out to us\",\"if you need a spot, please reach out to us\",[1]!preferred_alternative[[#This Row],[Anmerkung]]=\"completely full\",\"completely full\",[1]!preferred_alternative[[#This Row],[Anmerkung]]=\"Markus fragen\",\"in process of asking for more spots\",[1]!preferred_alternative[[#This Row],[Anmerkung]]=\"\",\"further updates by \"&TEXT([1]!preferred_alternative[[#This Row],[Further updates by]],\"tt.MM.jj\"))","v":"completely full"}]
[1386,{"$f":"VLOOKUP([1]!preferred_alternative[[#This Row],[Wert]],[1]LVs!A$1:U$592,2,FALSE)","v":"Course V - Quantitative Finance"},{"$f":"VLOOKUP([1]!preferred_alternative[[#This Row],[Wert]],[1]LVs!A$1:U$592,17,FALSE)","v":"Bachelor"},{"$f":"VLOOKUP([1]!preferred_alternative[[#This Row],[Wert]],[1]LVs!A$1:U$592,9,FALSE)","v":"Finance"},{"$f":"_xlfn.IFS([1]!preferred_alternative[[#This Row],[Anmerkung]]=\"currently spots available\",\"please check the list of available courses\",[1]!preferred_alternative[[#This Row],[Anmerkung]]=\"if you need a spot, please reach out to us\",\"if you need a spot, please reach out to us\",[1]!preferred_alternative[[#This Row],[Anmerkung]]=\"completely full\",\"completely full\",[1]!preferred_alternative[[#This Row],[Anmerkung]]=\"Markus fragen\",\"in process of asking for more spots\",[1]!preferred_alternative[[#This Row],[Anmerkung]]=\"\",\"further updates by \"&TEXT([1]!preferred_alternative[[#This Row],[Further updates by]],\"tt.MM.jj\"))","v":"completely full"}]
[1699,{"$f":"VLOOKUP([1]!preferred_alternative[[#This Row],[Wert]],[1]LVs!A$1:U$592,2,FALSE)","v":"Sustainable Supply Chain Management (SC SSCM)"},{"$f":"VLOOKUP([1]!preferred_alternative[[#This Row],[Wert]],[1]LVs!A$1:U$592,17,FALSE)","v":"Master"},{"$f":"VLOOKUP([1]!preferred_alternative[[#This Row],[Wert]],[1]LVs!A$1:U$592,9,FALSE)","v":"Operations and Supply Chain Management"},{"$f":"_xlfn.IFS([1]!preferred_alternative[[#This Row],[Anmerkung]]=\"currently spots available\",\"please check the list of available courses\",[1]!preferred_alternative[[#This Row],[Anmerkung]]=\"if you need a spot, please reach out to us\",\"if you need a spot, please reach out to us\",[1]!preferred_alternative[[#This Row],[Anmerkung]]=\"completely full\",\"completely full\",[1]!preferred_alternative[[#This Row],[Anmerkung]]=\"Markus fragen\",\"in process of asking for more spots\",[1]!preferred_alternative[[#This Row],[Anmerkung]]=\"\",\"further updates by \"&TEXT([1]!preferred_alternative[[#This Row],[Further updates by]],\"tt.MM.jj\"))","v":"completely full"}]
[337,{"$f":"VLOOKUP([1]!preferred_alternative[[#This Row],[Wert]],[1]LVs!A$1:U$592,2,FALSE)","v":"Course V - Banks, Accounting and Supervision"},{"$f":"VLOOKUP([1]!preferred_alternative[[#This Row],[Wert]],[1]LVs!A$1:U$592,17,FALSE)","v":"Bachelor"},{"$f":"VLOOKUP([1]!preferred_alternative[[#This Row],[Wert]],[1]LVs!A$1:U$592,9,FALSE)","v":"Finance"},{"$f":"_xlfn.IFS([1]!preferred_alternative[[#This Row],[Anmerkung]]=\"currently spots available\",\"please check the list of available courses\",[1]!preferred_alternative[[#This Row],[Anmerkung]]=\"if you need a spot, please reach out to us\",\"if you need a spot, please reach out to us\",[1]!preferred_alternative[[#This Row],[Anmerkung]]=\"completely full\",\"completely full\",[1]!preferred_alternative[[#This Row],[Anmerkung]]=\"Markus fragen\",\"in process of asking for more spots\",[1]!preferred_alternative[[#This Row],[Anmerkung]]=\"\",\"further updates by \"&TEXT([1]!preferred_alternative[[#This Row],[Further updates by]],\"tt.MM.jj\"))","v":"completely full"}]
[1779,{"$f":"VLOOKUP([1]!preferred_alternative[[#This Row],[Wert]],[1]LVs!A$1:U$592,2,FALSE)","v":"Course II - Financial Management and Valuation"},{"$f":"VLOOKUP([1]!preferred_alternative[[#This Row],[Wert]],[1]LVs!A$1:U$592,17,FALSE)","v":"Bachelor"},{"$f":"VLOOKUP([1]!preferred_alternative[[#This Row],[Wert]],[1]LVs!A$1:U$592,9,FALSE)","v":"Finance"},{"$f":"_xlfn.IFS([1]!preferred_alternative[[#This Row],[Anmerkung]]=\"currently spots available\",\"please check the list of available courses\",[1]!preferred_alternative[[#This Row],[Anmerkung]]=\"if you need a spot, please reach out to us\",\"if you need a spot, please reach out to us\",[1]!preferred_alternative[[#This Row],[Anmerkung]]=\"completely full\",\"completely full\",[1]!preferred_alternative[[#This Row],[Anmerkung]]=\"Markus fragen\",\"in process of asking for more spots\",[1]!preferred_alternative[[#This Row],[Anmerkung]]=\"\",\"further updates by \"&TEXT([1]!preferred_alternative[[#This Row],[Further updates by]],\"tt.MM.jj\"))","v":"completely full"}]
[1538,{"$f":"VLOOKUP([1]!preferred_alternative[[#This Row],[Wert]],[1]LVs!A$1:U$592,2,FALSE)","v":"Course V - Systematic Investing in R"},{"$f":"VLOOKUP([1]!preferred_alternative[[#This Row],[Wert]],[1]LVs!A$1:U$592,17,FALSE)","v":"Bachelor"},{"$f":"VLOOKUP([1]!preferred_alternative[[#This Row],[Wert]],[1]LVs!A$1:U$592,9,FALSE)","v":"Economics"},{"$f":"_xlfn.IFS([1]!preferred_alternative[[#This Row],[Anmerkung]]=\"currently spots available\",\"please check the list of available courses\",[1]!preferred_alternative[[#This Row],[Anmerkung]]=\"if you need a spot, please reach out to us\",\"if you need a spot, please reach out to us\",[1]!preferred_alternative[[#This Row],[Anmerkung]]=\"completely full\",\"completely full\",[1]!preferred_alternative[[#This Row],[Anmerkung]]=\"Markus fragen\",\"in process of asking for more spots\",[1]!preferred_alternative[[#This Row],[Anmerkung]]=\"\",\"further updates by \"&TEXT([1]!preferred_alternative[[#This Row],[Further updates by]],\"tt.MM.jj\"))","v":"please check the list of available courses"}]
[2041,{"$f":"VLOOKUP([1]!preferred_alternative[[#This Row],[Wert]],[1]LVs!A$1:U$592,2,FALSE)","v":"Course III - Corporate Finance"},{"$f":"VLOOKUP([1]!preferred_alternative[[#This Row],[Wert]],[1]LVs!A$1:U$592,17,FALSE)","v":"Bachelor"},{"$f":"VLOOKUP([1]!preferred_alternative[[#This Row],[Wert]],[1]LVs!A$1:U$592,9,FALSE)","v":"Finance"},{"$f":"_xlfn.IFS([1]!preferred_alternative[[#This Row],[Anmerkung]]=\"currently spots available\",\"please check the list of available courses\",[1]!preferred_alternative[[#This Row],[Anmerkung]]=\"if you need a spot, please reach out to us\",\"if you need a spot, please reach out to us\",[1]!preferred_alternative[[#This Row],[Anmerkung]]=\"completely full\",\"completely full\",[1]!preferred_alternative[[#This Row],[Anmerkung]]=\"Markus fragen\",\"in process of asking for more spots\",[1]!preferred_alternative[[#This Row],[Anmerkung]]=\"\",\"further updates by \"&TEXT([1]!preferred_alternative[[#This Row],[Further updates by]],\"tt.MM.jj\"))","v":"completely full"}]
[769,{"$f":"VLOOKUP([1]!preferred_alternative[[#This Row],[Wert]],[1]LVs!A$1:U$592,2,FALSE)","v":"Supply Chain Finance and Risk Management 1 (SCF 1)"},{"$f":"VLOOKUP([1]!preferred_alternative[[#This Row],[Wert]],[1]LVs!A$1:U$592,17,FALSE)","v":"Master"},{"$f":"VLOOKUP([1]!preferred_alternative[[#This Row],[Wert]],[1]LVs!A$1:U$592,9,FALSE)","v":"Operations and Supply Chain Management"},{"$f":"_xlfn.IFS([1]!preferred_alternative[[#This Row],[Anmerkung]]=\"currently spots available\",\"please check the list of available courses\",[1]!preferred_alternative[[#This Row],[Anmerkung]]=\"if you need a spot, please reach out to us\",\"if you need a spot, please reach out to us\",[1]!preferred_alternative[[#This Row],[Anmerkung]]=\"completely full\",\"completely full\",[1]!preferred_alternative[[#This Row],[Anmerkung]]=\"Markus fragen\",\"in process of asking for more spots\",[1]!preferred_alternative[[#This Row],[Anmerkung]]=\"\",\"further updates by \"&TEXT([1]!preferred_alternative[[#This Row],[Further updates by]],\"tt.MM.jj\"))","v":"completely full"}]
[1373,{"$f":"VLOOKUP([1]!preferred_alternative[[#This Row],[Wert]],[1]LVs!A$1:U$592,2,FALSE)","v":"Course III - Corporate Finance"},{"$f":"VLOOKUP([1]!preferred_alternative[[#This Row],[Wert]],[1]LVs!A$1:U$592,17,FALSE)","v":"Bachelor"},{"$f":"VLOOKUP([1]!preferred_alternative[[#This Row],[Wert]],[1]LVs!A$1:U$592,9,FALSE)","v":"Finance"},{"$f":"_xlfn.IFS([1]!preferred_alternative[[#This Row],[Anmerkung]]=\"currently spots available\",\"please check the list of available courses\",[1]!preferred_alternative[[#This Row],[Anmerkung]]=\"if you need a spot, please reach out to us\",\"if you need a spot, please reach out to us\",[1]!preferred_alternative[[#This Row],[Anmerkung]]=\"completely full\",\"completely full\",[1]!preferred_alternative[[#This Row],[Anmerkung]]=\"Markus fragen\",\"in process of asking for more spots\",[1]!preferred_alternative[[#This Row],[Anmerkung]]=\"\",\"further updates by \"&TEXT([1]!preferred_alternative[[#This Row],[Further updates by]],\"tt.MM.jj\"))","v":"if you need a spot, please reach out to us"}]
[1539,{"$f":"VLOOKUP([1]!preferred_alternative[[#This Row],[Wert]],[1]LVs!A$1:U$592,2,FALSE)","v":"Recent Topics in Supply Chain Management 1: Perfect Negotiation Skills (RT 1)"},{"$f":"VLOOKUP([1]!preferred_alternative[[#This Row],[Wert]],[1]LVs!A$1:U$592,17,FALSE)","v":"Master"},{"$f":"VLOOKUP([1]!preferred_alternative[[#This Row],[Wert]],[1]LVs!A$1:U$592,9,FALSE)","v":"Operations and Supply Chain Management"},{"$f":"_xlfn.IFS([1]!preferred_alternative[[#This Row],[Anmerkung]]=\"currently spots available\",\"please check the list of available courses\",[1]!preferred_alternative[[#This Row],[Anmerkung]]=\"if you need a spot, please reach out to us\",\"if you need a spot, please reach out to us\",[1]!preferred_alternative[[#This Row],[Anmerkung]]=\"completely full\",\"completely full\",[1]!preferred_alternative[[#This Row],[Anmerkung]]=\"Markus fragen\",\"in process of asking for more spots\",[1]!preferred_alternative[[#This Row],[Anmerkung]]=\"\",\"further updates by \"&TEXT([1]!preferred_alternative[[#This Row],[Further updates by]],\"tt.MM.jj\"))","v":"completely full"}]
[1370,{"$f":"VLOOKUP([1]!preferred_alternative[[#This Row],[Wert]],[1]LVs!A$1:U$592,2,FALSE)","v":"Course III - Corporate Finance"},{"$f":"VLOOKUP([1]!preferred_alternative[[#This Row],[Wert]],[1]LVs!A$1:U$592,17,FALSE)","v":"Bachelor"},{"$f":"VLOOKUP([1]!preferred_alternative[[#This Row],[Wert]],[1]LVs!A$1:U$592,9,FALSE)","v":"Finance"},{"$f":"_xlfn.IFS([1]!preferred_alternative[[#This Row],[Anmerkung]]=\"currently spots available\",\"please check the list of available courses\",[1]!preferred_alternative[[#This Row],[Anmerkung]]=\"if you need a spot, please reach out to us\",\"if you need a spot, please reach out to us\",[1]!preferred_alternative[[#This Row],[Anmerkung]]=\"completely full\",\"completely full\",[1]!preferred_alternative[[#This Row],[Anmerkung]]=\"Markus fragen\",\"in process of asking for more spots\",[1]!preferred_alternative[[#This Row],[Anmerkung]]=\"\",\"further updates by \"&TEXT([1]!preferred_alternative[[#This Row],[Further updates by]],\"tt.MM.jj\"))","v":"please check the list of available courses"}]
[633,{"$f":"VLOOKUP([1]!preferred_alternative[[#This Row],[Wert]],[1]LVs!A$1:U$592,2,FALSE)","v":"Consumer Touchpoint Management"},{"$f":"VLOOKUP([1]!preferred_alternative[[#This Row],[Wert]],[1]LVs!A$1:U$592,17,FALSE)","v":"Bachelor"},{"$f":"VLOOKUP([1]!preferred_alternative[[#This Row],[Wert]],[1]LVs!A$1:U$592,9,FALSE)","v":"Marketing"},{"$f":"_xlfn.IFS([1]!preferred_alternative[[#This Row],[Anmerkung]]=\"currently spots available\",\"please check the list of available courses\",[1]!preferred_alternative[[#This Row],[Anmerkung]]=\"if you need a spot, please reach out to us\",\"if you need a spot, please reach out to us\",[1]!preferred_alternative[[#This Row],[Anmerkung]]=\"completely full\",\"completely full\",[1]!preferred_alternative[[#This Row],[Anmerkung]]=\"Markus fragen\",\"in process of asking for more spots\",[1]!preferred_alternative[[#This Row],[Anmerkung]]=\"\",\"further updates by \"&TEXT([1]!preferred_alternative[[#This Row],[Further updates by]],\"tt.MM.jj\"))","v":"if you need a spot, please reach out to us"}]
[1202,{"$f":"VLOOKUP([1]!preferred_alternative[[#This Row],[Wert]],[1]LVs!A$1:U$592,2,FALSE)","v":"Course II - Financial Management and Valuation"},{"$f":"VLOOKUP([1]!preferred_alternative[[#This Row],[Wert]],[1]LVs!A$1:U$592,17,FALSE)","v":"Bachelor"},{"$f":"VLOOKUP([1]!preferred_alternative[[#This Row],[Wert]],[1]LVs!A$1:U$592,9,FALSE)","v":"Finance"},{"$f":"_xlfn.IFS([1]!preferred_alternative[[#This Row],[Anmerkung]]=\"currently spots available\",\"please check the list of available courses\",[1]!preferred_alternative[[#This Row],[Anmerkung]]=\"if you need a spot, please reach out to us\",\"if you need a spot, please reach out to us\",[1]!preferred_alternative[[#This Row],[Anmerkung]]=\"completely full\",\"completely full\",[1]!preferred_alternative[[#This Row],[Anmerkung]]=\"Markus fragen\",\"in process of asking for more spots\",[1]!preferred_alternative[[#This Row],[Anmerkung]]=\"\",\"further updates by \"&TEXT([1]!preferred_alternative[[#This Row],[Further updates by]],\"tt.MM.jj\"))","v":"please check the list of available courses"}]
[1382,{"$f":"VLOOKUP([1]!preferred_alternative[[#This Row],[Wert]],[1]LVs!A$1:U$592,2,FALSE)","v":"Course IV - Risk Management"},{"$f":"VLOOKUP([1]!preferred_alternative[[#This Row],[Wert]],[1]LVs!A$1:U$592,17,FALSE)","v":"Bachelor"},{"$f":"VLOOKUP([1]!preferred_alternative[[#This Row],[Wert]],[1]LVs!A$1:U$592,9,FALSE)","v":"Finance"},{"$f":"_xlfn.IFS([1]!preferred_alternative[[#This Row],[Anmerkung]]=\"currently spots available\",\"please check the list of available courses\",[1]!preferred_alternative[[#This Row],[Anmerkung]]=\"if you need a spot, please reach out to us\",\"if you need a spot, please reach out to us\",[1]!preferred_alternative[[#This Row],[Anmerkung]]=\"completely full\",\"completely full\",[1]!preferred_alternative[[#This Row],[Anmerkung]]=\"Markus fragen\",\"in process of asking for more spots\",[1]!preferred_alternative[[#This Row],[Anmerkung]]=\"\",\"further updates by \"&TEXT([1]!preferred_alternative[[#This Row],[Further updates by]],\"tt.MM.jj\"))","v":"please check the list of available courses"}]
[1203,{"$f":"VLOOKUP([1]!preferred_alternative[[#This Row],[Wert]],[1]LVs!A$1:U$592,2,FALSE)","v":"Course II - Financial Management and Valuation"},{"$f":"VLOOKUP([1]!preferred_alternative[[#This Row],[Wert]],[1]LVs!A$1:U$592,17,FALSE)","v":"Bachelor"},{"$f":"VLOOKUP([1]!preferred_alternative[[#This Row],[Wert]],[1]LVs!A$1:U$592,9,FALSE)","v":"Finance"},{"$f":"_xlfn.IFS([1]!preferred_alternative[[#This Row],[Anmerkung]]=\"currently spots available\",\"please check the list of available courses\",[1]!preferred_alternative[[#This Row],[Anmerkung]]=\"if you need a spot, please reach out to us\",\"if you need a spot, please reach out to us\",[1]!preferred_alternative[[#This Row],[Anmerkung]]=\"completely full\",\"completely full\",[1]!preferred_alternative[[#This Row],[Anmerkung]]=\"Markus fragen\",\"in process of asking for more spots\",[1]!preferred_alternative[[#This Row],[Anmerkung]]=\"\",\"further updates by \"&TEXT([1]!preferred_alternative[[#This Row],[Further updates by]],\"tt.MM.jj\"))","v":"please check the list of available courses"}]
[1383,{"$f":"VLOOKUP([1]!preferred_alternative[[#This Row],[Wert]],[1]LVs!A$1:U$592,2,FALSE)","v":"Course IV - Risk Management"},{"$f":"VLOOKUP([1]!preferred_alternative[[#This Row],[Wert]],[1]LVs!A$1:U$592,17,FALSE)","v":"Bachelor"},{"$f":"VLOOKUP([1]!preferred_alternative[[#This Row],[Wert]],[1]LVs!A$1:U$592,9,FALSE)","v":"Finance"},{"$f":"_xlfn.IFS([1]!preferred_alternative[[#This Row],[Anmerkung]]=\"currently spots available\",\"please check the list of available courses\",[1]!preferred_alternative[[#This Row],[Anmerkung]]=\"if you need a spot, please reach out to us\",\"if you need a spot, please reach out to us\",[1]!preferred_alternative[[#This Row],[Anmerkung]]=\"completely full\",\"completely full\",[1]!preferred_alternative[[#This Row],[Anmerkung]]=\"Markus fragen\",\"in process of asking for more spots\",[1]!preferred_alternative[[#This Row],[Anmerkung]]=\"\",\"further updates by \"&TEXT([1]!preferred_alternative[[#This Row],[Further updates by]],\"tt.MM.jj\"))","v":"please check the list of available courses"}]
[1322,{"$f":"VLOOKUP([1]!preferred_alternative[[#This Row],[Wert]],[1]LVs!A$1:U$592,2,FALSE)","v":"Course V - Corporate Finance: Principles & Practice"},{"$f":"VLOOKUP([1]!preferred_alternative[[#This Row],[Wert]],[1]LVs!A$1:U$592,17,FALSE)","v":"Bachelor"},{"$f":"VLOOKUP([1]!preferred_alternative[[#This Row],[Wert]],[1]LVs!A$1:U$592,9,FALSE)","v":"Finance"},{"$f":"_xlfn.IFS([1]!preferred_alternative[[#This Row],[Anmerkung]]=\"currently spots available\",\"please check the list of available courses\",[1]!preferred_alternative[[#This Row],[Anmerkung]]=\"if you need a spot, please reach out to us\",\"if you need a spot, please reach out to us\",[1]!preferred_alternative[[#This Row],[Anmerkung]]=\"completely full\",\"completely full\",[1]!preferred_alternative[[#This Row],[Anmerkung]]=\"Markus fragen\",\"in process of asking for more spots\",[1]!preferred_alternative[[#This Row],[Anmerkung]]=\"\",\"further updates by \"&TEXT([1]!preferred_alternative[[#This Row],[Further updates by]],\"tt.MM.jj\"))","v":"completely full"}]
[487,{"$f":"VLOOKUP([1]!preferred_alternative[[#This Row],[Wert]],[1]LVs!A$1:U$592,2,FALSE)","v":"Course V - Estimating the Cost of Capital"},{"$f":"VLOOKUP([1]!preferred_alternative[[#This Row],[Wert]],[1]LVs!A$1:U$592,17,FALSE)","v":"Bachelor"},{"$f":"VLOOKUP([1]!preferred_alternative[[#This Row],[Wert]],[1]LVs!A$1:U$592,9,FALSE)","v":"Finance"},{"$f":"_xlfn.IFS([1]!preferred_alternative[[#This Row],[Anmerkung]]=\"currently spots available\",\"please check the list of available courses\",[1]!preferred_alternative[[#This Row],[Anmerkung]]=\"if you need a spot, please reach out to us\",\"if you need a spot, please reach out to us\",[1]!preferred_alternative[[#This Row],[Anmerkung]]=\"completely full\",\"completely full\",[1]!preferred_alternative[[#This Row],[Anmerkung]]=\"Markus fragen\",\"in process of asking for more spots\",[1]!preferred_alternative[[#This Row],[Anmerkung]]=\"\",\"further updates by \"&TEXT([1]!preferred_alternative[[#This Row],[Further updates by]],\"tt.MM.jj\"))","v":"please check the list of available courses"}]
[512,{"$f":"VLOOKUP([1]!preferred_alternative[[#This Row],[Wert]],[1]LVs!A$1:U$592,2,FALSE)","v":"Sustainable and Humanitarian Supply Chains 1 (SH 1)"},{"$f":"VLOOKUP([1]!preferred_alternative[[#This Row],[Wert]],[1]LVs!A$1:U$592,17,FALSE)","v":"Master"},{"$f":"VLOOKUP([1]!preferred_alternative[[#This Row],[Wert]],[1]LVs!A$1:U$592,9,FALSE)","v":"Operations and Supply Chain Management"},{"$f":"_xlfn.IFS([1]!preferred_alternative[[#This Row],[Anmerkung]]=\"currently spots available\",\"please check the list of available courses\",[1]!preferred_alternative[[#This Row],[Anmerkung]]=\"if you need a spot, please reach out to us\",\"if you need a spot, please reach out to us\",[1]!preferred_alternative[[#This Row],[Anmerkung]]=\"completely full\",\"completely full\",[1]!preferred_alternative[[#This Row],[Anmerkung]]=\"Markus fragen\",\"in process of asking for more spots\",[1]!preferred_alternative[[#This Row],[Anmerkung]]=\"\",\"further updates by \"&TEXT([1]!preferred_alternative[[#This Row],[Further updates by]],\"tt.MM.jj\"))","v":"completely full"}]
[787,{"$f":"VLOOKUP([1]!preferred_alternative[[#This Row],[Wert]],[1]LVs!A$1:U$592,2,FALSE)","v":"Social Policy"},{"$f":"VLOOKUP([1]!preferred_alternative[[#This Row],[Wert]],[1]LVs!A$1:U$592,17,FALSE)","v":"Bachelor"},{"$f":"VLOOKUP([1]!preferred_alternative[[#This Row],[Wert]],[1]LVs!A$1:U$592,9,FALSE)","v":"Socioeconomics"},{"$f":"_xlfn.IFS([1]!preferred_alternative[[#This Row],[Anmerkung]]=\"currently spots available\",\"please check the list of available courses\",[1]!preferred_alternative[[#This Row],[Anmerkung]]=\"if you need a spot, please reach out to us\",\"if you need a spot, please reach out to us\",[1]!preferred_alternative[[#This Row],[Anmerkung]]=\"completely full\",\"completely full\",[1]!preferred_alternative[[#This Row],[Anmerkung]]=\"Markus fragen\",\"in process of asking for more spots\",[1]!preferred_alternative[[#This Row],[Anmerkung]]=\"\",\"further updates by \"&TEXT([1]!preferred_alternative[[#This Row],[Further updates by]],\"tt.MM.jj\"))","v":"please check the list of available courses"}]
[231,{"$f":"VLOOKUP([1]!preferred_alternative[[#This Row],[Wert]],[1]LVs!A$1:U$592,2,FALSE)","v":"European Law and Economics"},{"$f":"VLOOKUP([1]!preferred_alternative[[#This Row],[Wert]],[1]LVs!A$1:U$592,17,FALSE)","v":"Bachelor"},{"$f":"VLOOKUP([1]!preferred_alternative[[#This Row],[Wert]],[1]LVs!A$1:U$592,9,FALSE)","v":"Business Law (incl. THEMIS)"},{"$f":"_xlfn.IFS([1]!preferred_alternative[[#This Row],[Anmerkung]]=\"currently spots available\",\"please check the list of available courses\",[1]!preferred_alternative[[#This Row],[Anmerkung]]=\"if you need a spot, please reach out to us\",\"if you need a spot, please reach out to us\",[1]!preferred_alternative[[#This Row],[Anmerkung]]=\"completely full\",\"completely full\",[1]!preferred_alternative[[#This Row],[Anmerkung]]=\"Markus fragen\",\"in process of asking for more spots\",[1]!preferred_alternative[[#This Row],[Anmerkung]]=\"\",\"further updates by \"&TEXT([1]!preferred_alternative[[#This Row],[Further updates by]],\"tt.MM.jj\"))","v":"please check the list of available courses"}]
[1334,{"$f":"VLOOKUP([1]!preferred_alternative[[#This Row],[Wert]],[1]LVs!A$1:U$592,2,FALSE)","v":"Course II: Economics and Policy of the Public Healthcare Industry"},{"$f":"VLOOKUP([1]!preferred_alternative[[#This Row],[Wert]],[1]LVs!A$1:U$592,17,FALSE)","v":"Bachelor"},{"$f":"VLOOKUP([1]!preferred_alternative[[#This Row],[Wert]],[1]LVs!A$1:U$592,9,FALSE)","v":"Socioeconomics"},{"$f":"_xlfn.IFS([1]!preferred_alternative[[#This Row],[Anmerkung]]=\"currently spots available\",\"please check the list of available courses\",[1]!preferred_alternative[[#This Row],[Anmerkung]]=\"if you need a spot, please reach out to us\",\"if you need a spot, please reach out to us\",[1]!preferred_alternative[[#This Row],[Anmerkung]]=\"completely full\",\"completely full\",[1]!preferred_alternative[[#This Row],[Anmerkung]]=\"Markus fragen\",\"in process of asking for more spots\",[1]!preferred_alternative[[#This Row],[Anmerkung]]=\"\",\"further updates by \"&TEXT([1]!preferred_alternative[[#This Row],[Further updates by]],\"tt.MM.jj\"))","v":"completely full"}]
[2739,{"$f":"VLOOKUP([1]!preferred_alternative[[#This Row],[Wert]],[1]LVs!A$1:U$592,2,FALSE)","v":"E3 Decision Making for Responsible International Business"},{"$f":"VLOOKUP([1]!preferred_alternative[[#This Row],[Wert]],[1]LVs!A$1:U$592,17,FALSE)","v":"Bachelor"},{"$f":"VLOOKUP([1]!preferred_alternative[[#This Row],[Wert]],[1]LVs!A$1:U$592,9,FALSE)","v":"Management"},{"$f":"_xlfn.IFS([1]!preferred_alternative[[#This Row],[Anmerkung]]=\"currently spots available\",\"please check the list of available courses\",[1]!preferred_alternative[[#This Row],[Anmerkung]]=\"if you need a spot, please reach out to us\",\"if you need a spot, please reach out to us\",[1]!preferred_alternative[[#This Row],[Anmerkung]]=\"completely full\",\"completely full\",[1]!preferred_alternative[[#This Row],[Anmerkung]]=\"Markus fragen\",\"in process of asking for more spots\",[1]!preferred_alternative[[#This Row],[Anmerkung]]=\"\",\"further updates by \"&TEXT([1]!preferred_alternative[[#This Row],[Further updates by]],\"tt.MM.jj\"))","v":"please check the list of available courses"}]
[1280,{"$f":"VLOOKUP([1]!preferred_alternative[[#This Row],[Wert]],[1]LVs!A$1:U$592,2,FALSE)","v":"International Business Applications"},{"$f":"VLOOKUP([1]!preferred_alternative[[#This Row],[Wert]],[1]LVs!A$1:U$592,17,FALSE)","v":"Bachelor"},{"$f":"VLOOKUP([1]!preferred_alternative[[#This Row],[Wert]],[1]LVs!A$1:U$592,9,FALSE)","v":"International Business"},{"$f":"_xlfn.IFS([1]!preferred_alternative[[#This Row],[Anmerkung]]=\"currently spots available\",\"please check the list of available courses\",[1]!preferred_alternative[[#This Row],[Anmerkung]]=\"if you need a spot, please reach out to us\",\"if you need a spot, please reach out to us\",[1]!preferred_alternative[[#This Row],[Anmerkung]]=\"completely full\",\"completely full\",[1]!preferred_alternative[[#This Row],[Anmerkung]]=\"Markus fragen\",\"in process of asking for more spots\",[1]!preferred_alternative[[#This Row],[Anmerkung]]=\"\",\"further updates by \"&TEXT([1]!preferred_alternative[[#This Row],[Further updates by]],\"tt.MM.jj\"))","v":"if you need a spot, please reach out to us"}]
[1225,{"$f":"VLOOKUP([1]!preferred_alternative[[#This Row],[Wert]],[1]LVs!A$1:U$592,2,FALSE)","v":"Mensch und Organisation"},{"$f":"VLOOKUP([1]!preferred_alternative[[#This Row],[Wert]],[1]LVs!A$1:U$592,17,FALSE)","v":"Bachelor"},{"$f":"VLOOKUP([1]!preferred_alternative[[#This Row],[Wert]],[1]LVs!A$1:U$592,9,FALSE)","v":"Human Resource Management"},{"$f":"_xlfn.IFS([1]!preferred_alternative[[#This Row],[Anmerkung]]=\"currently spots available\",\"please check the list of available courses\",[1]!preferred_alternative[[#This Row],[Anmerkung]]=\"if you need a spot, please reach out to us\",\"if you need a spot, please reach out to us\",[1]!preferred_alternative[[#This Row],[Anmerkung]]=\"completely full\",\"completely full\",[1]!preferred_alternative[[#This Row],[Anmerkung]]=\"Markus fragen\",\"in process of asking for more spots\",[1]!preferred_alternative[[#This Row],[Anmerkung]]=\"\",\"further updates by \"&TEXT([1]!preferred_alternative[[#This Row],[Further updates by]],\"tt.MM.jj\"))","v":"please check the list of available courses"}]
[1407,{"$f":"VLOOKUP([1]!preferred_alternative[[#This Row],[Wert]],[1]LVs!A$1:U$592,2,FALSE)","v":"SCSDT 1: Supply Chain Strategy (Group A)"},{"$f":"VLOOKUP([1]!preferred_alternative[[#This Row],[Wert]],[1]LVs!A$1:U$592,17,FALSE)","v":"Master"},{"$f":"VLOOKUP([1]!preferred_alternative[[#This Row],[Wert]],[1]LVs!A$1:U$592,9,FALSE)","v":"Operations and Supply Chain Management"},{"$f":"_xlfn.IFS([1]!preferred_alternative[[#This Row],[Anmerkung]]=\"currently spots available\",\"please check the list of available courses\",[1]!preferred_alternative[[#This Row],[Anmerkung]]=\"if you need a spot, please reach out to us\",\"if you need a spot, please reach out to us\",[1]!preferred_alternative[[#This Row],[Anmerkung]]=\"completely full\",\"completely full\",[1]!preferred_alternative[[#This Row],[Anmerkung]]=\"Markus fragen\",\"in process of asking for more spots\",[1]!preferred_alternative[[#This Row],[Anmerkung]]=\"\",\"further updates by \"&TEXT([1]!preferred_alternative[[#This Row],[Further updates by]],\"tt.MM.jj\"))","v":"if you need a spot, please reach out to us"}]
[2737,{"$f":"VLOOKUP([1]!preferred_alternative[[#This Row],[Wert]],[1]LVs!A$1:U$592,2,FALSE)","v":"E3 Responsible Global Leadership"},{"$f":"VLOOKUP([1]!preferred_alternative[[#This Row],[Wert]],[1]LVs!A$1:U$592,17,FALSE)","v":"Bachelor"},{"$f":"VLOOKUP([1]!preferred_alternative[[#This Row],[Wert]],[1]LVs!A$1:U$592,9,FALSE)","v":"Management"},{"$f":"_xlfn.IFS([1]!preferred_alternative[[#This Row],[Anmerkung]]=\"currently spots available\",\"please check the list of available courses\",[1]!preferred_alternative[[#This Row],[Anmerkung]]=\"if you need a spot, please reach out to us\",\"if you need a spot, please reach out to us\",[1]!preferred_alternative[[#This Row],[Anmerkung]]=\"completely full\",\"completely full\",[1]!preferred_alternative[[#This Row],[Anmerkung]]=\"Markus fragen\",\"in process of asking for more spots\",[1]!preferred_alternative[[#This Row],[Anmerkung]]=\"\",\"further updates by \"&TEXT([1]!preferred_alternative[[#This Row],[Further updates by]],\"tt.MM.jj\"))","v":"if you need a spot, please reach out to us"}]
[1342,{"$f":"VLOOKUP([1]!preferred_alternative[[#This Row],[Wert]],[1]LVs!A$1:U$592,2,FALSE)","v":"Course IV: International and Transnational Social Policy"},{"$f":"VLOOKUP([1]!preferred_alternative[[#This Row],[Wert]],[1]LVs!A$1:U$592,17,FALSE)","v":"Bachelor"},{"$f":"VLOOKUP([1]!preferred_alternative[[#This Row],[Wert]],[1]LVs!A$1:U$592,9,FALSE)","v":"Socioeconomics"},{"$f":"_xlfn.IFS([1]!preferred_alternative[[#This Row],[Anmerkung]]=\"currently spots available\",\"please check the list of available courses\",[1]!preferred_alternative[[#This Row],[Anmerkung]]=\"if you need a spot, please reach out to us\",\"if you need a spot, please reach out to us\",[1]!preferred_alternative[[#This Row],[Anmerkung]]=\"completely full\",\"completely full\",[1]!preferred_alternative[[#This Row],[Anmerkung]]=\"Markus fragen\",\"in process of asking for more spots\",[1]!preferred_alternative[[#This Row],[Anmerkung]]=\"\",\"further updates by \"&TEXT([1]!preferred_alternative[[#This Row],[Further updates by]],\"tt.MM.jj\"))","v":"completely full"}]
[714,{"$f":"VLOOKUP([1]!preferred_alternative[[#This Row],[Wert]],[1]LVs!A$1:U$592,2,FALSE)","v":"European Law and Economics"},{"$f":"VLOOKUP([1]!preferred_alternative[[#This Row],[Wert]],[1]LVs!A$1:U$592,17,FALSE)","v":"Bachelor"},{"$f":"VLOOKUP([1]!preferred_alternative[[#This Row],[Wert]],[1]LVs!A$1:U$592,9,FALSE)","v":"Business Law (incl. THEMIS)"},{"$f":"_xlfn.IFS([1]!preferred_alternative[[#This Row],[Anmerkung]]=\"currently spots available\",\"please check the list of available courses\",[1]!preferred_alternative[[#This Row],[Anmerkung]]=\"if you need a spot, please reach out to us\",\"if you need a spot, please reach out to us\",[1]!preferred_alternative[[#This Row],[Anmerkung]]=\"completely full\",\"completely full\",[1]!preferred_alternative[[#This Row],[Anmerkung]]=\"Markus fragen\",\"in process of asking for more spots\",[1]!preferred_alternative[[#This Row],[Anmerkung]]=\"\",\"further updates by \"&TEXT([1]!preferred_alternative[[#This Row],[Further updates by]],\"tt.MM.jj\"))","v":"completely full"}]
[529,{"$f":"VLOOKUP([1]!preferred_alternative[[#This Row],[Wert]],[1]LVs!A$1:U$592,2,FALSE)","v":"Marketing Research Methods"},{"$f":"VLOOKUP([1]!preferred_alternative[[#This Row],[Wert]],[1]LVs!A$1:U$592,17,FALSE)","v":"Bachelor"},{"$f":"VLOOKUP([1]!preferred_alternative[[#This Row],[Wert]],[1]LVs!A$1:U$592,9,FALSE)","v":"Research"},{"$f":"_xlfn.IFS([1]!preferred_alternative[[#This Row],[Anmerkung]]=\"currently spots available\",\"please check the list of available courses\",[1]!preferred_alternative[[#This Row],[Anmerkung]]=\"if you need a spot, please reach out to us\",\"if you need a spot, please reach out to us\",[1]!preferred_alternative[[#This Row],[Anmerkung]]=\"completely full\",\"completely full\",[1]!preferred_alternative[[#This Row],[Anmerkung]]=\"Markus fragen\",\"in process of asking for more spots\",[1]!preferred_alternative[[#This Row],[Anmerkung]]=\"\",\"further updates by \"&TEXT([1]!preferred_alternative[[#This Row],[Further updates by]],\"tt.MM.jj\"))","v":"completely full"}]
[1281,{"$f":"VLOOKUP([1]!preferred_alternative[[#This Row],[Wert]],[1]LVs!A$1:U$592,2,FALSE)","v":"International Business Applications"},{"$f":"VLOOKUP([1]!preferred_alternative[[#This Row],[Wert]],[1]LVs!A$1:U$592,17,FALSE)","v":"Bachelor"},{"$f":"VLOOKUP([1]!preferred_alternative[[#This Row],[Wert]],[1]LVs!A$1:U$592,9,FALSE)","v":"International Business"},{"$f":"_xlfn.IFS([1]!preferred_alternative[[#This Row],[Anmerkung]]=\"currently spots available\",\"please check the list of available courses\",[1]!preferred_alternative[[#This Row],[Anmerkung]]=\"if you need a spot, please reach out to us\",\"if you need a spot, please reach out to us\",[1]!preferred_alternative[[#This Row],[Anmerkung]]=\"completely full\",\"completely full\",[1]!preferred_alternative[[#This Row],[Anmerkung]]=\"Markus fragen\",\"in process of asking for more spots\",[1]!preferred_alternative[[#This Row],[Anmerkung]]=\"\",\"further updates by \"&TEXT([1]!preferred_alternative[[#This Row],[Further updates by]],\"tt.MM.jj\"))","v":"completely full"}]
[2514,{"$f":"VLOOKUP([1]!preferred_alternative[[#This Row],[Wert]],[1]LVs!A$1:U$592,2,FALSE)","v":"ExInt III: Elective: English Business Negotiations in an SME Environment (Group 1)"},{"$f":"VLOOKUP([1]!preferred_alternative[[#This Row],[Wert]],[1]LVs!A$1:U$592,17,FALSE)","v":"Master"},{"$f":"VLOOKUP([1]!preferred_alternative[[#This Row],[Wert]],[1]LVs!A$1:U$592,9,FALSE)","v":"Business Skills"},{"$f":"_xlfn.IFS([1]!preferred_alternative[[#This Row],[Anmerkung]]=\"currently spots available\",\"please check the list of available courses\",[1]!preferred_alternative[[#This Row],[Anmerkung]]=\"if you need a spot, please reach out to us\",\"if you need a spot, please reach out to us\",[1]!preferred_alternative[[#This Row],[Anmerkung]]=\"completely full\",\"completely full\",[1]!preferred_alternative[[#This Row],[Anmerkung]]=\"Markus fragen\",\"in process of asking for more spots\",[1]!preferred_alternative[[#This Row],[Anmerkung]]=\"\",\"further updates by \"&TEXT([1]!preferred_alternative[[#This Row],[Further updates by]],\"tt.MM.jj\"))","v":"completely full"}]
[530,{"$f":"VLOOKUP([1]!preferred_alternative[[#This Row],[Wert]],[1]LVs!A$1:U$592,2,FALSE)","v":"Marketing Research Methods"},{"$f":"VLOOKUP([1]!preferred_alternative[[#This Row],[Wert]],[1]LVs!A$1:U$592,17,FALSE)","v":"Bachelor"},{"$f":"VLOOKUP([1]!preferred_alternative[[#This Row],[Wert]],[1]LVs!A$1:U$592,9,FALSE)","v":"Research"},{"$f":"_xlfn.IFS([1]!preferred_alternative[[#This Row],[Anmerkung]]=\"currently spots available\",\"please check the list of available courses\",[1]!preferred_alternative[[#This Row],[Anmerkung]]=\"if you need a spot, please reach out to us\",\"if you need a spot, please reach out to us\",[1]!preferred_alternative[[#This Row],[Anmerkung]]=\"completely full\",\"completely full\",[1]!preferred_alternative[[#This Row],[Anmerkung]]=\"Markus fragen\",\"in process of asking for more spots\",[1]!preferred_alternative[[#This Row],[Anmerkung]]=\"\",\"further updates by \"&TEXT([1]!preferred_alternative[[#This Row],[Further updates by]],\"tt.MM.jj\"))","v":"please check the list of available courses"}]
[1341,{"$f":"VLOOKUP([1]!preferred_alternative[[#This Row],[Wert]],[1]LVs!A$1:U$592,2,FALSE)","v":"Course V: Social Policy Evaluation"},{"$f":"VLOOKUP([1]!preferred_alternative[[#This Row],[Wert]],[1]LVs!A$1:U$592,17,FALSE)","v":"Bachelor"},{"$f":"VLOOKUP([1]!preferred_alternative[[#This Row],[Wert]],[1]LVs!A$1:U$592,9,FALSE)","v":"Socioeconomics"},{"$f":"_xlfn.IFS([1]!preferred_alternative[[#This Row],[Anmerkung]]=\"currently spots available\",\"please check the list of available courses\",[1]!preferred_alternative[[#This Row],[Anmerkung]]=\"if you need a spot, please reach out to us\",\"if you need a spot, please reach out to us\",[1]!preferred_alternative[[#This Row],[Anmerkung]]=\"completely full\",\"completely full\",[1]!preferred_alternative[[#This Row],[Anmerkung]]=\"Markus fragen\",\"in process of asking for more spots\",[1]!preferred_alternative[[#This Row],[Anmerkung]]=\"\",\"further updates by \"&TEXT([1]!preferred_alternative[[#This Row],[Further updates by]],\"tt.MM.jj\"))","v":"if you need a spot, please reach out to us"}]
[1547,{"$f":"VLOOKUP([1]!preferred_alternative[[#This Row],[Wert]],[1]LVs!A$1:U$592,2,FALSE)","v":"SCA 3: Big Data & AI (Group A)"},{"$f":"VLOOKUP([1]!preferred_alternative[[#This Row],[Wert]],[1]LVs!A$1:U$592,17,FALSE)","v":"Master"},{"$f":"VLOOKUP([1]!preferred_alternative[[#This Row],[Wert]],[1]LVs!A$1:U$592,9,FALSE)","v":"Operations and Supply Chain Management"},{"$f":"_xlfn.IFS([1]!preferred_alternative[[#This Row],[Anmerkung]]=\"currently spots available\",\"please check the list of available courses\",[1]!preferred_alternative[[#This Row],[Anmerkung]]=\"if you need a spot, please reach out to us\",\"if you need a spot, please reach out to us\",[1]!preferred_alternative[[#This Row],[Anmerkung]]=\"completely full\",\"completely full\",[1]!preferred_alternative[[#This Row],[Anmerkung]]=\"Markus fragen\",\"in process of asking for more spots\",[1]!preferred_alternative[[#This Row],[Anmerkung]]=\"\",\"further updates by \"&TEXT([1]!preferred_alternative[[#This Row],[Further updates by]],\"tt.MM.jj\"))","v":"completely full"}]
[2741,{"$f":"VLOOKUP([1]!preferred_alternative[[#This Row],[Wert]],[1]LVs!A$1:U$592,2,FALSE)","v":{"$error":"#N/A"}},{"$f":"VLOOKUP([1]!preferred_alternative[[#This Row],[Wert]],[1]LVs!A$1:U$592,17,FALSE)","v":{"$error":"#N/A"}},{"$f":"VLOOKUP([1]!preferred_alternative[[#This Row],[Wert]],[1]LVs!A$1:U$592,9,FALSE)","v":{"$error":"#N/A"}},{"$f":"_xlfn.IFS([1]!preferred_alternative[[#This Row],[Anmerkung]]=\"currently spots available\",\"please check the list of available courses\",[1]!preferred_alternative[[#This Row],[Anmerkung]]=\"if you need a spot, please reach out to us\",\"if you need a spot, please reach out to us\",[1]!preferred_alternative[[#This Row],[Anmerkung]]=\"completely full\",\"completely full\",[1]!preferred_alternative[[#This Row],[Anmerkung]]=\"Markus fragen\",\"in process of asking for more spots\",[1]!preferred_alternative[[#This Row],[Anmerkung]]=\"\",\"further updates by \"&TEXT([1]!preferred_alternative[[#This Row],[Further updates by]],\"tt.MM.jj\"))","v":"further updates by 02.10.25"}]
[1695,{"$f":"VLOOKUP([1]!preferred_alternative[[#This Row],[Wert]],[1]LVs!A$1:U$592,2,FALSE)","v":"CSR and Sustainability"},{"$f":"VLOOKUP([1]!preferred_alternative[[#This Row],[Wert]],[1]LVs!A$1:U$592,17,FALSE)","v":"Master"},{"$f":"VLOOKUP([1]!preferred_alternative[[#This Row],[Wert]],[1]LVs!A$1:U$592,9,FALSE)","v":"Management"},{"$f":"_xlfn.IFS([1]!preferred_alternative[[#This Row],[Anmerkung]]=\"currently spots available\",\"please check the list of available courses\",[1]!preferred_alternative[[#This Row],[Anmerkung]]=\"if you need a spot, please reach out to us\",\"if you need a spot, please reach out to us\",[1]!preferred_alternative[[#This Row],[Anmerkung]]=\"completely full\",\"completely full\",[1]!preferred_alternative[[#This Row],[Anmerkung]]=\"Markus fragen\",\"in process of asking for more spots\",[1]!preferred_alternative[[#This Row],[Anmerkung]]=\"\",\"further updates by \"&TEXT([1]!preferred_alternative[[#This Row],[Further updates by]],\"tt.MM.jj\"))","v":"completely full"}]
[1085,{"$f":"VLOOKUP([1]!preferred_alternative[[#This Row],[Wert]],[1]LVs!A$1:U$592,2,FALSE)","v":"Advanced Econometric Models and Methods (Science Track)"},{"$f":"VLOOKUP([1]!preferred_alternative[[#This Row],[Wert]],[1]LVs!A$1:U$592,17,FALSE)","v":"Master"},{"$f":"VLOOKUP([1]!preferred_alternative[[#This Row],[Wert]],[1]LVs!A$1:U$592,9,FALSE)","v":"Economics"},{"$f":"_xlfn.IFS([1]!preferred_alternative[[#This Row],[Anmerkung]]=\"currently spots available\",\"please check the list of available courses\",[1]!preferred_alternative[[#This Row],[Anmerkung]]=\"if you need a spot, please reach out to us\",\"if you need a spot, please reach out to us\",[1]!preferred_alternative[[#This Row],[Anmerkung]]=\"completely full\",\"completely full\",[1]!preferred_alternative[[#This Row],[Anmerkung]]=\"Markus fragen\",\"in process of asking for more spots\",[1]!preferred_alternative[[#This Row],[Anmerkung]]=\"\",\"further updates by \"&TEXT([1]!preferred_alternative[[#This Row],[Further updates by]],\"tt.MM.jj\"))","v":"please check the list of available courses"}]
[2053,{"$f":"VLOOKUP([1]!preferred_alternative[[#This Row],[Wert]],[1]LVs!A$1:U$592,2,FALSE)","v":"Political Economy (Applied Track)"},{"$f":"VLOOKUP([1]!preferred_alternative[[#This Row],[Wert]],[1]LVs!A$1:U$592,17,FALSE)","v":"Master"},{"$f":"VLOOKUP([1]!preferred_alternative[[#This Row],[Wert]],[1]LVs!A$1:U$592,9,FALSE)","v":"Economics"},{"$f":"_xlfn.IFS([1]!preferred_alternative[[#This Row],[Anmerkung]]=\"currently spots available\",\"please check the list of available courses\",[1]!preferred_alternative[[#This Row],[Anmerkung]]=\"if you need a spot, please reach out to us\",\"if you need a spot, please reach out to us\",[1]!preferred_alternative[[#This Row],[Anmerkung]]=\"completely full\",\"completely full\",[1]!preferred_alternative[[#This Row],[Anmerkung]]=\"Markus fragen\",\"in process of asking for more spots\",[1]!preferred_alternative[[#This Row],[Anmerkung]]=\"\",\"further updates by \"&TEXT([1]!preferred_alternative[[#This Row],[Further updates by]],\"tt.MM.jj\"))","v":"if you need a spot, please reach out to us"}]
[2672,{"$f":"VLOOKUP([1]!preferred_alternative[[#This Row],[Wert]],[1]LVs!A$1:U$592,2,FALSE)","v":"Research Project on Information Management and Control"},{"$f":"VLOOKUP([1]!preferred_alternative[[#This Row],[Wert]],[1]LVs!A$1:U$592,17,FALSE)","v":"Bachelor"},{"$f":"VLOOKUP([1]!preferred_alternative[[#This Row],[Wert]],[1]LVs!A$1:U$592,9,FALSE)","v":"Research"},{"$f":"_xlfn.IFS([1]!preferred_alternative[[#This Row],[Anmerkung]]=\"currently spots available\",\"please check the list of available courses\",[1]!preferred_alternative[[#This Row],[Anmerkung]]=\"if you need a spot, please reach out to us\",\"if you need a spot, please reach out to us\",[1]!preferred_alternative[[#This Row],[Anmerkung]]=\"completely full\",\"completely full\",[1]!preferred_alternative[[#This Row],[Anmerkung]]=\"Markus fragen\",\"in process of asking for more spots\",[1]!preferred_alternative[[#This Row],[Anmerkung]]=\"\",\"further updates by \"&TEXT([1]!preferred_alternative[[#This Row],[Further updates by]],\"tt.MM.jj\"))","v":"please check the list of available courses"}]
[2057,{"$f":"VLOOKUP([1]!preferred_alternative[[#This Row],[Wert]],[1]LVs!A$1:U$592,2,FALSE)","v":"Public Economics (Applied Track)"},{"$f":"VLOOKUP([1]!preferred_alternative[[#This Row],[Wert]],[1]LVs!A$1:U$592,17,FALSE)","v":"Master"},{"$f":"VLOOKUP([1]!preferred_alternative[[#This Row],[Wert]],[1]LVs!A$1:U$592,9,FALSE)","v":"Economics"},{"$f":"_xlfn.IFS([1]!preferred_alternative[[#This Row],[Anmerkung]]=\"currently spots available\",\"please check the list of available courses\",[1]!preferred_alternative[[#This Row],[Anmerkung]]=\"if you need a spot, please reach out to us\",\"if you need a spot, please reach out to us\",[1]!preferred_alternative[[#This Row],[Anmerkung]]=\"completely full\",\"completely full\",[1]!preferred_alternative[[#This Row],[Anmerkung]]=\"Markus fragen\",\"in process of asking for more spots\",[1]!preferred_alternative[[#This Row],[Anmerkung]]=\"\",\"further updates by \"&TEXT([1]!preferred_alternative[[#This Row],[Further updates by]],\"tt.MM.jj\"))","v":"if you need a spot, please reach out to us"}]
[1227,{"$f":"VLOOKUP([1]!preferred_alternative[[#This Row],[Wert]],[1]LVs!A$1:U$592,2,FALSE)","v":"Wahlfach - Wissenschaftstheorie, Logik und Ethik - Kurs I: Einführung in die Erkenntnistheorie"},{"$f":"VLOOKUP([1]!preferred_alternative[[#This Row],[Wert]],[1]LVs!A$1:U$592,17,FALSE)","v":"Bachelor"},{"$f":"VLOOKUP([1]!preferred_alternative[[#This Row],[Wert]],[1]LVs!A$1:U$592,9,FALSE)","v":"History, Culture and Philosophy"},{"$f":"_xlfn.IFS([1]!preferred_alternative[[#This Row],[Anmerkung]]=\"currently spots available\",\"please check the list of available courses\",[1]!preferred_alternative[[#This Row],[Anmerkung]]=\"if you need a spot, please reach out to us\",\"if you need a spot, please reach out to us\",[1]!preferred_alternative[[#This Row],[Anmerkung]]=\"completely full\",\"completely full\",[1]!preferred_alternative[[#This Row],[Anmerkung]]=\"Markus fragen\",\"in process of asking for more spots\",[1]!preferred_alternative[[#This Row],[Anmerkung]]=\"\",\"further updates by \"&TEXT([1]!preferred_alternative[[#This Row],[Further updates by]],\"tt.MM.jj\"))","v":"please check the list of available courses"}]
[2502,{"$f":"VLOOKUP([1]!preferred_alternative[[#This Row],[Wert]],[1]LVs!A$1:U$592,2,FALSE)","v":"ExInt III: Elective - International Business Planning in SMEs (Group 1)"},{"$f":"VLOOKUP([1]!preferred_alternative[[#This Row],[Wert]],[1]LVs!A$1:U$592,17,FALSE)","v":"Master"},{"$f":"VLOOKUP([1]!preferred_alternative[[#This Row],[Wert]],[1]LVs!A$1:U$592,9,FALSE)","v":"English Business Communication"},{"$f":"_xlfn.IFS([1]!preferred_alternative[[#This Row],[Anmerkung]]=\"currently spots available\",\"please check the list of available courses\",[1]!preferred_alternative[[#This Row],[Anmerkung]]=\"if you need a spot, please reach out to us\",\"if you need a spot, please reach out to us\",[1]!preferred_alternative[[#This Row],[Anmerkung]]=\"completely full\",\"completely full\",[1]!preferred_alternative[[#This Row],[Anmerkung]]=\"Markus fragen\",\"in process of asking for more spots\",[1]!preferred_alternative[[#This Row],[Anmerkung]]=\"\",\"further updates by \"&TEXT([1]!preferred_alternative[[#This Row],[Further updates by]],\"tt.MM.jj\"))","v":"please check the list of available courses"}]
[2520,{"$f":"VLOOKUP([1]!preferred_alternative[[#This Row],[Wert]],[1]LVs!A$1:U$592,2,FALSE)","v":"ExInt III: Elective: Dynamic Global Value Chains of SMEs"},{"$f":"VLOOKUP([1]!preferred_alternative[[#This Row],[Wert]],[1]LVs!A$1:U$592,17,FALSE)","v":"Master"},{"$f":"VLOOKUP([1]!preferred_alternative[[#This Row],[Wert]],[1]LVs!A$1:U$592,9,FALSE)","v":"Finance"},{"$f":"_xlfn.IFS([1]!preferred_alternative[[#This Row],[Anmerkung]]=\"currently spots available\",\"please check the list of available courses\",[1]!preferred_alternative[[#This Row],[Anmerkung]]=\"if you need a spot, please reach out to us\",\"if you need a spot, please reach out to us\",[1]!preferred_alternative[[#This Row],[Anmerkung]]=\"completely full\",\"completely full\",[1]!preferred_alternative[[#This Row],[Anmerkung]]=\"Markus fragen\",\"in process of asking for more spots\",[1]!preferred_alternative[[#This Row],[Anmerkung]]=\"\",\"further updates by \"&TEXT([1]!preferred_alternative[[#This Row],[Further updates by]],\"tt.MM.jj\"))","v":"completely full"}]
[49,{"$f":"VLOOKUP([1]!preferred_alternative[[#This Row],[Wert]],[1]LVs!A$1:U$592,2,FALSE)","v":"Specialization in Business Administration Course III - Change Management Methods and Tools"},{"$f":"VLOOKUP([1]!preferred_alternative[[#This Row],[Wert]],[1]LVs!A$1:U$592,17,FALSE)","v":"Bachelor"},{"$f":"VLOOKUP([1]!preferred_alternative[[#This Row],[Wert]],[1]LVs!A$1:U$592,9,FALSE)","v":"Marketing"},{"$f":"_xlfn.IFS([1]!preferred_alternative[[#This Row],[Anmerkung]]=\"currently spots available\",\"please check the list of available courses\",[1]!preferred_alternative[[#This Row],[Anmerkung]]=\"if you need a spot, please reach out to us\",\"if you need a spot, please reach out to us\",[1]!preferred_alternative[[#This Row],[Anmerkung]]=\"completely full\",\"completely full\",[1]!preferred_alternative[[#This Row],[Anmerkung]]=\"Markus fragen\",\"in process of asking for more spots\",[1]!preferred_alternative[[#This Row],[Anmerkung]]=\"\",\"further updates by \"&TEXT([1]!preferred_alternative[[#This Row],[Further updates by]],\"tt.MM.jj\"))","v":"if you need a spot, please reach out to us"}]
[1711,{"$f":"VLOOKUP([1]!preferred_alternative[[#This Row],[Wert]],[1]LVs!A$1:U$592,2,FALSE)","v":"Management and Communication"},{"$f":"VLOOKUP([1]!preferred_alternative[[#This Row],[Wert]],[1]LVs!A$1:U$592,17,FALSE)","v":"Master"},{"$f":"VLOOKUP([1]!preferred_alternative[[#This Row],[Wert]],[1]LVs!A$1:U$592,9,FALSE)","v":"Management"},{"$f":"_xlfn.IFS([1]!preferred_alternative[[#This Row],[Anmerkung]]=\"currently spots available\",\"please check the list of available courses\",[1]!preferred_alternative[[#This Row],[Anmerkung]]=\"if you need a spot, please reach out to us\",\"if you need a spot, please reach out to us\",[1]!preferred_alternative[[#This Row],[Anmerkung]]=\"completely full\",\"completely full\",[1]!preferred_alternative[[#This Row],[Anmerkung]]=\"Markus fragen\",\"in process of asking for more spots\",[1]!preferred_alternative[[#This Row],[Anmerkung]]=\"\",\"further updates by \"&TEXT([1]!preferred_alternative[[#This Row],[Further updates by]],\"tt.MM.jj\"))","v":"completely full"}]
[719,{"$f":"VLOOKUP([1]!preferred_alternative[[#This Row],[Wert]],[1]LVs!A$1:U$592,2,FALSE)","v":"Business Analytics I"},{"$f":"VLOOKUP([1]!preferred_alternative[[#This Row],[Wert]],[1]LVs!A$1:U$592,17,FALSE)","v":"Bachelor"},{"$f":"VLOOKUP([1]!preferred_alternative[[#This Row],[Wert]],[1]LVs!A$1:U$592,9,FALSE)","v":"Management"},{"$f":"_xlfn.IFS([1]!preferred_alternative[[#This Row],[Anmerkung]]=\"currently spots available\",\"please check the list of available courses\",[1]!preferred_alternative[[#This Row],[Anmerkung]]=\"if you need a spot, please reach out to us\",\"if you need a spot, please reach out to us\",[1]!preferred_alternative[[#This Row],[Anmerkung]]=\"completely full\",\"completely full\",[1]!preferred_alternative[[#This Row],[Anmerkung]]=\"Markus fragen\",\"in process of asking for more spots\",[1]!preferred_alternative[[#This Row],[Anmerkung]]=\"\",\"further updates by \"&TEXT([1]!preferred_alternative[[#This Row],[Further updates by]],\"tt.MM.jj\"))","v":"if you need a spot, please reach out to us"}]
[2524,{"$f":"VLOOKUP([1]!preferred_alternative[[#This Row],[Wert]],[1]LVs!A$1:U$592,2,FALSE)","v":"Communicating in International Contexts"},{"$f":"VLOOKUP([1]!preferred_alternative[[#This Row],[Wert]],[1]LVs!A$1:U$592,17,FALSE)","v":"Bachelor"},{"$f":"VLOOKUP([1]!preferred_alternative[[#This Row],[Wert]],[1]LVs!A$1:U$592,9,FALSE)","v":"Business Skills"},{"$f":"_xlfn.IFS([1]!preferred_alternative[[#This Row],[Anmerkung]]=\"currently spots available\",\"please check the list of available courses\",[1]!preferred_alternative[[#This Row],[Anmerkung]]=\"if you need a spot, please reach out to us\",\"if you need a spot, please reach out to us\",[1]!preferred_alternative[[#This Row],[Anmerkung]]=\"completely full\",\"completely full\",[1]!preferred_alternative[[#This Row],[Anmerkung]]=\"Markus fragen\",\"in process of asking for more spots\",[1]!preferred_alternative[[#This Row],[Anmerkung]]=\"\",\"further updates by \"&TEXT([1]!preferred_alternative[[#This Row],[Further updates by]],\"tt.MM.jj\"))","v":"please check the list of available courses"}]
[2468,{"$f":"VLOOKUP([1]!preferred_alternative[[#This Row],[Wert]],[1]LVs!A$1:U$592,2,FALSE)","v":"Sustainable Finance and Reporting"},{"$f":"VLOOKUP([1]!preferred_alternative[[#This Row],[Wert]],[1]LVs!A$1:U$592,17,FALSE)","v":"Bachelor"},{"$f":"VLOOKUP([1]!preferred_alternative[[#This Row],[Wert]],[1]LVs!A$1:U$592,9,FALSE)","v":"Finance"},{"$f":"_xlfn.IFS([1]!preferred_alternative[[#This Row],[Anmerkung]]=\"currently spots available\",\"please check the list of available courses\",[1]!preferred_alternative[[#This Row],[Anmerkung]]=\"if you need a spot, please reach out to us\",\"if you need a spot, please reach out to us\",[1]!preferred_alternative[[#This Row],[Anmerkung]]=\"completely full\",\"completely full\",[1]!preferred_alternative[[#This Row],[Anmerkung]]=\"Markus fragen\",\"in process of asking for more spots\",[1]!preferred_alternative[[#This Row],[Anmerkung]]=\"\",\"further updates by \"&TEXT([1]!preferred_alternative[[#This Row],[Further updates by]],\"tt.MM.jj\"))","v":"please check the list of available courses"}]
[2525,{"$f":"VLOOKUP([1]!preferred_alternative[[#This Row],[Wert]],[1]LVs!A$1:U$592,2,FALSE)","v":"Communicating in International Contexts"},{"$f":"VLOOKUP([1]!preferred_alternative[[#This Row],[Wert]],[1]LVs!A$1:U$592,17,FALSE)","v":"Bachelor"},{"$f":"VLOOKUP([1]!preferred_alternative[[#This Row],[Wert]],[1]LVs!A$1:U$592,9,FALSE)","v":"Business Skills"},{"$f":"_xlfn.IFS([1]!preferred_alternative[[#This Row],[Anmerkung]]=\"currently spots available\",\"please check the list of available courses\",[1]!preferred_alternative[[#This Row],[Anmerkung]]=\"if you need a spot, please reach out to us\",\"if you need a spot, please reach out to us\",[1]!preferred_alternative[[#This Row],[Anmerkung]]=\"completely full\",\"completely full\",[1]!preferred_alternative[[#This Row],[Anmerkung]]=\"Markus fragen\",\"in process of asking for more spots\",[1]!preferred_alternative[[#This Row],[Anmerkung]]=\"\",\"further updates by \"&TEXT([1]!preferred_alternative[[#This Row],[Further updates by]],\"tt.MM.jj\"))","v":"please check the list of available courses"}]
[1742,{"$f":"VLOOKUP([1]!preferred_alternative[[#This Row],[Wert]],[1]LVs!A$1:U$592,2,FALSE)","v":"Digital Content Creation"},{"$f":"VLOOKUP([1]!preferred_alternative[[#This Row],[Wert]],[1]LVs!A$1:U$592,17,FALSE)","v":"Master"},{"$f":"VLOOKUP([1]!preferred_alternative[[#This Row],[Wert]],[1]LVs!A$1:U$592,9,FALSE)","v":"Marketing"},{"$f":"_xlfn.IFS([1]!preferred_alternative[[#This Row],[Anmerkung]]=\"currently spots available\",\"please check the list of available courses\",[1]!preferred_alternative[[#This Row],[Anmerkung]]=\"if you need a spot, please reach out to us\",\"if you need a spot, please reach out to us\",[1]!preferred_alternative[[#This Row],[Anmerkung]]=\"completely full\",\"completely full\",[1]!preferred_alternative[[#This Row],[Anmerkung]]=\"Markus fragen\",\"in process of asking for more spots\",[1]!preferred_alternative[[#This Row],[Anmerkung]]=\"\",\"further updates by \"&TEXT([1]!preferred_alternative[[#This Row],[Further updates by]],\"tt.MM.jj\"))","v":"completely full"}]
[2020,{"$f":"VLOOKUP([1]!preferred_alternative[[#This Row],[Wert]],[1]LVs!A$1:U$592,2,FALSE)","v":"Generative AI"},{"$f":"VLOOKUP([1]!preferred_alternative[[#This Row],[Wert]],[1]LVs!A$1:U$592,17,FALSE)","v":"Master"},{"$f":"VLOOKUP([1]!preferred_alternative[[#This Row],[Wert]],[1]LVs!A$1:U$592,9,FALSE)","v":"Information Systems"},{"$f":"_xlfn.IFS([1]!preferred_alternative[[#This Row],[Anmerkung]]=\"currently spots available\",\"please check the list of available courses\",[1]!preferred_alternative[[#This Row],[Anmerkung]]=\"if you need a spot, please reach out to us\",\"if you need a spot, please reach out to us\",[1]!preferred_alternative[[#This Row],[Anmerkung]]=\"completely full\",\"completely full\",[1]!preferred_alternative[[#This Row],[Anmerkung]]=\"Markus fragen\",\"in process of asking for more spots\",[1]!preferred_alternative[[#This Row],[Anmerkung]]=\"\",\"further updates by \"&TEXT([1]!preferred_alternative[[#This Row],[Further updates by]],\"tt.MM.jj\"))","v":"completely full"}]
[1427,{"$f":"VLOOKUP([1]!preferred_alternative[[#This Row],[Wert]],[1]LVs!A$1:U$592,2,FALSE)","v":"Excel and Business Intelligence A"},{"$f":"VLOOKUP([1]!preferred_alternative[[#This Row],[Wert]],[1]LVs!A$1:U$592,17,FALSE)","v":"Master"},{"$f":"VLOOKUP([1]!preferred_alternative[[#This Row],[Wert]],[1]LVs!A$1:U$592,9,FALSE)","v":"Information Systems"},{"$f":"_xlfn.IFS([1]!preferred_alternative[[#This Row],[Anmerkung]]=\"currently spots available\",\"please check the list of available courses\",[1]!preferred_alternative[[#This Row],[Anmerkung]]=\"if you need a spot, please reach out to us\",\"if you need a spot, please reach out to us\",[1]!preferred_alternative[[#This Row],[Anmerkung]]=\"completely full\",\"completely full\",[1]!preferred_alternative[[#This Row],[Anmerkung]]=\"Markus fragen\",\"in process of asking for more spots\",[1]!preferred_alternative[[#This Row],[Anmerkung]]=\"\",\"further updates by \"&TEXT([1]!preferred_alternative[[#This Row],[Further updates by]],\"tt.MM.jj\"))","v":"in process of asking for more spots"}]
[1627,{"$f":"VLOOKUP([1]!preferred_alternative[[#This Row],[Wert]],[1]LVs!A$1:U$592,2,FALSE)","v":"From Database to Dashboard - SQL and Power BI"},{"$f":"VLOOKUP([1]!preferred_alternative[[#This Row],[Wert]],[1]LVs!A$1:U$592,17,FALSE)","v":"Master"},{"$f":"VLOOKUP([1]!preferred_alternative[[#This Row],[Wert]],[1]LVs!A$1:U$592,9,FALSE)","v":"Information Systems"},{"$f":"_xlfn.IFS([1]!preferred_alternative[[#This Row],[Anmerkung]]=\"currently spots available\",\"please check the list of available courses\",[1]!preferred_alternative[[#This Row],[Anmerkung]]=\"if you need a spot, please reach out to us\",\"if you need a spot, please reach out to us\",[1]!preferred_alternative[[#This Row],[Anmerkung]]=\"completely full\",\"completely full\",[1]!preferred_alternative[[#This Row],[Anmerkung]]=\"Markus fragen\",\"in process of asking for more spots\",[1]!preferred_alternative[[#This Row],[Anmerkung]]=\"\",\"further updates by \"&TEXT([1]!preferred_alternative[[#This Row],[Further updates by]],\"tt.MM.jj\"))","v":"completely full"}]
[1428,{"$f":"VLOOKUP([1]!preferred_alternative[[#This Row],[Wert]],[1]LVs!A$1:U$592,2,FALSE)","v":"Excel and Business Intelligence B"},{"$f":"VLOOKUP([1]!preferred_alternative[[#This Row],[Wert]],[1]LVs!A$1:U$592,17,FALSE)","v":"Master"},{"$f":"VLOOKUP([1]!preferred_alternative[[#This Row],[Wert]],[1]LVs!A$1:U$592,9,FALSE)","v":"Information Systems"},{"$f":"_xlfn.IFS([1]!preferred_alternative[[#This Row],[Anmerkung]]=\"currently spots available\",\"please check the list of available courses\",[1]!preferred_alternative[[#This Row],[Anmerkung]]=\"if you need a spot, please reach out to us\",\"if you need a spot, please reach out to us\",[1]!preferred_alternative[[#This Row],[Anmerkung]]=\"completely full\",\"completely full\",[1]!preferred_alternative[[#This Row],[Anmerkung]]=\"Markus fragen\",\"in process of asking for more spots\",[1]!preferred_alternative[[#This Row],[Anmerkung]]=\"\",\"further updates by \"&TEXT([1]!preferred_alternative[[#This Row],[Further updates by]],\"tt.MM.jj\"))","v":"in process of asking for more spots"}]
[273,{"$f":"VLOOKUP([1]!preferred_alternative[[#This Row],[Wert]],[1]LVs!A$1:U$592,2,FALSE)","v":"Governance, Regulation, Compliance"},{"$f":"VLOOKUP([1]!preferred_alternative[[#This Row],[Wert]],[1]LVs!A$1:U$592,17,FALSE)","v":"Bachelor"},{"$f":"VLOOKUP([1]!preferred_alternative[[#This Row],[Wert]],[1]LVs!A$1:U$592,9,FALSE)","v":"Information Systems"},{"$f":"_xlfn.IFS([1]!preferred_alternative[[#This Row],[Anmerkung]]=\"currently spots available\",\"please check the list of available courses\",[1]!preferred_alternative[[#This Row],[Anmerkung]]=\"if you need a spot, please reach out to us\",\"if you need a spot, please reach out to us\",[1]!preferred_alternative[[#This Row],[Anmerkung]]=\"completely full\",\"completely full\",[1]!preferred_alternative[[#This Row],[Anmerkung]]=\"Markus fragen\",\"in process of asking for more spots\",[1]!preferred_alternative[[#This Row],[Anmerkung]]=\"\",\"further updates by \"&TEXT([1]!preferred_alternative[[#This Row],[Further updates by]],\"tt.MM.jj\"))","v":"please check the list of available courses"}]
[665,{"$f":"VLOOKUP([1]!preferred_alternative[[#This Row],[Wert]],[1]LVs!A$1:U$592,2,FALSE)","v":"Sustainable Operations"},{"$f":"VLOOKUP([1]!preferred_alternative[[#This Row],[Wert]],[1]LVs!A$1:U$592,17,FALSE)","v":"Bachelor"},{"$f":"VLOOKUP([1]!preferred_alternative[[#This Row],[Wert]],[1]LVs!A$1:U$592,9,FALSE)","v":"Operations and Supply Chain Management"},{"$f":"_xlfn.IFS([1]!preferred_alternative[[#This Row],[Anmerkung]]=\"currently spots available\",\"please check the list of available courses\",[1]!preferred_alternative[[#This Row],[Anmerkung]]=\"if you need a spot, please reach out to us\",\"if you need a spot, please reach out to us\",[1]!preferred_alternative[[#This Row],[Anmerkung]]=\"completely full\",\"completely full\",[1]!preferred_alternative[[#This Row],[Anmerkung]]=\"Markus fragen\",\"in process of asking for more spots\",[1]!preferred_alternative[[#This Row],[Anmerkung]]=\"\",\"further updates by \"&TEXT([1]!preferred_alternative[[#This Row],[Further updates by]],\"tt.MM.jj\"))","v":"please check the list of available courses"}]
[43,{"$f":"VLOOKUP([1]!preferred_alternative[[#This Row],[Wert]],[1]LVs!A$1:U$592,2,FALSE)","v":"Introduction to Blockchain"},{"$f":"VLOOKUP([1]!preferred_alternative[[#This Row],[Wert]],[1]LVs!A$1:U$592,17,FALSE)","v":"Bachelor"},{"$f":"VLOOKUP([1]!preferred_alternative[[#This Row],[Wert]],[1]LVs!A$1:U$592,9,FALSE)","v":"Information Systems"},{"$f":"_xlfn.IFS([1]!preferred_alternative[[#This Row],[Anmerkung]]=\"currently spots available\",\"please check the list of available courses\",[1]!preferred_alternative[[#This Row],[Anmerkung]]=\"if you need a spot, please reach out to us\",\"if you need a spot, please reach out to us\",[1]!preferred_alternative[[#This Row],[Anmerkung]]=\"completely full\",\"completely full\",[1]!preferred_alternative[[#This Row],[Anmerkung]]=\"Markus fragen\",\"in process of asking for more spots\",[1]!preferred_alternative[[#This Row],[Anmerkung]]=\"\",\"further updates by \"&TEXT([1]!preferred_alternative[[#This Row],[Further updates by]],\"tt.MM.jj\"))","v":"if you need a spot, please reach out to us"}]
[850,{"$f":"VLOOKUP([1]!preferred_alternative[[#This Row],[Wert]],[1]LVs!A$1:U$592,2,FALSE)","v":"Supply Chain Planning"},{"$f":"VLOOKUP([1]!preferred_alternative[[#This Row],[Wert]],[1]LVs!A$1:U$592,17,FALSE)","v":"Bachelor"},{"$f":"VLOOKUP([1]!preferred_alternative[[#This Row],[Wert]],[1]LVs!A$1:U$592,9,FALSE)","v":"Operations and Supply Chain Management"},{"$f":"_xlfn.IFS([1]!preferred_alternative[[#This Row],[Anmerkung]]=\"currently spots available\",\"please check the list of available courses\",[1]!preferred_alternative[[#This Row],[Anmerkung]]=\"if you need a spot, please reach out to us\",\"if you need a spot, please reach out to us\",[1]!preferred_alternative[[#This Row],[Anmerkung]]=\"completely full\",\"completely full\",[1]!preferred_alternative[[#This Row],[Anmerkung]]=\"Markus fragen\",\"in process of asking for more spots\",[1]!preferred_alternative[[#This Row],[Anmerkung]]=\"\",\"further updates by \"&TEXT([1]!preferred_alternative[[#This Row],[Further updates by]],\"tt.MM.jj\"))","v":"please check the list of available courses"}]
[914,{"$f":"VLOOKUP([1]!preferred_alternative[[#This Row],[Wert]],[1]LVs!A$1:U$592,2,FALSE)","v":"Service Operations Management"},{"$f":"VLOOKUP([1]!preferred_alternative[[#This Row],[Wert]],[1]LVs!A$1:U$592,17,FALSE)","v":"Bachelor"},{"$f":"VLOOKUP([1]!preferred_alternative[[#This Row],[Wert]],[1]LVs!A$1:U$592,9,FALSE)","v":"Operations and Supply Chain Management"},{"$f":"_xlfn.IFS([1]!preferred_alternative[[#This Row],[Anmerkung]]=\"currently spots available\",\"please check the list of available courses\",[1]!preferred_alternative[[#This Row],[Anmerkung]]=\"if you need a spot, please reach out to us\",\"if you need a spot, please reach out to us\",[1]!preferred_alternative[[#This Row],[Anmerkung]]=\"completely full\",\"completely full\",[1]!preferred_alternative[[#This Row],[Anmerkung]]=\"Markus fragen\",\"in process of asking for more spots\",[1]!preferred_alternative[[#This Row],[Anmerkung]]=\"\",\"further updates by \"&TEXT([1]!preferred_alternative[[#This Row],[Further updates by]],\"tt.MM.jj\"))","v":"please check the list of available courses"}]
[782,{"$f":"VLOOKUP([1]!preferred_alternative[[#This Row],[Wert]],[1]LVs!A$1:U$592,2,FALSE)","v":"Human-Centered System Design I"},{"$f":"VLOOKUP([1]!preferred_alternative[[#This Row],[Wert]],[1]LVs!A$1:U$592,17,FALSE)","v":"Bachelor"},{"$f":"VLOOKUP([1]!preferred_alternative[[#This Row],[Wert]],[1]LVs!A$1:U$592,9,FALSE)","v":"Information Systems"},{"$f":"_xlfn.IFS([1]!preferred_alternative[[#This Row],[Anmerkung]]=\"currently spots available\",\"please check the list of available courses\",[1]!preferred_alternative[[#This Row],[Anmerkung]]=\"if you need a spot, please reach out to us\",\"if you need a spot, please reach out to us\",[1]!preferred_alternative[[#This Row],[Anmerkung]]=\"completely full\",\"completely full\",[1]!preferred_alternative[[#This Row],[Anmerkung]]=\"Markus fragen\",\"in process of asking for more spots\",[1]!preferred_alternative[[#This Row],[Anmerkung]]=\"\",\"further updates by \"&TEXT([1]!preferred_alternative[[#This Row],[Further updates by]],\"tt.MM.jj\"))","v":"completely full"}]
[2731,{"$f":"VLOOKUP([1]!preferred_alternative[[#This Row],[Wert]],[1]LVs!A$1:U$592,2,FALSE)","v":"E2 Sustainability, Responsibility and Innovation"},{"$f":"VLOOKUP([1]!preferred_alternative[[#This Row],[Wert]],[1]LVs!A$1:U$592,17,FALSE)","v":"Bachelor"},{"$f":"VLOOKUP([1]!preferred_alternative[[#This Row],[Wert]],[1]LVs!A$1:U$592,9,FALSE)","v":"Entrepreneurship and Innovation"},{"$f":"_xlfn.IFS([1]!preferred_alternative[[#This Row],[Anmerkung]]=\"currently spots available\",\"please check the list of available courses\",[1]!preferred_alternative[[#This Row],[Anmerkung]]=\"if you need a spot, please reach out to us\",\"if you need a spot, please reach out to us\",[1]!preferred_alternative[[#This Row],[Anmerkung]]=\"completely full\",\"completely full\",[1]!preferred_alternative[[#This Row],[Anmerkung]]=\"Markus fragen\",\"in process of asking for more spots\",[1]!preferred_alternative[[#This Row],[Anmerkung]]=\"\",\"further updates by \"&TEXT([1]!preferred_alternative[[#This Row],[Further updates by]],\"tt.MM.jj\"))","v":"please check the list of available courses"}]
[2732,{"$f":"VLOOKUP([1]!preferred_alternative[[#This Row],[Wert]],[1]LVs!A$1:U$592,2,FALSE)","v":"E2 CSR, Sustainability and International Competitiveness"},{"$f":"VLOOKUP([1]!preferred_alternative[[#This Row],[Wert]],[1]LVs!A$1:U$592,17,FALSE)","v":"Bachelor"},{"$f":"VLOOKUP([1]!preferred_alternative[[#This Row],[Wert]],[1]LVs!A$1:U$592,9,FALSE)","v":"Entrepreneurship and Innovation"},{"$f":"_xlfn.IFS([1]!preferred_alternative[[#This Row],[Anmerkung]]=\"currently spots available\",\"please check the list of available courses\",[1]!preferred_alternative[[#This Row],[Anmerkung]]=\"if you need a spot, please reach out to us\",\"if you need a spot, please reach out to us\",[1]!preferred_alternative[[#This Row],[Anmerkung]]=\"completely full\",\"completely full\",[1]!preferred_alternative[[#This Row],[Anmerkung]]=\"Markus fragen\",\"in process of asking for more spots\",[1]!preferred_alternative[[#This Row],[Anmerkung]]=\"\",\"further updates by \"&TEXT([1]!preferred_alternative[[#This Row],[Further updates by]],\"tt.MM.jj\"))","v":"please check the list of available courses"}]
[2692,{"$f":"VLOOKUP([1]!preferred_alternative[[#This Row],[Wert]],[1]LVs!A$1:U$592,2,FALSE)","v":"Advanced Issues of European Business Law"},{"$f":"VLOOKUP([1]!preferred_alternative[[#This Row],[Wert]],[1]LVs!A$1:U$592,17,FALSE)","v":"Bachelor"},{"$f":"VLOOKUP([1]!preferred_alternative[[#This Row],[Wert]],[1]LVs!A$1:U$592,9,FALSE)","v":"Business Law (incl. THEMIS)"},{"$f":"_xlfn.IFS([1]!preferred_alternative[[#This Row],[Anmerkung]]=\"currently spots available\",\"please check the list of available courses\",[1]!preferred_alternative[[#This Row],[Anmerkung]]=\"if you need a spot, please reach out to us\",\"if you need a spot, please reach out to us\",[1]!preferred_alternative[[#This Row],[Anmerkung]]=\"completely full\",\"completely full\",[1]!preferred_alternative[[#This Row],[Anmerkung]]=\"Markus fragen\",\"in process of asking for more spots\",[1]!preferred_alternative[[#This Row],[Anmerkung]]=\"\",\"further updates by \"&TEXT([1]!preferred_alternative[[#This Row],[Further updates by]],\"tt.MM.jj\"))","v":"completely full"}]
[364,{"$f":"VLOOKUP([1]!preferred_alternative[[#This Row],[Wert]],[1]LVs!A$1:U$592,2,FALSE)","v":"S12 Asset Management"},{"$f":"VLOOKUP([1]!preferred_alternative[[#This Row],[Wert]],[1]LVs!A$1:U$592,17,FALSE)","v":"Master"},{"$f":"VLOOKUP([1]!preferred_alternative[[#This Row],[Wert]],[1]LVs!A$1:U$592,9,FALSE)","v":"Finance"},{"$f":"_xlfn.IFS([1]!preferred_alternative[[#This Row],[Anmerkung]]=\"currently spots available\",\"please check the list of available courses\",[1]!preferred_alternative[[#This Row],[Anmerkung]]=\"if you need a spot, please reach out to us\",\"if you need a spot, please reach out to us\",[1]!preferred_alternative[[#This Row],[Anmerkung]]=\"completely full\",\"completely full\",[1]!preferred_alternative[[#This Row],[Anmerkung]]=\"Markus fragen\",\"in process of asking for more spots\",[1]!preferred_alternative[[#This Row],[Anmerkung]]=\"\",\"further updates by \"&TEXT([1]!preferred_alternative[[#This Row],[Further updates by]],\"tt.MM.jj\"))","v":"please check the list of available courses"}]
[851,{"$f":"VLOOKUP([1]!preferred_alternative[[#This Row],[Wert]],[1]LVs!A$1:U$592,2,FALSE)","v":"Collaborate and Communicate in Intercultural Teams"},{"$f":"VLOOKUP([1]!preferred_alternative[[#This Row],[Wert]],[1]LVs!A$1:U$592,17,FALSE)","v":"Bachelor"},{"$f":"VLOOKUP([1]!preferred_alternative[[#This Row],[Wert]],[1]LVs!A$1:U$592,9,FALSE)","v":"Business Skills"},{"$f":"_xlfn.IFS([1]!preferred_alternative[[#This Row],[Anmerkung]]=\"currently spots available\",\"please check the list of available courses\",[1]!preferred_alternative[[#This Row],[Anmerkung]]=\"if you need a spot, please reach out to us\",\"if you need a spot, please reach out to us\",[1]!preferred_alternative[[#This Row],[Anmerkung]]=\"completely full\",\"completely full\",[1]!preferred_alternative[[#This Row],[Anmerkung]]=\"Markus fragen\",\"in process of asking for more spots\",[1]!preferred_alternative[[#This Row],[Anmerkung]]=\"\",\"further updates by \"&TEXT([1]!preferred_alternative[[#This Row],[Further updates by]],\"tt.MM.jj\"))","v":"completely full"}]
[390,{"$f":"VLOOKUP([1]!preferred_alternative[[#This Row],[Wert]],[1]LVs!A$1:U$592,2,FALSE)","v":"Organization Theory"},{"$f":"VLOOKUP([1]!preferred_alternative[[#This Row],[Wert]],[1]LVs!A$1:U$592,17,FALSE)","v":"Master"},{"$f":"VLOOKUP([1]!preferred_alternative[[#This Row],[Wert]],[1]LVs!A$1:U$592,9,FALSE)","v":"Management"},{"$f":"_xlfn.IFS([1]!preferred_alternative[[#This Row],[Anmerkung]]=\"currently spots available\",\"please check the list of available courses\",[1]!preferred_alternative[[#This Row],[Anmerkung]]=\"if you need a spot, please reach out to us\",\"if you need a spot, please reach out to us\",[1]!preferred_alternative[[#This Row],[Anmerkung]]=\"completely full\",\"completely full\",[1]!preferred_alternative[[#This Row],[Anmerkung]]=\"Markus fragen\",\"in process of asking for more spots\",[1]!preferred_alternative[[#This Row],[Anmerkung]]=\"\",\"further updates by \"&TEXT([1]!preferred_alternative[[#This Row],[Further updates by]],\"tt.MM.jj\"))","v":"if you need a spot, please reach out to us"}]
[2215,{"$f":"VLOOKUP([1]!preferred_alternative[[#This Row],[Wert]],[1]LVs!A$1:U$592,2,FALSE)","v":"Management and Digital Transformation"},{"$f":"VLOOKUP([1]!preferred_alternative[[#This Row],[Wert]],[1]LVs!A$1:U$592,17,FALSE)","v":"Master"},{"$f":"VLOOKUP([1]!preferred_alternative[[#This Row],[Wert]],[1]LVs!A$1:U$592,9,FALSE)","v":"Management"},{"$f":"_xlfn.IFS([1]!preferred_alternative[[#This Row],[Anmerkung]]=\"currently spots available\",\"please check the list of available courses\",[1]!preferred_alternative[[#This Row],[Anmerkung]]=\"if you need a spot, please reach out to us\",\"if you need a spot, please reach out to us\",[1]!preferred_alternative[[#This Row],[Anmerkung]]=\"completely full\",\"completely full\",[1]!preferred_alternative[[#This Row],[Anmerkung]]=\"Markus fragen\",\"in process of asking for more spots\",[1]!preferred_alternative[[#This Row],[Anmerkung]]=\"\",\"further updates by \"&TEXT([1]!preferred_alternative[[#This Row],[Further updates by]],\"tt.MM.jj\"))","v":"if you need a spot, please reach out to us"}]
[2205,{"$f":"VLOOKUP([1]!preferred_alternative[[#This Row],[Wert]],[1]LVs!A$1:U$592,2,FALSE)","v":"Organizational Communication in Times of Crises and Change"},{"$f":"VLOOKUP([1]!preferred_alternative[[#This Row],[Wert]],[1]LVs!A$1:U$592,17,FALSE)","v":"Master"},{"$f":"VLOOKUP([1]!preferred_alternative[[#This Row],[Wert]],[1]LVs!A$1:U$592,9,FALSE)","v":"Management"},{"$f":"_xlfn.IFS([1]!preferred_alternative[[#This Row],[Anmerkung]]=\"currently spots available\",\"please check the list of available courses\",[1]!preferred_alternative[[#This Row],[Anmerkung]]=\"if you need a spot, please reach out to us\",\"if you need a spot, please reach out to us\",[1]!preferred_alternative[[#This Row],[Anmerkung]]=\"completely full\",\"completely full\",[1]!preferred_alternative[[#This Row],[Anmerkung]]=\"Markus fragen\",\"in process of asking for more spots\",[1]!preferred_alternative[[#This Row],[Anmerkung]]=\"\",\"further updates by \"&TEXT([1]!preferred_alternative[[#This Row],[Further updates by]],\"tt.MM.jj\"))","v":"completely full"}]
[2496,{"$f":"VLOOKUP([1]!preferred_alternative[[#This Row],[Wert]],[1]LVs!A$1:U$592,2,FALSE)","v":"ExInt I: English Business Presentations (Group 1)"},{"$f":"VLOOKUP([1]!preferred_alternative[[#This Row],[Wert]],[1]LVs!A$1:U$592,17,FALSE)","v":"Master"},{"$f":"VLOOKUP([1]!preferred_alternative[[#This Row],[Wert]],[1]LVs!A$1:U$592,9,FALSE)","v":"English Business Communication"},{"$f":"_xlfn.IFS([1]!preferred_alternative[[#This Row],[Anmerkung]]=\"currently spots available\",\"please check the list of available courses\",[1]!preferred_alternative[[#This Row],[Anmerkung]]=\"if you need a spot, please reach out to us\",\"if you need a spot, please reach out to us\",[1]!preferred_alternative[[#This Row],[Anmerkung]]=\"completely full\",\"completely full\",[1]!preferred_alternative[[#This Row],[Anmerkung]]=\"Markus fragen\",\"in process of asking for more spots\",[1]!preferred_alternative[[#This Row],[Anmerkung]]=\"\",\"further updates by \"&TEXT([1]!preferred_alternative[[#This Row],[Further updates by]],\"tt.MM.jj\"))","v":"please check the list of available courses"}]
[575,{"$f":"VLOOKUP([1]!preferred_alternative[[#This Row],[Wert]],[1]LVs!A$1:U$592,2,FALSE)","v":"Diversity in Teams"},{"$f":"VLOOKUP([1]!preferred_alternative[[#This Row],[Wert]],[1]LVs!A$1:U$592,17,FALSE)","v":"Bachelor"},{"$f":"VLOOKUP([1]!preferred_alternative[[#This Row],[Wert]],[1]LVs!A$1:U$592,9,FALSE)","v":"Gender and Diversity Management"},{"$f":"_xlfn.IFS([1]!preferred_alternative[[#This Row],[Anmerkung]]=\"currently spots available\",\"please check the list of available courses\",[1]!preferred_alternative[[#This Row],[Anmerkung]]=\"if you need a spot, please reach out to us\",\"if you need a spot, please reach out to us\",[1]!preferred_alternative[[#This Row],[Anmerkung]]=\"completely full\",\"completely full\",[1]!preferred_alternative[[#This Row],[Anmerkung]]=\"Markus fragen\",\"in process of asking for more spots\",[1]!preferred_alternative[[#This Row],[Anmerkung]]=\"\",\"further updates by \"&TEXT([1]!preferred_alternative[[#This Row],[Further updates by]],\"tt.MM.jj\"))","v":"please check the list of available courses"}]
[1466,{"$f":"VLOOKUP([1]!preferred_alternative[[#This Row],[Wert]],[1]LVs!A$1:U$592,2,FALSE)","v":"Strategic Diversity Management"},{"$f":"VLOOKUP([1]!preferred_alternative[[#This Row],[Wert]],[1]LVs!A$1:U$592,17,FALSE)","v":"Bachelor"},{"$f":"VLOOKUP([1]!preferred_alternative[[#This Row],[Wert]],[1]LVs!A$1:U$592,9,FALSE)","v":"Gender and Diversity Management"},{"$f":"_xlfn.IFS([1]!preferred_alternative[[#This Row],[Anmerkung]]=\"currently spots available\",\"please check the list of available courses\",[1]!preferred_alternative[[#This Row],[Anmerkung]]=\"if you need a spot, please reach out to us\",\"if you need a spot, please reach out to us\",[1]!preferred_alternative[[#This Row],[Anmerkung]]=\"completely full\",\"completely full\",[1]!preferred_alternative[[#This Row],[Anmerkung]]=\"Markus fragen\",\"in process of asking for more spots\",[1]!preferred_alternative[[#This Row],[Anmerkung]]=\"\",\"further updates by \"&TEXT([1]!preferred_alternative[[#This Row],[Further updates by]],\"tt.MM.jj\"))","v":"if you need a spot, please reach out to us"}]
[91,{"$f":"VLOOKUP([1]!preferred_alternative[[#This Row],[Wert]],[1]LVs!A$1:U$592,2,FALSE)","v":"IT-Support in Project Management"},{"$f":"VLOOKUP([1]!preferred_alternative[[#This Row],[Wert]],[1]LVs!A$1:U$592,17,FALSE)","v":"Bachelor"},{"$f":"VLOOKUP([1]!preferred_alternative[[#This Row],[Wert]],[1]LVs!A$1:U$592,9,FALSE)","v":"Information Systems"},{"$f":"_xlfn.IFS([1]!preferred_alternative[[#This Row],[Anmerkung]]=\"currently spots available\",\"please check the list of available courses\",[1]!preferred_alternative[[#This Row],[Anmerkung]]=\"if you need a spot, please reach out to us\",\"if you need a spot, please reach out to us\",[1]!preferred_alternative[[#This Row],[Anmerkung]]=\"completely full\",\"completely full\",[1]!preferred_alternative[[#This Row],[Anmerkung]]=\"Markus fragen\",\"in process of asking for more spots\",[1]!preferred_alternative[[#This Row],[Anmerkung]]=\"\",\"further updates by \"&TEXT([1]!preferred_alternative[[#This Row],[Further updates by]],\"tt.MM.jj\"))","v":"completely full"}]
[1514,{"$f":"VLOOKUP([1]!preferred_alternative[[#This Row],[Wert]],[1]LVs!A$1:U$592,2,FALSE)","v":"Game Theory II: Information"},{"$f":"VLOOKUP([1]!preferred_alternative[[#This Row],[Wert]],[1]LVs!A$1:U$592,17,FALSE)","v":"Bachelor"},{"$f":"VLOOKUP([1]!preferred_alternative[[#This Row],[Wert]],[1]LVs!A$1:U$592,9,FALSE)","v":"Strategic Management"},{"$f":"_xlfn.IFS([1]!preferred_alternative[[#This Row],[Anmerkung]]=\"currently spots available\",\"please check the list of available courses\",[1]!preferred_alternative[[#This Row],[Anmerkung]]=\"if you need a spot, please reach out to us\",\"if you need a spot, please reach out to us\",[1]!preferred_alternative[[#This Row],[Anmerkung]]=\"completely full\",\"completely full\",[1]!preferred_alternative[[#This Row],[Anmerkung]]=\"Markus fragen\",\"in process of asking for more spots\",[1]!preferred_alternative[[#This Row],[Anmerkung]]=\"\",\"further updates by \"&TEXT([1]!preferred_alternative[[#This Row],[Further updates by]],\"tt.MM.jj\"))","v":"further updates by 08.11.25"}]
[353,{"$f":"VLOOKUP([1]!preferred_alternative[[#This Row],[Wert]],[1]LVs!A$1:U$592,2,FALSE)","v":"Operational Production Management"},{"$f":"VLOOKUP([1]!preferred_alternative[[#This Row],[Wert]],[1]LVs!A$1:U$592,17,FALSE)","v":"Bachelor"},{"$f":"VLOOKUP([1]!preferred_alternative[[#This Row],[Wert]],[1]LVs!A$1:U$592,9,FALSE)","v":"Operations and Supply Chain Management"},{"$f":"_xlfn.IFS([1]!preferred_alternative[[#This Row],[Anmerkung]]=\"currently spots available\",\"please check the list of available courses\",[1]!preferred_alternative[[#This Row],[Anmerkung]]=\"if you need a spot, please reach out to us\",\"if you need a spot, please reach out to us\",[1]!preferred_alternative[[#This Row],[Anmerkung]]=\"completely full\",\"completely full\",[1]!preferred_alternative[[#This Row],[Anmerkung]]=\"Markus fragen\",\"in process of asking for more spots\",[1]!preferred_alternative[[#This Row],[Anmerkung]]=\"\",\"further updates by \"&TEXT([1]!preferred_alternative[[#This Row],[Further updates by]],\"tt.MM.jj\"))","v":"further updates by 21.11.25"}]
[743,{"$f":"VLOOKUP([1]!preferred_alternative[[#This Row],[Wert]],[1]LVs!A$1:U$592,2,FALSE)","v":"Specialization in Business Administration Course III - Advanced Management Accounting"},{"$f":"VLOOKUP([1]!preferred_alternative[[#This Row],[Wert]],[1]LVs!A$1:U$592,17,FALSE)","v":"Bachelor"},{"$f":"VLOOKUP([1]!preferred_alternative[[#This Row],[Wert]],[1]LVs!A$1:U$592,9,FALSE)","v":"Accounting"},{"$f":"_xlfn.IFS([1]!preferred_alternative[[#This Row],[Anmerkung]]=\"currently spots available\",\"please check the list of available courses\",[1]!preferred_alternative[[#This Row],[Anmerkung]]=\"if you need a spot, please reach out to us\",\"if you need a spot, please reach out to us\",[1]!preferred_alternative[[#This Row],[Anmerkung]]=\"completely full\",\"completely full\",[1]!preferred_alternative[[#This Row],[Anmerkung]]=\"Markus fragen\",\"in process of asking for more spots\",[1]!preferred_alternative[[#This Row],[Anmerkung]]=\"\",\"further updates by \"&TEXT([1]!preferred_alternative[[#This Row],[Further updates by]],\"tt.MM.jj\"))","v":"further updates by 29.11.25"}]
[1020,{"$f":"VLOOKUP([1]!preferred_alternative[[#This Row],[Wert]],[1]LVs!A$1:U$592,2,FALSE)","v":"Specialization in Business Administration Course III - Advanced Management Accounting"},{"$f":"VLOOKUP([1]!preferred_alternative[[#This Row],[Wert]],[1]LVs!A$1:U$592,17,FALSE)","v":"Bachelor"},{"$f":"VLOOKUP([1]!preferred_alternative[[#This Row],[Wert]],[1]LVs!A$1:U$592,9,FALSE)","v":"Accounting"},{"$f":"_xlfn.IFS([1]!preferred_alternative[[#This Row],[Anmerkung]]=\"currently spots available\",\"please check the list of available courses\",[1]!preferred_alternative[[#This Row],[Anmerkung]]=\"if you need a spot, please reach out to us\",\"if you need a spot, please reach out to us\",[1]!preferred_alternative[[#This Row],[Anmerkung]]=\"completely full\",\"completely full\",[1]!preferred_alternative[[#This Row],[Anmerkung]]=\"Markus fragen\",\"in process of asking for more spots\",[1]!preferred_alternative[[#This Row],[Anmerkung]]=\"\",\"further updates by \"&TEXT([1]!preferred_alternative[[#This Row],[Further updates by]],\"tt.MM.jj\"))","v":"further updates by 02.12.25"}]
[781,{"$f":"VLOOKUP([1]!preferred_alternative[[#This Row],[Wert]],[1]LVs!A$1:U$592,2,FALSE)","v":"Human-Centered System Design II"},{"$f":"VLOOKUP([1]!preferred_alternative[[#This Row],[Wert]],[1]LVs!A$1:U$592,17,FALSE)","v":"Bachelor"},{"$f":"VLOOKUP([1]!preferred_alternative[[#This Row],[Wert]],[1]LVs!A$1:U$592,9,FALSE)","v":"Information Systems"},{"$f":"_xlfn.IFS([1]!preferred_alternative[[#This Row],[Anmerkung]]=\"currently spots available\",\"please check the list of available courses\",[1]!preferred_alternative[[#This Row],[Anmerkung]]=\"if you need a spot, please reach out to us\",\"if you need a spot, please reach out to us\",[1]!preferred_alternative[[#This Row],[Anmerkung]]=\"completely full\",\"completely full\",[1]!preferred_alternative[[#This Row],[Anmerkung]]=\"Markus fragen\",\"in process of asking for more spots\",[1]!preferred_alternative[[#This Row],[Anmerkung]]=\"\",\"further updates by \"&TEXT([1]!preferred_alternative[[#This Row],[Further updates by]],\"tt.MM.jj\"))","v":"completely full"}]
[1113,{"$f":"VLOOKUP([1]!preferred_alternative[[#This Row],[Wert]],[1]LVs!A$1:U$592,2,FALSE)","v":"Elective - Leading Complex Organizations"},{"$f":"VLOOKUP([1]!preferred_alternative[[#This Row],[Wert]],[1]LVs!A$1:U$592,17,FALSE)","v":"Master"},{"$f":"VLOOKUP([1]!preferred_alternative[[#This Row],[Wert]],[1]LVs!A$1:U$592,9,FALSE)","v":"Management"},{"$f":"_xlfn.IFS([1]!preferred_alternative[[#This Row],[Anmerkung]]=\"currently spots available\",\"please check the list of available courses\",[1]!preferred_alternative[[#This Row],[Anmerkung]]=\"if you need a spot, please reach out to us\",\"if you need a spot, please reach out to us\",[1]!preferred_alternative[[#This Row],[Anmerkung]]=\"completely full\",\"completely full\",[1]!preferred_alternative[[#This Row],[Anmerkung]]=\"Markus fragen\",\"in process of asking for more spots\",[1]!preferred_alternative[[#This Row],[Anmerkung]]=\"\",\"further updates by \"&TEXT([1]!preferred_alternative[[#This Row],[Further updates by]],\"tt.MM.jj\"))","v":"completely full"}]
[2179,{"$f":"VLOOKUP([1]!preferred_alternative[[#This Row],[Wert]],[1]LVs!A$1:U$592,2,FALSE)","v":"Sustainable Economics and Business II: Economy, Inequality, and the Environment"},{"$f":"VLOOKUP([1]!preferred_alternative[[#This Row],[Wert]],[1]LVs!A$1:U$592,17,FALSE)","v":"Bachelor"},{"$f":"VLOOKUP([1]!preferred_alternative[[#This Row],[Wert]],[1]LVs!A$1:U$592,9,FALSE)","v":"Socioeconomics"},{"$f":"_xlfn.IFS([1]!preferred_alternative[[#This Row],[Anmerkung]]=\"currently spots available\",\"please check the list of available courses\",[1]!preferred_alternative[[#This Row],[Anmerkung]]=\"if you need a spot, please reach out to us\",\"if you need a spot, please reach out to us\",[1]!preferred_alternative[[#This Row],[Anmerkung]]=\"completely full\",\"completely full\",[1]!preferred_alternative[[#This Row],[Anmerkung]]=\"Markus fragen\",\"in process of asking for more spots\",[1]!preferred_alternative[[#This Row],[Anmerkung]]=\"\",\"further updates by \"&TEXT([1]!preferred_alternative[[#This Row],[Further updates by]],\"tt.MM.jj\"))","v":{"$error":"#N/A"}}]